{"text_format":"1","workbook":"xlsx","n_sheets":71,"sheets":["Sheet1","Contents","Notes and definitions","Table A1.1","Table A1.2","Table B1.1","Table B1.2","Table B1.3","Table B1.4","Table B1.5","Table B1.6","Table B1.7","Table B2.1","Table B2.2","Table B2.3","Table B2.4","Table B2.5","Table B2.6","Table B2.7","Table C1.1","Table C1.2","Table C1.3","Table C1.4","Table C1.5","Table C1.6","Table C1.7","Table C2.1","Table C2.2","Table C2.3","Table C2.4","Table C2.5","Table C2.6","Table C2.7","Table D1.1","Table D1.2","Table D1.3","Table D1.4","Table D1.5","Table D1.6","Table D1.7","Table E1.1","Table E1.2","Table E1.3","Table E1.4","Table E1.5","Table E1.6","Table E1.7","Table E2.1","Table E2.2","Table E2.3","Table E2.4","Table E2.5","Table E2.6","Table E2.7","Table F1.1","Table F1.2","Table F1.3","Table F1.4","Table F1.5","Table F1.6","Table F1.7","Figure G1","Figure G2","Figure G3","Figure G4","Figure G5","Figure G6","Figure G7","Figure G8","Annex H","Annex I"],"not_rendered":{"charts":0,"images":9,"macros":1,"external_links":4,"defined_names":92,"comments":0,"pivot_tables":0},"unopened":[],"bounds":{"document_bytes":16777216,"sheet_cells":100000,"rows_first":2000,"rows_last":500,"rows_between":2000,"halvings":0,"cell_chars":16384,"cell_head_chars":4096},"cells_cut":0,"cells_raw":0,"read":"whole","date_system":"1900"}

{"sheet":"Sheet1","index":0,"n_rows":73,"n_cols":3,"rows_kept":73,"cut":false,"hidden":true,"merged":[]}
["24 May 2018"]
["April 2018"]
[", 1 April 2018",","," Numbers"]
[null,null," and"]
[null,","," Percentages"]
["Table A1.1: UK Armed Forces and entitled civilian personnel DMS registrations, by registration location",{"$f":"A6&$B$3&$C$3","v":"Table A1.1: UK Armed Forces and entitled civilian personnel DMS registrations, by registration location, Numbers"}]
["Table A1.2: UK Armed Forces and entitled civilian personnel DMS registrations,  registration location by Service",{"$f":"A7&$B$3&$C$3","v":"Table A1.2: UK Armed Forces and entitled civilian personnel DMS registrations,  registration location by Service, Numbers"}]
["Table B1.1: UK Armed Forces personnel and entitled civilian personnel DMS registrations, registered to NHS Clinical Commissioning Groups by Service","Table B1.1: UK Armed Forces personnel and entitled civilian personnel DMS registrations, registered to NHS Clinical Commissioning Groups by Service, Numbers"]
["Table B2.1: UK Armed Forces personnel and entitled civilian personnel DMS registrations, registered to regions & Local Area Authorities by Service","Table B2.1: UK Armed Forces personnel and entitled civilian personnel DMS registrations, registered to regions & Local Area Authorities by Service, Numbers"]
["Table C1.1: UK Armed Forces personnel and entitled civilian personnel DMS registrations, registered to Local Health Boards by Service","Table C1.1: UK Armed Forces personnel and entitled civilian personnel DMS registrations, registered to Local Health Boards by Service, Numbers"]
["Table C2.1: UK Armed Forces personnel and entitled civilian personnel DMS registrations, registered to Local Area Authorities by Service","Table C2.1: UK Armed Forces personnel and entitled civilian personnel DMS registrations, registered to Local Area Authorities by Service, Numbers"]
["Table D1.1: UK Armed Forces personnel and entitled civilian personnel DMS registrations, registered to Health and Social Care Partnerships & Council Areas by Service","Table D1.1: UK Armed Forces personnel and entitled civilian personnel DMS registrations, registered to Health and Social Care Partnerships & Council Areas by Service, Numbers"]
["Table E1.1: UK Armed Forces personnel and entitled civilian personnel DMS registrations, registered to Local Commissioning Groups by Service","Table E1.1: UK Armed Forces personnel and entitled civilian personnel DMS registrations, registered to Local Commissioning Groups by Service, Numbers"]
["Table E2.1: UK Armed Forces personnel and entitled civilian personnel DMS registrations, registered to District Council Areas by Service","Table E2.1: UK Armed Forces personnel and entitled civilian personnel DMS registrations, registered to District Council Areas by Service, Numbers"]
["Table F1.1: UK Armed Forces personnel and entitled civilian personnel DMS registrations, registered to Defence Primary Healthcare regions by Service","Table F1.1: UK Armed Forces personnel and entitled civilian personnel DMS registrations, registered to Defence Primary Healthcare regions by Service, Numbers"]
["Table F1.2: UK Armed Forces personnel and entitled civilian personnel DMS registrations, registered to Defence Primary Healthcare regions by age band","Table F1.2: UK Armed Forces personnel and entitled civilian personnel DMS registrations, registered to Defence Primary Healthcare regions by age band, Numbers"]
["Table F1.3: UK Armed Forces personnel DMS registrations, registered to Defence Primary Healthcare regions by age band","Table F1.3: UK Armed Forces personnel DMS registrations, registered to Defence Primary Healthcare regions by age band, Numbers"]
["Table F1.4: Entitled civilian personnel DMS registrations, registered to Defence Primary Healthcare regions by age band","Table F1.4: Entitled civilian personnel DMS registrations, registered to Defence Primary Healthcare regions by age band, Numbers"]
["Table F1.5: UK Armed Forces personnel and entitled civilian personnel DMS registrations, registered to Defence Primary Healthcare regions by gender","Table F1.5: UK Armed Forces personnel and entitled civilian personnel DMS registrations, registered to Defence Primary Healthcare regions by gender, Numbers"]
["Table F1.6: UK Armed Forces males and entitled civilian males DMS registrations, registered to Defence Primary Healthcare regions by age band","Table F1.6: UK Armed Forces males and entitled civilian males DMS registrations, registered to Defence Primary Healthcare regions by age band, Numbers"]
["Table F1.7: UK Armed Forces females and entitled civilian females DMS registrations, registered to Defence Primary Healthcare regions by age band","Table F1.7: UK Armed Forces females and entitled civilian females DMS registrations, registered to Defence Primary Healthcare regions by age band, Numbers"]
["Table B1.2: UK Armed Forces personnel and entitled civilian personnel DMS registrations, registered to NHS Clinical Commissioning Groups by age band","Table B1.2: UK Armed Forces personnel and entitled civilian personnel DMS registrations, registered to NHS Clinical Commissioning Groups by age band, Numbers"]
["Table B1.3: UK Armed Forces personnel DMS registrations, registered to NHS Clinical Commissioning Groups by age band","Table B1.3: UK Armed Forces personnel DMS registrations, registered to NHS Clinical Commissioning Groups by age band, Numbers"]
["Table B1.4: Entitled civilian personnel DMS registrations, registered to NHS Clinical Commissioning Groups by age band","Table B1.4: Entitled civilian personnel DMS registrations, registered to NHS Clinical Commissioning Groups by age band, Numbers"]
["Table B1.5: UK Armed Forces personnel and entitled civilian personnel DMS registrations, registered to NHS Clinical Commissioning Groups by gender","Table B1.5: UK Armed Forces personnel and entitled civilian personnel DMS registrations, registered to NHS Clinical Commissioning Groups by gender, Numbers"]
["Table B1.6: UK Armed Forces males and entitled civilian males DMS registrations, registered to NHS Clinical Commissioning Groups by age band","Table B1.6: UK Armed Forces males and entitled civilian males DMS registrations, registered to NHS Clinical Commissioning Groups by age band, Numbers"]
["Table B1.7: UK Armed Forces females and entitled civilian females DMS registrations, registered to NHS Clinical Commissioning Groups by age band","Table B1.7: UK Armed Forces females and entitled civilian females DMS registrations, registered to NHS Clinical Commissioning Groups by age band, Numbers"]
["Table B2.2: UK Armed Forces personnel and entitled civilian personnel DMS registrations, registered to regions & Local Area Authorities by age band","Table B2.2: UK Armed Forces personnel and entitled civilian personnel DMS registrations, registered to regions & Local Area Authorities by age band, Numbers"]
["Table B2.3: UK Armed Forces personnel DMS registrations, registered to regions & Local Area Authorities by age band","Table B2.3: UK Armed Forces personnel DMS registrations, registered to regions & Local Area Authorities by age band, Numbers"]
["Table B2.4: Entitled civilian personnel DMS registrations, registered to regions & Local Area Authorities by age band","Table B2.4: Entitled civilian personnel DMS registrations, registered to regions & Local Area Authorities by age band, Numbers"]
["Table B2.5: UK Armed Forces personnel and entitled civilian personnel DMS registrations, registered to regions & Local Area Authorities by gender","Table B2.5: UK Armed Forces personnel and entitled civilian personnel DMS registrations, registered to regions & Local Area Authorities by gender, Numbers"]
["Table B2.6: UK Armed Forces males and entitled civilian males DMS registrations, registered to regions & Local Area Authorities by age band","Table B2.6: UK Armed Forces males and entitled civilian males DMS registrations, registered to regions & Local Area Authorities by age band, Numbers"]
["Table B2.7: UK Armed Forces females and entitled civilian females DMS registrations, registered to regions & Local Area Authorities by age band","Table B2.7: UK Armed Forces females and entitled civilian females DMS registrations, registered to regions & Local Area Authorities by age band, Numbers"]
["Table C1.2: UK Armed Forces personnel and entitled civilian personnel DMS registrations, registered to Local Health Boards by age band","Table C1.2: UK Armed Forces personnel and entitled civilian personnel DMS registrations, registered to Local Health Boards by age band, Numbers"]
["Table C1.3: UK Armed Forces personnel DMS registrations, registered to Local Health Boards by age band","Table C1.3: UK Armed Forces personnel DMS registrations, registered to Local Health Boards by age band, Numbers"]
["Table C1.4: Entitled civilian personnel DMS registrations, registered to Local Health Boards by age band","Table C1.4: Entitled civilian personnel DMS registrations, registered to Local Health Boards by age band, Numbers"]
["Table C1.5: UK Armed Forces personnel and entitled civilian personnel DMS registrations, registered to Local Health Boards by gender","Table C1.5: UK Armed Forces personnel and entitled civilian personnel DMS registrations, registered to Local Health Boards by gender, Numbers"]
["Table C1.6: UK Armed Forces males and entitled civilian males DMS registrations, registered to Local Health Boards by age band","Table C1.6: UK Armed Forces males and entitled civilian males DMS registrations, registered to Local Health Boards by age band, Numbers"]
["Table C1.7: UK Armed Forces females and entitled civilian females DMS registrations, registered to Local Health Boards by age band","Table C1.7: UK Armed Forces females and entitled civilian females DMS registrations, registered to Local Health Boards by age band, Numbers"]
["Table C2.2: UK Armed Forces personnel and entitled civilian personnel DMS registrations, registered to Local Area Authorities by age band","Table C2.2: UK Armed Forces personnel and entitled civilian personnel DMS registrations, registered to Local Area Authorities by age band, Numbers"]
["Table C2.3: UK Armed Forces personnel DMS registrations, registered to Local Area Authorities by age band","Table C2.3: UK Armed Forces personnel DMS registrations, registered to Local Area Authorities by age band, Numbers"]
["Table C2.4: Entitled civilian personnel DMS registrations, registered to Local Area Authorities by age band","Table C2.4: Entitled civilian personnel DMS registrations, registered to Local Area Authorities by age band, Numbers"]
["Table C2.5: UK Armed Forces personnel and entitled civilian personnel DMS registrations, registered to Local Area Authorities by gender","Table C2.5: UK Armed Forces personnel and entitled civilian personnel DMS registrations, registered to Local Area Authorities by gender, Numbers"]
["Table C2.6: UK Armed Forces males and entitled civilian males DMS registrations, registered to Local Area Authorities by age band","Table C2.6: UK Armed Forces males and entitled civilian males DMS registrations, registered to Local Area Authorities by age band, Numbers"]
["Table C2.7: UK Armed Forces females and entitled civilian females DMS registrations, registered to Local Area Authorities by age band","Table C2.7: UK Armed Forces females and entitled civilian females DMS registrations, registered to Local Area Authorities by age band, Numbers"]
["Table D1.2: UK Armed Forces personnel and entitled civilian personnel DMS registrations, registered to Health and Social Care Partnerships & Council Areas by age band","Table D1.2: UK Armed Forces personnel and entitled civilian personnel DMS registrations, registered to Health and Social Care Partnerships & Council Areas by age band, Numbers"]
["Table D1.3: UK Armed Forces personnel DMS registrations, registered to Health and Social Care Partnerships & Council Areas by age band","Table D1.3: UK Armed Forces personnel DMS registrations, registered to Health and Social Care Partnerships & Council Areas by age band, Numbers"]
["Table D1.4: Entitled civilian personnel DMS registrations, registered to Health and Social Care Partnerships & Council Areas by age band","Table D1.4: Entitled civilian personnel DMS registrations, registered to Health and Social Care Partnerships & Council Areas by age band, Numbers"]
["Table D1.5: UK Armed Forces personnel and entitled civilian personnel DMS registrations, registered to Health and Social Care Partnerships & Council Areas by gender","Table D1.5: UK Armed Forces personnel and entitled civilian personnel DMS registrations, registered to Health and Social Care Partnerships & Council Areas by gender, Numbers"]
["Table D1.6: UK Armed Forces males and entitled civilian males DMS registrations, registered to Health and Social Care Partnerships & Council Areas by age band","Table D1.6: UK Armed Forces males and entitled civilian males DMS registrations, registered to Health and Social Care Partnerships & Council Areas by age band, Numbers"]
["Table D1.7: UK Armed Forces females and entitled civilian females DMS registrations, registered to Health and Social Care Partnerships & Council Areas by age band","Table D1.7: UK Armed Forces females and entitled civilian females DMS registrations, registered to Health and Social Care Partnerships & Council Areas by age band, Numbers"]
["Table E1.2: UK Armed Forces personnel and entitled civilian personnel DMS registrations, registered to Local Commissioning Groups by age band","Table E1.2: UK Armed Forces personnel and entitled civilian personnel DMS registrations, registered to Local Commissioning Groups by age band, Numbers"]
["Table E1.3: UK Armed Forces personnel DMS registrations, registered to Local Commissioning Groups by age band","Table E1.3: UK Armed Forces personnel DMS registrations, registered to Local Commissioning Groups by age band, Numbers"]
["Table E1.4: Entitled civilian personnel DMS registrations, registered to Local Commissioning Groups by age band","Table E1.4: Entitled civilian personnel DMS registrations, registered to Local Commissioning Groups by age band, Numbers"]
["Table E1.5: UK Armed Forces personnel and entitled civilian personnel DMS registrations, registered to Local Commissioning Groups by gender","Table E1.5: UK Armed Forces personnel and entitled civilian personnel DMS registrations, registered to Local Commissioning Groups by gender, Numbers"]
["Table E1.6: UK Armed Forces males and entitled civilian males DMS registrations, registered to Local Commissioning Groups by age band","Table E1.6: UK Armed Forces males and entitled civilian males DMS registrations, registered to Local Commissioning Groups by age band, Numbers"]
["Table E1.7: UK Armed Forces females and entitled civilian females DMS registrations, registered to Local Commissioning Groups by age band","Table E1.7: UK Armed Forces females and entitled civilian females DMS registrations, registered to Local Commissioning Groups by age band, Numbers"]
["Table E2.2: UK Armed Forces personnel and entitled civilian personnel DMS registrations, registered to District Council Areas by age band","Table E2.2: UK Armed Forces personnel and entitled civilian personnel DMS registrations, registered to District Council Areas by age band, Numbers"]
["Table E2.3: UK Armed Forces personnel DMS registrations, registered to District Council Areas by age band","Table E2.3: UK Armed Forces personnel DMS registrations, registered to District Council Areas by age band, Numbers"]
["Table E2.4: Entitled civilian personnel DMS registrations, registered to District Council Areas by age band","Table E2.4: Entitled civilian personnel DMS registrations, registered to District Council Areas by age band, Numbers"]
["Table E2.5: UK Armed Forces personnel and entitled civilian personnel DMS registrations, registered to District Council Areas by gender","Table E2.5: UK Armed Forces personnel and entitled civilian personnel DMS registrations, registered to District Council Areas by gender, Numbers"]
["Table E2.6: UK Armed Forces males and entitled civilian males DMS registrations, registered to District Council Areas by age band","Table E2.6: UK Armed Forces males and entitled civilian males DMS registrations, registered to District Council Areas by age band, Numbers"]
["Table E2.7: UK Armed Forces females and entitled civilian females DMS registrations, registered to District Council Areas by age band","Table E2.7: UK Armed Forces females and entitled civilian females DMS registrations, registered to District Council Areas by age band, Numbers"]
["Figure G1: UK Armed Forces and entitled civilian personnel DMS registrations, by registration location",{"$f":"A64&$B$3&$C$3&$C$4&$C$5","v":"Figure G1: UK Armed Forces and entitled civilian personnel DMS registrations, by registration location, Numbers and Percentages"}]
["Figure G2: UK Armed Forces DMS registrations, by country and quarter","Figure G2: UK Armed Forces DMS registrations, by country and quarter, Numbers"]
["Figure G3: UK Armed Forces DMS registrations, by gender and age band","Figure G3: UK Armed Forces DMS registrations, by gender and age band, Numbers"]
["Figure G4: Entitled civilian DMS registrations, by country and quarter","Figure G4: Entitled civilian DMS registrations, by country and quarter, Numbers"]
["Figure G5: Entitled civilian DMS registrations, by gender and age band","Figure G5: Entitled civilian DMS registrations, by gender and age band, Numbers"]
["Figure G6: UK Armed Forces and entitled civilian England DMS registrations",{"$f":"A69&$B$3&$C$3&$C$4&$C$5","v":"Figure G6: UK Armed Forces and entitled civilian England DMS registrations, Numbers and Percentages"}]
["Figure G7: UK Armed Forces and entitled civilian Wales DMS registrations",{"$f":"A70&$B$3&$C$3&$C$4&$C$5","v":"Figure G7: UK Armed Forces and entitled civilian Wales DMS registrations, Numbers and Percentages"}]
["Figure G8: UK Armed Forces and entitled civilian Scotland DMS registrations",{"$f":"A71&$B$3&$C$3&$C$4&$C$5","v":"Figure G8: UK Armed Forces and entitled civilian Scotland DMS registrations, Numbers and Percentages"}]
["ANNEX H: DPHC region mapping of CCGs",{"$f":"A72","v":"ANNEX H: DPHC region mapping of CCGs"}]
["ANNEX I: MOD UK medical centres offering primary healthcare to entitled civilians",{"$f":"A73","v":"ANNEX I: MOD UK medical centres offering primary healthcare to entitled civilians"}]

{"sheet":"Contents","index":1,"n_rows":104,"n_cols":13,"rows_kept":104,"cut":false,"hidden":false,"merged":[[26,1,26,19],[27,1,27,19],[28,1,28,16],[29,1,29,16],[30,1,30,19],[19,1,19,17],[20,1,20,16],[21,1,21,19],[22,1,22,19],[23,1,23,19],[4,1,4,19],[12,1,12,15],[13,1,13,15],[17,1,17,19],[18,1,18,19],[5,1,5,19],[6,1,6,19],[31,1,31,19],[32,1,32,19],[42,1,42,18],[41,1,41,18],[40,1,40,18],[39,1,39,18],[38,1,38,18],[37,1,37,18],[46,1,46,19],[45,1,45,19],[51,1,51,19],[50,1,50,19],[49,1,49,19],[48,1,48,19],[47,1,47,19],[58,1,58,19],[55,1,55,19],[56,1,56,19],[75,1,75,19],[74,1,74,19],[66,1,66,19],[65,1,65,19],[61,1,61,19],[60,1,60,19],[59,1,59,19],[71,1,71,19],[70,1,70,18],[69,1,69,19],[68,1,68,18],[67,1,67,19],[57,1,57,19],[89,1,89,19],[88,1,88,19],[87,1,87,19],[86,1,86,19],[85,1,85,19],[77,1,77,19],[76,1,76,19],[84,1,84,19],[83,1,83,19],[80,1,80,19],[79,1,79,19],[78,1,78,19],[97,1,97,19],[98,1,98,19],[99,1,99,19],[92,1,92,19],[93,1,93,19],[94,1,94,19],[95,1,95,19],[96,1,96,19]]}
[null,"Biannual NHS Commissioning Population Statistics: based on military and entitled civilian medical patient registrations"]
[]
[null,"24 May 2018 Edition",null,null,null,null,null,null,null,null,null,null,"https://www.gov.uk/government/organisations/ministry-of-defence/about/statistics"]
[]
[null,"This biannual Official Statistic provides summary statistics on the number of serving UK Armed Forces personnel and entitled civilian personnel with a Defence Medical Services (DMS) registration. This report uses a snapshot of data as at 1 April 2018.  Reports are released eight weeks after the reporting point. "]
[null,"Defence Statistics Health have reduced the frequency of the report from quarterly to biannual following a consultation. Further details about this consultation can be found here:"]
[null,"https://www.gov.uk/government/consultations/proposed-reduced-frequency-of-the-quarterly-nhs-commissioning-population-statistics-official-statistic"]
[null,"Contents"]
[]
[null,"Background"]
[null,"Notes and Definitions"]
[null,"Annex A - All"]
[null,"Table A1.1: UK Armed Forces and entitled civilian personnel DMS registrations, by registration location, Numbers"]
[null,"Table A1.2: UK Armed Forces and entitled civilian personnel DMS registrations,  registration location by Service, Numbers"]
[]
[null,"Annex B - England"]
[null,"Annex B1 - England, by NHS Clinical Commissioning Group"]
[null,"Table B1.1: UK Armed Forces personnel and entitled civilian personnel DMS registrations, registered to NHS Clinical Commissioning Groups by Service, Numbers"]
[null,"Table B1.2: UK Armed Forces personnel and entitled civilian personnel DMS registrations, registered to NHS Clinical Commissioning Groups by age band, Numbers"]
[null,"Table B1.3: UK Armed Forces personnel DMS registrations, registered to NHS Clinical Commissioning Groups by age band, Numbers"]
[null,"Table B1.4: Entitled civilian personnel DMS registrations, registered to NHS Clinical Commissioning Groups by age band, Numbers"]
[null,"Table B1.5: UK Armed Forces personnel and entitled civilian personnel DMS registrations, registered to NHS Clinical Commissioning Groups by gender, Numbers"]
[null,"Table B1.6: UK Armed Forces males and entitled civilian males DMS registrations, registered to NHS Clinical Commissioning Groups by age band, Numbers"]
[null,"Table B1.7: UK Armed Forces females and entitled civilian females DMS registrations, registered to NHS Clinical Commissioning Groups by age band, Numbers"]
[]
[null,"Annex B2 - England, by Regions and Local Authorities"]
[null,"Table B2.1: UK Armed Forces personnel and entitled civilian personnel DMS registrations, registered to regions & Local Area Authorities by Service, Numbers"]
[null,"Table B2.2: UK Armed Forces personnel and entitled civilian personnel DMS registrations, registered to regions & Local Area Authorities by age band, Numbers"]
[null,"Table B2.3: UK Armed Forces personnel DMS registrations, registered to regions & Local Area Authorities by age band, Numbers"]
[null,"Table B2.4: Entitled civilian personnel DMS registrations, registered to regions & Local Area Authorities by age band, Numbers"]
[null,"Table B2.5: UK Armed Forces personnel and entitled civilian personnel DMS registrations, registered to regions & Local Area Authorities by gender, Numbers"]
[null,"Table B2.6: UK Armed Forces males and entitled civilian males DMS registrations, registered to regions & Local Area Authorities by age band, Numbers"]
[null,"Table B2.7: UK Armed Forces females and entitled civilian females DMS registrations, registered to regions & Local Area Authorities by age band, Numbers"]
[]
[null,"Annex C - Wales"]
[null,"Annex C1 - Wales, by Local Health Boards"]
[null,"Table C1.1: UK Armed Forces personnel and entitled civilian personnel DMS registrations, registered to Local Health Boards by Service, Numbers"]
[null,"Table C1.2: UK Armed Forces personnel and entitled civilian personnel DMS registrations, registered to Local Health Boards by age band, Numbers"]
[null,"Table C1.3: UK Armed Forces personnel DMS registrations, registered to Local Health Boards by age band, Numbers"]
[null,"Table C1.4: Entitled civilian personnel DMS registrations, registered to Local Health Boards by age band, Numbers"]
[null,"Table C1.5: UK Armed Forces personnel and entitled civilian personnel DMS registrations, registered to Local Health Boards by gender, Numbers"]
[null,"Table C1.6: UK Armed Forces males and entitled civilian males DMS registrations, registered to Local Health Boards by age band, Numbers"]
[null,"Table C1.7: UK Armed Forces females and entitled civilian females DMS registrations, registered to Local Health Boards by age band, Numbers"]
[]
[null,"Annex C2 - Wales, by Local Authorities"]
[null,"Table C2.1: UK Armed Forces personnel and entitled civilian personnel DMS registrations, registered to Local Area Authorities by Service, Numbers"]
[null,"Table C2.2: UK Armed Forces personnel and entitled civilian personnel DMS registrations, registered to Local Area Authorities by age band, Numbers"]
[null,"Table C2.3: UK Armed Forces personnel DMS registrations, registered to Local Area Authorities by age band, Numbers"]
[null,"Table C2.4: Entitled civilian personnel DMS registrations, registered to Local Area Authorities by age band, Numbers"]
[null,"Table C2.5: UK Armed Forces personnel and entitled civilian personnel DMS registrations, registered to Local Area Authorities by gender, Numbers"]
[null,"Table C2.6: UK Armed Forces males and entitled civilian males DMS registrations, registered to Local Area Authorities by age band, Numbers"]
[null,"Table C2.7: UK Armed Forces females and entitled civilian females DMS registrations, registered to Local Area Authorities by age band, Numbers"]
[]
[null,"Annex D Scotland"]
[null,"Annex D1 - Scotland, by Health and Social Care Partnerships & Council Areas"]
[null,"Table D1.1: UK Armed Forces personnel and entitled civilian personnel DMS registrations, registered to Health and Social Care Partnerships & Council Areas by Service, Numbers"]
[null,"Table D1.2: UK Armed Forces personnel and entitled civilian personnel DMS registrations, registered to Health and Social Care Partnerships & Council Areas by age band, Numbers"]
[null,"Table D1.3: UK Armed Forces personnel DMS registrations, registered to Health and Social Care Partnerships & Council Areas by age band, Numbers"]
[null,"Table D1.4: Entitled civilian personnel DMS registrations, registered to Health and Social Care Partnerships & Council Areas by age band, Numbers"]
[null,"Table D1.5: UK Armed Forces personnel and entitled civilian personnel DMS registrations, registered to Health and Social Care Partnerships & Council Areas by gender, Numbers"]
[null,"Table D1.6: UK Armed Forces males and entitled civilian males DMS registrations, registered to Health and Social Care Partnerships & Council Areas by age band, Numbers"]
[null,"Table D1.7: UK Armed Forces females and entitled civilian females DMS registrations, registered to Health and Social Care Partnerships & Council Areas by age band, Numbers"]
[]
[null,"Annex E - Northern Ireland"]
[null,"Annex E1 - Northern Ireland, by Local Commissioning Groups"]
[null,"Table E1.1: UK Armed Forces personnel and entitled civilian personnel DMS registrations, registered to Local Commissioning Groups by Service, Numbers"]
[null,"Table E1.2: UK Armed Forces personnel and entitled civilian personnel DMS registrations, registered to Local Commissioning Groups by age band, Numbers"]
[null,"Table E1.3: UK Armed Forces personnel DMS registrations, registered to Local Commissioning Groups by age band, Numbers"]
[null,"Table E1.4: Entitled civilian personnel DMS registrations, registered to Local Commissioning Groups by age band, Numbers"]
[null,"Table E1.5: UK Armed Forces personnel and entitled civilian personnel DMS registrations, registered to Local Commissioning Groups by gender, Numbers"]
[null,"Table E1.6: UK Armed Forces males and entitled civilian males DMS registrations, registered to Local Commissioning Groups by age band, Numbers"]
[null,"Table E1.7: UK Armed Forces females and entitled civilian females DMS registrations, registered to Local Commissioning Groups by age band, Numbers"]
[]
[null,"Annex E2 - Northern Ireland, by District Council Areas"]
[null,"Table E2.1: UK Armed Forces personnel and entitled civilian personnel DMS registrations, registered to District Council Areas by Service, Numbers"]
[null,"Table E2.2: UK Armed Forces personnel and entitled civilian personnel DMS registrations, registered to District Council Areas by age band, Numbers"]
[null,"Table E2.3: UK Armed Forces personnel DMS registrations, registered to District Council Areas by age band, Numbers"]
[null,"Table E2.4: Entitled civilian personnel DMS registrations, registered to District Council Areas by age band, Numbers"]
[null,"Table E2.5: UK Armed Forces personnel and entitled civilian personnel DMS registrations, registered to District Council Areas by gender, Numbers"]
[null,"Table E2.6: UK Armed Forces males and entitled civilian males DMS registrations, registered to District Council Areas by age band, Numbers"]
[null,"Table E2.7: UK Armed Forces females and entitled civilian females DMS registrations, registered to District Council Areas by age band, Numbers"]
[]
[null,"Annex F - Defence Primary Healthcare Regions"]
[null,"Table F1.1: UK Armed Forces personnel and entitled civilian personnel DMS registrations, registered to Defence Primary Healthcare regions by Service, Numbers"]
[null,"Table F1.2: UK Armed Forces personnel and entitled civilian personnel DMS registrations, registered to Defence Primary Healthcare regions by age band, Numbers"]
[null,"Table F1.3: UK Armed Forces personnel DMS registrations, registered to Defence Primary Healthcare regions by age band, Numbers"]
[null,"Table F1.4: Entitled civilian personnel DMS registrations, registered to Defence Primary Healthcare regions by age band, Numbers"]
[null,"Table F1.5: UK Armed Forces personnel and entitled civilian personnel DMS registrations, registered to Defence Primary Healthcare regions by gender, Numbers"]
[null,"Table F1.6: UK Armed Forces males and entitled civilian males DMS registrations, registered to Defence Primary Healthcare regions by age band, Numbers"]
[null,"Table F1.7: UK Armed Forces females and entitled civilian females DMS registrations, registered to Defence Primary Healthcare regions by age band, Numbers"]
[]
[null,"Annex G - Report figures"]
[null,"Figure G1: UK Armed Forces and entitled civilian personnel DMS registrations, by registration location, Numbers and Percentages"]
[null,"Figure G2: UK Armed Forces DMS registrations, by country and quarter, Numbers"]
[null,"Figure G3: UK Armed Forces DMS registrations, by gender and age band, Numbers"]
[null,"Figure G4: Entitled civilian DMS registrations, by country and quarter, Numbers"]
[null,"Figure G5: Entitled civilian DMS registrations, by gender and age band, Numbers"]
[null,"Figure G6: UK Armed Forces and entitled civilian England DMS registrations, Numbers and Percentages"]
[null,"Figure G7: UK Armed Forces and entitled civilian Wales DMS registrations, Numbers and Percentages"]
[null,"Figure G8: UK Armed Forces and entitled civilian Scotland DMS registrations, Numbers and Percentages"]
[]
[null,"ANNEX H: DPHC region mapping of CCGs"]
[]
[null,"ANNEX I: MOD UK medical centres offering primary healthcare to entitled civilians"]

{"sheet":"Notes and definitions","index":2,"n_rows":47,"n_cols":4,"rows_kept":47,"cut":false,"hidden":false,"merged":[[32,1,32,12],[20,1,20,12],[10,1,10,12],[15,1,15,12],[36,1,37,12]]}
[null,"Biannual NHS Commissioning Population Statistics: based on military and entitled civilian medical patient registrations"]
[]
[null,"24 May 2018 Edition"]
[]
[null,"Notes and Definitions"]
[]
[null,"Definitions"]
[]
[null,"\"Unknown\" includes data quality issues and data management practice registrations."]
[null,"\"Naval Service\" includes Royal Navy and Royal Marines"]
[null,"Where possible, UK Armed Forces patients registered in other overseas locations are allocated back to their last known UK, Germany or Cyprus practice in the last 12 months. No civilian patients registered in other overseas locations are allocated back to previous regions."]
[]
[]
[null,"Data Sources and Quality"]
[]
[null,"Please see our Background Quality Report on GOV.UK for more detail on the data sources, data quality and processes carried out to produce these statistics:"]
[null,"https://www.gov.uk/government/statistics/defence-personnel-nhs-commissioning-quarterly-statistics-financial-year-201819"]
[]
[null,"Statistical Disclosure Control"]
[]
[null,"The tables in this report have been scrutinised to ensure individual identities have not been revealed inadvertently. In line with Joint Service Publication 200 (March 2016), figures have been rounded to the nearest 10 in keeping with the ONS Dissemination of Health Statistics: Confidentiality Guidance. All numbers five or fewer have been suppressed and presented as ‘~’. Rounding is desirable both as a means of disclosure control and to improve the clarity of outputs and convey appropriate levels of precision to users. Totals and sub-totals have been rounded separately and so may not equal the sums of their rounded parts. Numbers ending in “5” have been rounded to the nearest multiple of 20 to prevent systematic bias."]
[]
[null," Due to rounding, please note that totals may not equal the sum of their parts."]
[]
[null,"Symbols"]
[]
[null," ~     denotes 5 or fewer"]
[null," +/-   indicates percentage changes in figures over the last six months:"]
[null," +     indicates there has been between 5% and 10% increase"]
[null," ++   indicates there has been a greater than 10% increase"]
[null," -      indicates there has been between 5% and 10% decrease"]
[null," --     indicates there has been a greater than 10% decrease"]
[null,"Percentage changes have not been shown where population figures were below 20 in both the current and previous time period. This is because a difference of a small number of people can show a large percentage change, creating a false sense of change over the three month period."]
[]
[null,"Contact Us:"]
[]
[null,"Defence Statistics welcome feedback on our statistical products. If you have any comments or questions about this publication or about the statistics produced by Defence Statistics in general, you can contact us as follows:"]
[]
[]
[null,"Defence Statistics Health"]
[]
[null,"Tel: ",null,"03067984423"]
[]
[null,"Email: ",null,"DefStrat-Stat-Health-PQ-FOI@mod.gov.uk"]
[]
[null,"Visit our website at:"]
[null,"www.gov.uk/government/organisations/ministry-of-defence/about/statistics"]

{"sheet":"Table A1.1","index":3,"n_rows":27,"n_cols":10,"rows_kept":27,"cut":false,"hidden":false,"merged":[[6,2,6,4],[25,1,25,19],[7,1,7,4],[24,1,24,19],[26,1,26,19],[15,1,15,4]]}
[null,"Annex A - All"]
[]
[null,"Table A1.1: UK Armed Forces and entitled civilian personnel DMS registrations, by registration location, Numbers"]
[null,"1 April 2018"]
[null,"Defence Statistics Health"]
[]
[null,null,"Return to contents"]
[null,"Location",null,null,null,"All persons","UK Armed Forces","+/-","Civilian","+/-"]
[null,"ALL",null,null,null,173660,145327,"",28333,""]
[null,null,"UNITED KINGDOM",null,null,152333,137495,"",14838,""]
[null,null,null,"of which:"]
[null,null,null,null,"England",137613,123873,"",13740,""]
[null,null,null,null,"Wales",1408,1180,"",228,"-"]
[null,null,null,null,"Scotland",10830,10351,"",479,"-"]
[null,null,null,null,"Northern Ireland",2482,2091,"",391,"-"]
[null,"OTHER",null,null,null,21327,7832,"",13495,""]
[null,null,null,"of which:"]
[null,null,null,null,"Germany",9905,4215,"",5690,""]
[null,null,null,null,"Cyprus",6506,2205,"-",4301,""]
[null,null,null,null,"Other overseas",3794,474,"++",3320,""]
[null,null,null,null,"Reserve Practices",143,138,"- -",5,""]
[null,null,null,null,"Unknown3",979,800,"",179,"++"]
[]
[null,"Source: DMICP Data Warehouse"]
[null,"1. The presence of  +/- indicates percentage changes in figures over the last six months.  + indicates there has been a 5% to 10% increase and - indicates there has been between a 5% to 10% decrease.  ++ indicates a greater than 10% increase and -- indicates a greater than 10% decrease."]
[null,"2. Where possible, UK Armed Forces patients registered in other overseas locations are allocated back to their last known UK, Germany or Cyprus practice in the last 12 months. No entitled civilian patients registered in other overseas locations are allocated back to previous regions."]
[null,"3. Unknown includes data quality issues and data management practice registrations."]

{"sheet":"Table A1.2","index":4,"n_rows":26,"n_cols":13,"rows_kept":26,"cut":false,"hidden":false,"merged":[[7,1,7,4],[24,1,24,15],[25,1,25,15],[6,2,6,4]]}
[null,"Annex A - All"]
[]
[null,"Table A1.2: UK Armed Forces and entitled civilian personnel DMS registrations,  registration location by Service, Numbers"]
[null,"1 April 2018"]
[null," Defence Statistics Health"]
[]
[null,null,"Return to contents"]
[null,"Location",null,null,null,"All persons","All UK Armed Forces","+/-","Naval Service","Army","Royal Air Force","Civilian","+/-"]
[null,"ALL",null,null,null,173660,145327,"",31908,80546,32873,28333,""]
[null,null,"UNITED KINGDOM",null,null,152333,137495,"",31247,74847,31401,14838,""]
[null,null,null,"of which:"]
[null,null,null,null,"England",137613,123873,"",26437,68082,29354,13740,""]
[null,null,null,null,"Wales",1408,1180,"",27,901,252,228,"-"]
[null,null,null,null,"Scotland",10830,10351,"",4763,3862,1726,479,"-"]
[null,null,null,null,"Northern Ireland",2482,2091,"",20,2002,69,391,"-"]
[null,null,"OTHER",null,null,21327,7832,"",661,5699,1472,13495,""]
[null,null,null,"of which:"]
[null,null,null,null,"Germany",9905,4215,"",202,3626,387,5690,""]
[null,null,null,null,"Cyprus",6506,2205,"-",27,1334,844,4301,""]
[null,null,null,null,"Other overseas",3794,474,"++",18,374,82,3320,""]
[null,null,null,null,"Reserve Practices",143,138,"- -",42,94,2,5,""]
[null,null,null,null,"Unknown2",979,800,"",372,271,157,179,"++"]
[]
[null,"Source: DMICP Data Warehouse"]
[null,"1. The presence of  +/- indicates percentage changes in figures over the last six months.  + indicates there has been a 5% to 10% increase and - indicates there has been between a 5% to 10% decrease.  ++ indicates a greater than 10% increase and -- indicates a greater than 10% decrease."]
[null,"2. Unknown includes data quality issues and data management practice registrations."]

{"sheet":"Table B1.1","index":5,"n_rows":97,"n_cols":15,"rows_kept":97,"cut":false,"hidden":false,"merged":[[7,1,7,4],[95,1,95,17],[96,1,96,17],[94,1,94,15],[6,2,6,4]]}
[null,"Annex B1 - England, by NHS Clinical Commissioning Group"]
[]
[null,"Table B1.1: UK Armed Forces personnel and entitled civilian personnel DMS registrations, registered to NHS Clinical Commissioning Groups by Service, Numbers"]
[null,"1 April 2018"]
[null,"Defence Statistics Health"]
[]
[null,null,"Return to contents"]
[null,"Area Name",null,null,null,"Area Code","Area Code","All Persons","All UK Armed Forces","+/-","Naval Service","Army","RAF","Civilian","+/-"]
[null,"ENGLAND                            ",null,null,null,"E92000001",null,137610,123870,"",26440,68080,29350,13740,""]
[null,null,"NORTH OF ENGLAND                        ",null,null,"E40000001",null,17620,16060,"",260,13440,2360,1560,""]
[null,null,null,"CHESHIRE, WARRINGTON AND WIRRAL",null,"E39000001",null,610,610,"",30,570,10,0,""]
[null,null,null,null,"NHS West Cheshire","E38000196","02F",610,610,"",30,570,10,0,""]
[null,null,null,"LANCASHIRE",null,"E39000004",null,920,920,"","~",920,"~",0,""]
[null,null,null,null,"NHS Fylde & Wyre","E38000060","02M",920,920,"","~",910,"~",0,""]
[null,null,null,null,"NHS Greater Preston","E38000065","01E",10,10,"",0,10,0,0,""]
[null,null,null,"CUMBRIA, NORTHUMBERLAND, TYNE AND WEAR",null,"E39000006",null,1450,1450,"",160,690,610,0,""]
[null,null,null,null,"NHS Cumbria","E38000041","01H",200,200,"++",140,0,50,0,""]
[null,null,null,null,"NHS Northumberland","E38000130","00L",1260,1260,"",10,690,560,0,""]
[null,null,null,"NORTH YORKSHIRE AND HUMBER",null,"E39000007",null,14640,13070,"",70,11270,1730,1560,""]
[null,null,null,null,"NHS East Riding of Yorkshire","E38000052","02Y",410,410,"-",40,350,30,0,""]
[null,null,null,null,"NHS Hambleton, Richmondshire and Whitby","E38000069","03D",10030,8650,"",10,7240,1400,1380,""]
[null,null,null,null,"NHS Harrogate and Rural District","E38000073","03E",2740,2740,"++",10,2730,"~",0,""]
[null,null,null,null,"NHS Scarborough and Ryedale","E38000145","03M",90,90,"-",0,0,90,0,""]
[null,null,null,null,"NHS Vale of York","E38000188","03Q",1360,1180,"",10,950,220,180,""]
[null,null,"MIDLANDS AND EAST OF ENGLAND",null,null,"E40000002",null,32880,29360,"",1310,14040,14010,3520,""]
[null,null,null,"ARDEN, HEREFORDSHIRE AND WORCESTERSHIRE",null,"E39000010",null,820,820,"","~",810,10,"~",""]
[null,null,null,null,"NHS Coventry and Rugby","E38000038","05A",640,640,"+","~",640,"~",0,""]
[null,null,null,null,"NHS South Warwickshire","E38000164","05R",190,180,"-","~",180,10,"~",""]
[null,null,null,"BIRMINGHAM AND THE BLACK COUNTRY",null,"E39000011",null,710,710,"+",140,400,170,0,""]
[null,null,null,null,"NHS Birmingham CrossCity","E38000012","13P",710,710,"+",140,400,170,0,""]
[null,null,null,"DERBYSHIRE AND NOTTINGHAMSHIRE",null,"E39000012",null,830,830,"","~",820,10,0,""]
[null,null,null,null,"NHS Nottingham West","E38000134","04M",830,830,"","~",820,10,0,""]
[null,null,null,"EAST ANGLIA",null,"E39000013",null,8880,7440,"",120,2650,4660,1440,""]
[null,null,null,null,"NHS Cambridgeshire and Peterborough","E38000026","06H",2270,1810,"",40,440,1320,470,"-"]
[null,null,null,null,"NHS Ipswich and East Suffolk","E38000086","06L",3240,3220,"",10,1820,1390,10,""]
[null,null,null,null,"NHS South Norfolk","E38000159","06Y",370,370,"",0,370,0,0,""]
[null,null,null,null,"NHS West Norfolk","E38000203","07J",3000,2030,"",70,20,1950,960,""]
[null,null,null,"ESSEX",null,"E39000014",null,3900,3900,"",20,3830,60,0,""]
[null,null,null,null,"NHS North East Essex","E38000117","06T",3180,3180,"",20,3110,60,0,""]
[null,null,null,null,"NHS West Essex","E38000197","07H",720,720,"",0,720,0,0,""]
[null,null,null,"HERTFORDSHIRE AND THE SOUTH MIDLANDS",null,"E39000015",null,2360,2360,"",660,900,800,10,""]
[null,null,null,null,"NHS Bedfordshire","E38000010","06F",1150,1150,"",120,590,440,"~",""]
[null,null,null,null,"NHS Herts Valleys","E38000079","06N",1210,1210,"",540,310,360,10,""]
[null,null,null,"LEICESTERSHIRE AND LINCOLNSHIRE",null,"E39000016",null,9570,8190,"",140,1930,6120,1380,""]
[null,null,null,null,"NHS East Leicestershire and Rutland","E38000051","03W",2250,1620,"+",0,1600,20,630,""]
[null,null,null,null,"NHS Lincolnshire East","E38000099","03T",2260,2060,"","~",10,2050,200,""]
[null,null,null,null,"NHS Lincolnshire West","E38000100","04D",2760,2760,"",50,50,2650,"~",""]
[null,null,null,null,"NHS South West Lincolnshire ","E38000165","04Q",2300,1750,"",80,270,1400,550,"-"]
[null,null,null,"SHROPSHIRE AND STAFFORDSHIRE",null,"E39000017",null,5800,5110,"",230,2700,2180,690,""]
[null,null,null,null,"NHS Shropshire","E38000147","05N",3460,2770,"",80,870,1820,690,""]
[null,null,null,null,"NHS South East Staffs and Seisdon and Peninsular","E38000153","05Q",760,760,"-",140,470,150,0,""]
[null,null,null,null,"NHS Stafford and Surrounds","E38000173","05V",1580,1580,"","~",1370,210,0,""]
[null,null,"LONDON",null,null,"E40000003",null,5000,4530,"",380,3100,1050,460,""]
[null,null,null,"LONDON",null,"E39000018",null,5000,4530,"",380,3100,1050,460,""]
[null,null,null,null,"NHS Central London (Westminster)","E38000031","09A",380,380,"-",0,380,0,0,""]
[null,null,null,null,"NHS Hillingdon","E38000082","08G",1260,800,"",10,120,670,460,""]
[null,null,null,null,"NHS Hounslow","E38000084","07Y",520,520,"",0,520,0,0,""]
[null,null,null,null,"NHS Greenwich","E38000066","08A",800,800,"",0,800,"~",0,""]
[null,null,null,null,"NHS Lambeth","E38000092","08K",2030,2030,"",370,1290,370,"~",""]
[null,null,"SOUTH OF ENGLAND",null,null,"E40000004",null,82120,73920,"",24490,37500,11940,8200,""]
[null,null,null,"BATH, GLOUCESTERSHIRE, SWINDON AND WILTSHIRE",null,"E39000019",null,23750,19130,"",480,17820,820,4620,"-"]
[null,null,null,null,"NHS Gloucestershire","E38000062","11M",2100,2100,"",70,1910,130,0,""]
[null,null,null,null,"NHS Swindon","E38000181","12D",1080,1080,"++",200,700,190,0,""]
[null,null,null,null,"NHS Wiltshire","E38000206","99N",20560,15940,"",220,15210,510,4620,"-"]
[null,null,null,"BRISTOL, NORTH SOMERSET, SOMERSET AND SOUTH GLOS",null,"E39000020",null,4600,4600,"",3170,940,480,"~",""]
[null,null,null,null,"NHS Somerset","E38000150","11X",3280,3280,"",2720,540,20,"~",""]
[null,null,null,null,"NHS South Gloucestershire","E38000155","12A",1310,1310,"",440,400,470,0,""]
[null,null,null,"DEVON, CORNWALL AND ISLES OF SCILLY",null,"E39000021",null,12110,12050,"",10860,960,240,60,"++"]
[null,null,null,null,"NHS Kernow","E38000089","11N",3130,3120,"+",2850,110,160,"~",""]
[null,null,null,null,"NHS North, East, West Devon","E38000129","99P",8570,8510,"",7590,850,70,60,"++"]
[null,null,null,null,"NHS South Devon and Torbay","E38000152","99Q",420,420,"- -",420,"~","~",0,""]
[null,null,null,"KENT AND MEDWAY",null,"E39000022",null,2480,2480,"",20,2410,50,"~",""]
[null,null,null,null,"NHS Medway","E38000104","09W",530,530,"+",0,530,"~",0,""]
[null,null,null,null,"NHS South Kent Coast","E38000156","10A",1320,1320,"",20,1260,50,0,""]
[null,null,null,null,"NHS West Kent","E38000199","99J",620,620,"",0,620,0,"~",""]
[null,null,null,"SURREY AND SUSSEX",null,"E39000023",null,3920,3260,"- -",10,3170,70,660,""]
[null,null,null,null,"NHS Coastal West Sussex","E38000213","09G",950,950,"",0,930,20,"~",""]
[null,null,null,null,"NHS North West Surrey","E38000128","09Y",2380,1720,"- -",10,1660,50,660,""]
[null,null,null,null,"NHS Surrey Heath","E38000178","10C",580,580,"-","~",580,"~",0,""]
[null,null,null,"THAMES VALLEY",null,"E39000024",null,15890,13110,"",80,4850,8180,2780,""]
[null,null,null,null,"NHS Aylesbury Vale","E38000003","10Y",3550,3010,"",40,60,2920,540,""]
[null,null,null,null,"NHS Bracknell and Ascot","E38000017","10G",1770,1240,"","~",1230,"~",540,"-"]
[null,null,null,null,"NHS Newbury and District","E38000110","10M",330,330,"",10,300,10,0,""]
[null,null,null,null,"NHS Oxfordshire","E38000136","10Q",9270,7570,"",20,2290,5250,1700,""]
[null,null,null,null,"NHS Windsor, Ascot and Maidenhead","E38000207","11C",970,970,"","~",960,0,"~",""]
[null,null,null,"WESSEX",null,"E39000025",null,19370,19300,"",9860,7350,2080,80,"++"]
[null,null,null,null,"NHS Fareham and Gosport","E38000059","10K",3410,3410,"",3150,130,130,"~",""]
[null,null,null,null,"NHS North East Hampshire and Farnham","E38000118","99M",4700,4700,"",20,4660,30,"~",""]
[null,null,null,null,"NHS North Hampshire","E38000120","10J",1690,1690,"",10,60,1620,"~",""]
[null,null,null,null,"NHS Portsmouth","E38000137","10R",6720,6660,"",6570,70,20,70,"++"]
[null,null,null,null,"NHS West Hampshire","E38000198","11A",2850,2840,"",120,2430,290,"~",""]
[]
[]
[null,"Source: DMICP Data Warehouse"]
[null,"1. In line with Joint Service Publication 200, numbers 5 or fewer have been supressed and presented as '~'."]
[null,"2. Due to rounding, please note that totals may not equal the sum of their parts."]
[null,"3. The presence of  +/- indicates percentage changes in figures over the last six months.  + indicates there has been a 5% to 10% increase and - indicates there has been between a 5% to 10% decrease.  ++ indicates a greater than 10% increase and -- indicates a greater than 10% decrease."]

{"sheet":"Table B1.2","index":6,"n_rows":98,"n_cols":34,"rows_kept":98,"cut":false,"hidden":false,"merged":[[6,2,6,3],[8,1,8,3],[97,1,97,20],[94,1,94,19],[95,1,95,19],[96,1,96,24]]}
[null,"Annex B1 - England, by NHS Clinical Commissioning Group"]
[]
[null,"Table B1.2: UK Armed Forces personnel and entitled civilian personnel DMS registrations, registered to NHS Clinical Commissioning Groups by age band, Numbers"]
[null,"1 April 2018"]
[null,"Defence Statistics Health"]
[]
[null,null,"Return to contents"]
[null,null,null,null,null,"NEW","OLD"]
[null,"Area Name",null,null,null,"Area Code","Area Code","All Persons","0-4","+/-","5-9","+/-","10-14","+/-","15-19","+/-","20-24","+/-","25-29","+/-","30-34","+/-","35-39","+/-","40-44","+/-","45-49","+/-","50-54","+/-","55-59","+/-","60+","+/-"]
[null,"ENGLAND                            ",null,null,null,"E92000001",null,137610,3600,"-",2700,"",1430,"",7740,"+",23570,"",29220,"",24500,"",20200,"",11700,"",7720,"",4300,"",840,"+",90,"+"]
[null,null,"NORTH OF ENGLAND                        ",null,null,"E40000001",null,17620,430,null,350,null,160,null,2260,null,3340,null,3900,null,2960,null,2160,null,1150,null,590,null,280,null,60,null,"~"]
[null,null,null,"CHESHIRE, WARRINGTON AND WIRRAL",null,"E39000001",null,610,0,null,0,null,0,null,20,null,150,null,160,null,120,null,80,null,40,null,20,null,10,null,"~",null,0]
[null,null,null,null,"NHS West Cheshire","E38000196","02F",610,0,null,0,null,0,null,20,null,150,null,160,null,120,null,80,null,40,null,20,null,10,null,"~",null,0]
[null,null,null,"LANCASHIRE",null,"E39000004",null,920,0,null,0,null,0,null,30,null,210,null,240,null,180,null,140,null,70,null,30,null,20,null,"~",null,0]
[null,null,null,null,"NHS Fylde & Wyre","E38000060","02M",920,0,null,0,null,0,null,30,null,210,null,240,null,180,null,140,null,70,null,30,null,10,null,"~",null,0]
[null,null,null,null,"NHS Greater Preston","E38000065","01E",10,0,null,0,null,0,null,0,null,0,null,0,null,0,null,"~",null,"~",null,"~",null,"~",null,0,null,0]
[null,null,null,"CUMBRIA, NORTHUMBERLAND, TYNE AND WEAR",null,"E39000006",null,1450,0,null,0,null,0,null,60,null,270,null,360,null,280,null,240,null,110,null,80,null,40,null,10,null,0]
[null,null,null,null,"NHS Cumbria ","E38000041","01H",200,0,null,0,null,0,null,0,null,10,null,40,null,40,null,50,null,20,null,20,null,10,null,"~",null,0]
[null,null,null,null,"NHS Northumberland ","E38000130","00L",1260,0,null,0,null,0,null,60,null,260,null,320,null,230,null,190,null,90,null,70,null,30,null,"~",null,0]
[null,null,null,"NORTH YORKSHIRE AND HUMBER                 ",null,"E39000007",null,14640,430,null,350,null,160,null,2150,null,2700,null,3130,null,2380,null,1700,null,930,null,450,null,210,null,40,null,"~"]
[null,null,null,null,"NHS East Riding of Yorkshire ","E38000052","02Y",410,0,null,0,null,0,null,100,null,70,null,70,null,60,null,50,null,40,null,20,null,"~",null,"~",null,0]
[null,null,null,null,"NHS Hambleton, Richmondshire and Whitby ","E38000069","03D",10030,380,null,310,null,140,null,990,null,2080,null,2290,null,1700,null,1110,null,590,null,280,null,130,null,20,null,"~"]
[null,null,null,null,"NHS Harrogate and Rural District ","E38000073","03E",2740,0,null,0,null,0,null,1040,null,360,null,500,null,360,null,290,null,130,null,50,null,10,null,"~",null,"~"]
[null,null,null,null,"NHS Scarborough and Ryedale ","E38000145","03M",90,0,null,0,null,0,null,0,null,"~",null,20,null,20,null,10,null,20,null,20,null,10,null,0,null,0]
[null,null,null,null,"NHS Vale of York ","E38000188","03Q",1360,50,null,40,null,20,null,20,null,190,null,250,null,250,null,240,null,150,null,90,null,50,null,20,null,"~"]
[null,null,"MIDLANDS AND EAST OF ENGLAND",null,null,"E40000002",null,32880,910,null,670,null,350,null,1080,null,5320,null,7090,null,5990,null,5210,null,3020,null,1970,null,1040,null,210,null,20]
[null,null,null,"ARDEN, HEREFORDSHIRE AND WORCESTERSHIRE",null,"E39000010",null,820,0,null,0,null,0,null,30,null,200,null,200,null,150,null,160,null,50,null,20,null,10,null,"~",null,0]
[null,null,null,null,"NHS Coventry and Rugby ","E38000038","05A",640,0,null,0,null,0,null,30,null,170,null,150,null,110,null,120,null,40,null,10,null,"~",null,"~",null,0]
[null,null,null,null,"NHS South Warwickshire ","E38000164","05R",190,0,null,0,null,0,null,"~",null,20,null,50,null,40,null,50,null,20,null,10,null,"~",null,"~",null,0]
[null,null,null,"BIRMINGHAM AND THE BLACK COUNTRY",null,"E39000011",null,710,0,null,0,null,0,null,10,null,100,null,160,null,160,null,120,null,80,null,40,null,40,null,10,null,"~"]
[null,null,null,null,"NHS Birmingham CrossCity ","E38000012","13P",710,0,null,0,null,0,null,10,null,100,null,160,null,160,null,120,null,80,null,40,null,40,null,10,null,"~"]
[null,null,null,"DERBYSHIRE AND NOTTINGHAMSHIRE",null,"E39000012",null,830,0,null,0,null,0,null,10,null,60,null,110,null,180,null,170,null,140,null,110,null,40,null,10,null,"~"]
[null,null,null,null,"NHS Nottingham West ","E38000134","04M",830,0,null,0,null,0,null,10,null,60,null,110,null,180,null,170,null,140,null,110,null,40,null,10,null,"~"]
[null,null,null,"EAST ANGLIA",null,"E39000013",null,8880,390,null,280,null,140,null,250,null,1400,null,2040,null,1640,null,1240,null,710,null,460,null,260,null,50,null,10]
[null,null,null,null,"NHS Cambridgeshire and Peterborough ","E38000026","06H",2270,100,null,90,null,70,null,60,null,240,null,460,null,420,null,330,null,220,null,170,null,100,null,20,null,"~"]
[null,null,null,null,"NHS Ipswich and East Suffolk ","E38000086","06L",3240,0,null,"~",null,"~",null,120,null,680,null,850,null,610,null,490,null,240,null,140,null,70,null,10,null,"~"]
[null,null,null,null,"NHS South Norfolk ","E38000159","06Y",370,0,null,0,null,0,null,10,null,90,null,120,null,80,null,40,null,20,null,"~",null,"~",null,0,null,0]
[null,null,null,null,"NHS West Norfolk ","E38000203","07J",3000,290,null,190,null,70,null,60,null,390,null,610,null,540,null,380,null,230,null,140,null,90,null,20,null,"~"]
[null,null,null,"ESSEX",null,"E39000014",null,3900,0,null,0,null,0,null,160,null,950,null,1110,null,760,null,530,null,280,null,80,null,30,null,"~",null,"~"]
[null,null,null,null,"NHS North East Essex ","E38000117","06T",3180,0,null,0,null,0,null,140,null,800,null,910,null,600,null,430,null,220,null,60,null,20,null,"~",null,"~"]
[null,null,null,null,"NHS West Essex ","E38000197","07H",720,0,null,0,null,0,null,20,null,150,null,200,null,160,null,100,null,60,null,20,null,10,null,"~",null,0]
[null,null,null,"HERTFORDSHIRE AND THE SOUTH MIDLANDS",null,"E39000015",null,2360,0,null,0,null,0,null,20,null,160,null,350,null,450,null,520,null,360,null,280,null,190,null,30,null,"~"]
[null,null,null,null,"NHS Bedfordshire ","E38000010","06F",1150,0,null,0,null,0,null,20,null,120,null,230,null,250,null,240,null,140,null,100,null,40,null,10,null,0]
[null,null,null,null,"NHS Herts Valleys ","E38000079","06N",1210,0,null,0,null,0,null,"~",null,40,null,120,null,200,null,280,null,220,null,190,null,140,null,20,null,"~"]
[null,null,null,"LEICESTERSHIRE AND LINCOLNSHIRE",null,"E39000016",null,9570,340,null,280,null,150,null,220,null,1220,null,1890,null,1760,null,1640,null,960,null,700,null,340,null,60,null,10]
[null,null,null,null,"NHS East Leicestershire and Rutland ","E38000051","03W",2250,180,null,140,null,60,null,80,null,400,null,520,null,390,null,300,null,120,null,50,null,10,null,"~",null,0]
[null,null,null,null,"NHS Lincolnshire East ","E38000099","03T",2260,60,null,30,null,20,null,50,null,280,null,500,null,450,null,410,null,250,null,140,null,60,null,10,null,0]
[null,null,null,null,"NHS Lincolnshire West ","E38000100","04D",2760,0,null,0,null,0,null,30,null,250,null,480,null,540,null,590,null,360,null,330,null,150,null,30,null,0]
[null,null,null,null,"NHS South West Lincolnshire ","E38000165","04Q",2300,100,null,110,null,80,null,60,null,280,null,380,null,390,null,350,null,220,null,180,null,110,null,20,null,10]
[null,null,null,"SHROPSHIRE AND STAFFORDSHIRE",null,"E39000017",null,5800,170,null,110,null,60,null,380,null,1260,null,1220,null,890,null,820,null,440,null,280,null,140,null,40,null,"~"]
[null,null,null,null,"NHS Shropshire ","E38000147","05N",3460,170,null,110,null,60,null,240,null,760,null,670,null,460,null,430,null,250,null,180,null,90,null,30,null,"~"]
[null,null,null,null,"NHS South East Staffs and Seisdon and Peninsular","E38000153","05Q",760,0,null,0,null,0,null,110,null,150,null,100,null,110,null,110,null,60,null,60,null,40,null,10,null,"~"]
[null,null,null,null,"NHS Stafford and Surrounds ","E38000173","05V",1580,0,null,0,null,0,null,30,null,340,null,440,null,310,null,280,null,130,null,40,null,10,null,"~",null,0]
[null,null,"LONDON",null,null,"E40000003",null,5000,130,null,70,null,30,null,230,null,740,null,960,null,800,null,710,null,500,null,440,null,310,null,60,null,"~"]
[null,null,null,"LONDON",null,"E39000018",null,5000,130,null,70,null,30,null,230,null,740,null,960,null,800,null,710,null,500,null,440,null,310,null,60,null,"~"]
[null,null,null,null,"NHS Central London (Westminster) ","E38000031","09A",380,0,null,0,null,0,null,30,null,120,null,110,null,60,null,40,null,20,null,10,null,"~",null,0,null,0]
[null,null,null,null,"NHS Hillingdon ","E38000082","08G",1260,130,null,70,null,30,null,40,null,110,null,250,null,220,null,170,null,100,null,80,null,50,null,10,null,"~"]
[null,null,null,null,"NHS Hounslow ","E38000084","07Y",520,0,null,0,null,0,null,30,null,140,null,130,null,100,null,60,null,30,null,20,null,10,null,"~",null,0]
[null,null,null,null,"NHS Greenwich ","E38000066","08A",800,0,null,0,null,0,null,60,null,230,null,230,null,120,null,100,null,30,null,20,null,"~",null,"~",null,0]
[null,null,null,null,"NHS Lambeth ","E38000092","08K",2030,0,null,0,null,0,null,80,null,140,null,240,null,300,null,340,null,320,null,330,null,240,null,40,null,"~"]
[null,null,"SOUTH OF ENGLAND",null,null,"E40000004",null,82120,2140,null,1600,null,890,null,4180,null,14160,null,17280,null,14750,null,12120,null,7030,null,4710,null,2680,null,520,null,60]
[null,null,null,"BATH, GLOUCESTERSHIRE, SWINDON AND WILTSHIRE",null,"E39000019",null,23750,1210,null,950,null,520,null,1200,null,3700,null,4500,null,4260,null,3590,null,2010,null,1120,null,600,null,80,null,10]
[null,null,null,null,"NHS Gloucestershire ","E38000062","11M",2100,0,null,0,null,0,null,60,null,400,null,440,null,410,null,390,null,230,null,110,null,60,null,10,null,0]
[null,null,null,null,"NHS Swindon ","E38000181","12D",1080,0,null,0,null,0,null,0,null,10,null,40,null,290,null,250,null,200,null,170,null,100,null,20,null,0]
[null,null,null,null,"NHS Wiltshire ","E38000206","99N",20560,1210,null,950,null,520,null,1140,null,3300,null,4010,null,3560,null,2950,null,1580,null,840,null,440,null,50,null,10]
[null,null,null,"BRISTOL, NORTH SOMERSET, SOMERSET AND SOUTH GLOS",null,"E39000020",null,4600,0,null,0,null,0,null,80,null,610,null,920,null,820,null,780,null,520,null,490,null,310,null,50,null,"~"]
[null,null,null,null,"NHS Somerset ","E38000150","11X",3280,0,null,0,null,0,null,80,null,600,null,870,null,680,null,500,null,270,null,190,null,80,null,20,null,"~"]
[null,null,null,null,"NHS South Gloucestershire ","E38000155","12A",1310,0,null,0,null,0,null,0,null,10,null,60,null,140,null,280,null,250,null,300,null,230,null,40,null,"~"]
[null,null,null,"DEVON, CORNWALL AND ISLES OF SCILLY",null,"E39000021",null,12110,0,null,0,null,"~",null,750,null,2680,null,2940,null,2160,null,1480,null,970,null,660,null,400,null,80,null,10]
[null,null,null,null,"NHS Kernow ","E38000089","11N",3130,0,null,0,null,0,null,400,null,630,null,620,null,530,null,370,null,260,null,170,null,120,null,20,null,"~"]
[null,null,null,null,"NHS North, East, West Devon ","E38000129","99P",8570,0,null,0,null,"~",null,330,null,1880,null,2200,null,1590,null,1080,null,680,null,470,null,270,null,60,null,10]
[null,null,null,null,"NHS South Devon and Torbay","E38000152","99Q",420,0,null,0,null,0,null,20,null,170,null,110,null,40,null,30,null,20,null,20,null,10,null,"~",null,"~"]
[null,null,null,"KENT AND MEDWAY",null,"E39000022",null,2480,0,null,0,null,0,null,110,null,690,null,570,null,490,null,350,null,180,null,70,null,20,null,"~",null,"~"]
[null,null,null,null,"NHS Medway ","E38000104","09W",530,0,null,0,null,0,null,70,null,140,null,120,null,100,null,50,null,40,null,20,null,"~",null,"~",null,0]
[null,null,null,null,"NHS South Kent Coast ","E38000156","10A",1320,0,null,0,null,0,null,20,null,390,null,290,null,240,null,220,null,110,null,40,null,10,null,"~",null,0]
[null,null,null,null,"NHS West Kent ","E38000199","99J",620,0,null,0,null,0,null,10,null,160,null,160,null,140,null,90,null,40,null,10,null,"~",null,0,null,"~"]
[null,null,null,"SURREY AND SUSSEX",null,"E39000023",null,3920,180,null,120,null,80,null,420,null,780,null,910,null,660,null,420,null,200,null,100,null,40,null,10,null,"~"]
[null,null,null,null,"NHS Coastal West Sussex ","E38000213","09G",950,0,null,0,null,0,null,40,null,220,null,260,null,210,null,150,null,60,null,10,null,"~",null,"~",null,"~"]
[null,null,null,null,"NHS North West Surrey ","E38000128","09Y",2380,180,null,120,null,80,null,300,null,430,null,500,null,360,null,220,null,100,null,60,null,20,null,"~",null,"~"]
[null,null,null,null,"NHS Surrey Heath ","E38000178","10C",580,0,null,0,null,0,null,70,null,130,null,150,null,90,null,60,null,40,null,20,null,10,null,"~",null,0]
[null,null,null,"THAMES VALLEY",null,"E39000024",null,15890,750,null,520,null,290,null,650,null,2150,null,3040,null,2770,null,2520,null,1440,null,1020,null,580,null,140,null,10]
[null,null,null,null,"NHS Aylesbury Vale ","E38000003","10Y",3550,120,null,100,null,80,null,320,null,330,null,370,null,500,null,560,null,400,null,410,null,290,null,80,null,10]
[null,null,null,null,"NHS Bracknell and Ascot ","E38000017","10G",1770,130,null,100,null,40,null,40,null,430,null,400,null,240,null,200,null,90,null,60,null,40,null,10,null,"~"]
[null,null,null,null,"NHS Newbury and District ","E38000110","10M",330,0,null,0,null,0,null,10,null,30,null,80,null,80,null,60,null,40,null,20,null,10,null,0,null,"~"]
[null,null,null,null,"NHS Oxfordshire ","E38000136","10Q",9270,500,null,330,null,160,null,280,null,1140,null,1880,null,1750,null,1570,null,860,null,500,null,230,null,50,null,"~"]
[null,null,null,null,"NHS Windsor, Ascot and Maidenhead ","E38000207","11C",970,0,null,0,null,0,null,10,null,220,null,310,null,200,null,140,null,60,null,30,null,"~",null,"~",null,0]
[null,null,null,"WESSEX",null,"E39000025",null,19370,0,null,0,null,0,null,980,null,3560,null,4400,null,3600,null,2970,null,1700,null,1260,null,730,null,150,null,20]
[null,null,null,null,"NHS Fareham and Gosport ","E38000059","10K",3410,0,null,0,null,0,null,280,null,620,null,830,null,650,null,450,null,240,null,200,null,120,null,20,null,"~"]
[null,null,null,null,"NHS North East Hampshire and Farnham ","E38000118","99M",4700,0,null,0,null,0,null,270,null,1010,null,1100,null,870,null,770,null,420,null,180,null,70,null,10,null,"~"]
[null,null,null,null,"NHS North Hampshire ","E38000120","10J",1690,0,null,0,null,0,null,40,null,260,null,430,null,380,null,300,null,140,null,80,null,40,null,10,null,0]
[null,null,null,null,"NHS Portsmouth ","E38000137","10R",6720,0,null,0,null,0,null,210,null,1200,null,1400,null,1200,null,1030,null,620,null,600,null,380,null,80,null,10]
[null,null,null,null,"NHS West Hampshire ","E38000198","11A",2850,0,null,0,null,0,null,180,null,480,null,640,null,490,null,430,null,280,null,210,null,120,null,20,null,"~"]
[]
[null,"Source: DMICP Data Warehouse"]
[null,"1. In line with Joint Service Publication 200, numbers 5 or fewer have been supressed and presented as '~'."]
[null,"2. Due to rounding, please note that totals may not equal the sum of their parts."]
[null,"3. The presence of  +/- indicates percentage changes in figures over the last six months.  + indicates there has been a 5% to 10% increase and - indicates there has been between a 5% to 10% decrease.  ++ indicates a greater than 10% increase and -- indicates a greater than 10% decrease."]
[null,"4. Age bands are based on age as at time of data extraction."]

{"sheet":"Table B1.3","index":7,"n_rows":100,"n_cols":28,"rows_kept":100,"cut":false,"hidden":false,"merged":[[6,2,6,3],[99,1,99,9],[98,1,98,20],[97,1,97,20],[96,1,96,20],[9,1,9,4]]}
[null,"Annex B1 - England, by NHS Clinical Commissioning Group"]
[]
[null,"Table B1.3: UK Armed Forces personnel DMS registrations, registered to NHS Clinical Commissioning Groups by age band, Numbers"]
[null,"1 April 2018"]
[null,"Defence Statistics Health"]
[]
[null,null,"Return to contents"]
[]
[null,null,null,null,null,"NEW","OLD"]
[null,"Area Name",null,null,null,"Area Code","Area Code","All UK Armed Forces","16-19","+/-","20-24","+/-","25-29","+/-","30-34","+/-","35-39","+/-","40-44","+/-","45-49","+/-","50-54","+/-","55-59","+/-","60+","+/-"]
[null,"ENGLAND                            ",null,null,null,"E92000001",null,123870,7090,"+",23130,"",28040,"",23080,"",19140,"",11100,"",7330,"",4110,"",780,"+",70,""]
[null,null,"NORTH OF ENGLAND                        ",null,null,"E40000001",null,16060,2190,null,3300,null,3770,null,2810,null,2040,null,1090,null,550,null,260,null,50,null,"~"]
[null,null,null,"CHESHIRE, WARRINGTON AND WIRRAL",null,"E39000001",null,610,20,null,150,null,160,null,120,null,80,null,40,null,20,null,10,null,"~",null,0]
[null,null,null,null,"NHS West Cheshire","E38000196","02F",610,20,null,150,null,160,null,120,null,80,null,40,null,20,null,10,null,"~",null,0]
[null,null,null,"LANCASHIRE",null,"E39000004",null,920,30,null,210,null,240,null,180,null,140,null,70,null,30,null,20,null,"~",null,0]
[null,null,null,null,"NHS Fylde & Wyre","E38000060","02M",920,30,null,210,null,240,null,180,null,140,null,70,null,30,null,10,null,"~",null,0]
[null,null,null,null,"NHS Greater Preston","E38000065","01E",10,0,null,0,null,0,null,0,null,"~",null,"~",null,"~",null,"~",null,0,null,0]
[null,null,null,"CUMBRIA, NORTHUMBERLAND, TYNE AND WEAR",null,"E39000006",null,1450,60,null,270,null,360,null,280,null,240,null,110,null,80,null,40,null,10,null,0]
[null,null,null,null,"NHS Cumbria ","E38000041","01H",200,0,null,10,null,40,null,40,null,50,null,20,null,20,null,10,null,"~",null,0]
[null,null,null,null,"NHS Northumberland ","E38000130","00L",1260,60,null,260,null,320,null,230,null,190,null,90,null,70,null,30,null,"~",null,0]
[null,null,null,"NORTH YORKSHIRE AND HUMBER                 ",null,"E39000007",null,13070,2080,null,2660,null,3000,null,2240,null,1580,null,870,null,420,null,190,null,40,null,"~"]
[null,null,null,null,"NHS East Riding of Yorkshire ","E38000052","02Y",410,100,null,70,null,70,null,60,null,50,null,40,null,20,null,"~",null,"~",null,0]
[null,null,null,null,"NHS Hambleton, Richmondshire and Whitby ","E38000069","03D",8650,930,null,2040,null,2180,null,1570,null,1010,null,540,null,250,null,110,null,20,null,"~"]
[null,null,null,null,"NHS Harrogate and Rural District ","E38000073","03E",2740,1040,null,360,null,500,null,360,null,290,null,130,null,50,null,10,null,"~",null,"~"]
[null,null,null,null,"NHS Scarborough and Ryedale ","E38000145","03M",90,0,null,"~",null,20,null,20,null,10,null,20,null,20,null,10,null,0,null,0]
[null,null,null,null,"NHS Vale of York ","E38000188","03Q",1180,10,null,190,null,240,null,240,null,220,null,140,null,80,null,50,null,10,null,"~"]
[null,null,"MIDLANDS AND EAST OF ENGLAND",null,null,"E40000002",null,29360,920,null,5180,null,6740,null,5630,null,4940,null,2870,null,1860,null,990,null,200,null,20]
[null,null,null,"ARDEN, HEREFORDSHIRE AND WORCESTERSHIRE",null,"E39000010",null,820,30,null,200,null,200,null,150,null,160,null,50,null,20,null,10,null,"~",null,0]
[null,null,null,null,"NHS Coventry and Rugby ","E38000038","05A",640,30,null,170,null,150,null,110,null,120,null,40,null,10,null,"~",null,"~",null,0]
[null,null,null,null,"NHS South Warwickshire ","E38000164","05R",180,"~",null,20,null,50,null,40,null,50,null,20,null,10,null,"~",null,"~",null,0]
[null,null,null,"BIRMINGHAM AND THE BLACK COUNTRY",null,"E39000011",null,710,10,null,100,null,160,null,160,null,120,null,80,null,40,null,40,null,10,null,"~"]
[null,null,null,null,"NHS Birmingham CrossCity ","E38000012","13P",710,10,null,100,null,160,null,160,null,120,null,80,null,40,null,40,null,10,null,"~"]
[null,null,null,"DERBYSHIRE AND NOTTINGHAMSHIRE",null,"E39000012",null,830,10,null,60,null,110,null,180,null,170,null,140,null,110,null,40,null,10,null,"~"]
[null,null,null,null,"NHS Nottingham West ","E38000134","04M",830,10,null,60,null,110,null,180,null,170,null,140,null,110,null,40,null,10,null,"~"]
[null,null,null,"EAST ANGLIA",null,"E39000013",null,7440,190,null,1340,null,1900,null,1490,null,1150,null,650,null,420,null,240,null,50,null,"~"]
[null,null,null,null,"NHS Cambridgeshire and Peterborough ","E38000026","06H",1810,20,null,220,null,430,null,380,null,300,null,200,null,140,null,90,null,20,null,"~"]
[null,null,null,null,"NHS Ipswich and East Suffolk ","E38000086","06L",3220,120,null,680,null,850,null,610,null,490,null,240,null,140,null,70,null,10,null,"~"]
[null,null,null,null,"NHS South Norfolk ","E38000159","06Y",370,10,null,90,null,120,null,80,null,40,null,20,null,"~",null,"~",null,0,null,0]
[null,null,null,null,"NHS West Norfolk ","E38000203","07J",2030,40,null,350,null,500,null,430,null,310,null,180,null,120,null,80,null,20,null,"~"]
[null,null,null,"ESSEX",null,"E39000014",null,3900,160,null,950,null,1110,null,760,null,530,null,280,null,80,null,30,null,"~",null,"~"]
[null,null,null,null,"NHS North East Essex ","E38000117","06T",3180,140,null,800,null,910,null,600,null,430,null,220,null,60,null,20,null,"~",null,"~"]
[null,null,null,null,"NHS West Essex ","E38000197","07H",720,20,null,150,null,200,null,160,null,100,null,60,null,20,null,10,null,"~",null,0]
[null,null,null,"HERTFORDSHIRE AND THE SOUTH MIDLANDS",null,"E39000015",null,2360,20,null,160,null,350,null,450,null,520,null,360,null,280,null,190,null,30,null,"~"]
[null,null,null,null,"NHS Bedfordshire ","E38000010","06F",1150,20,null,120,null,230,null,250,null,240,null,140,null,100,null,40,null,10,null,0]
[null,null,null,null,"NHS Herts Valleys ","E38000079","06N",1210,"~",null,40,null,120,null,200,null,280,null,220,null,190,null,140,null,20,null,"~"]
[null,null,null,"LEICESTERSHIRE AND LINCOLNSHIRE",null,"E39000016",null,8190,150,null,1180,null,1770,null,1620,null,1520,null,900,null,650,null,320,null,60,null,10]
[null,null,null,null,"NHS East Leicestershire and Rutland ","E38000051","03W",1620,60,null,370,null,440,null,330,null,240,null,110,null,40,null,10,null,"~",null,0]
[null,null,null,null,"NHS Lincolnshire East ","E38000099","03T",2060,40,null,280,null,490,null,420,null,400,null,240,null,130,null,60,null,10,null,0]
[null,null,null,null,"NHS Lincolnshire West ","E38000100","04D",2760,30,null,250,null,480,null,540,null,590,null,360,null,320,null,150,null,30,null,0]
[null,null,null,null,"NHS South West Lincolnshire ","E38000165","04Q",1750,20,null,280,null,360,null,340,null,300,null,190,null,150,null,100,null,20,null,10]
[null,null,null,"SHROPSHIRE AND STAFFORDSHIRE",null,"E39000017",null,5110,360,null,1200,null,1120,null,820,null,770,null,410,null,260,null,130,null,30,null,"~"]
[null,null,null,null,"NHS Shropshire ","E38000147","05N",2770,220,null,710,null,580,null,400,null,390,null,220,null,160,null,80,null,20,null,"~"]
[null,null,null,null,"NHS South East Staffs and Seisdon and Peninsular","E38000153","05Q",760,110,null,150,null,100,null,110,null,110,null,60,null,60,null,40,null,10,null,"~"]
[null,null,null,null,"NHS Stafford and Surrounds ","E38000173","05V",1580,30,null,340,null,440,null,310,null,280,null,130,null,40,null,10,null,"~",null,0]
[null,null,"LONDON",null,null,"E40000003",null,4530,200,null,730,null,920,null,740,null,680,null,470,null,420,null,300,null,50,null,"~"]
[null,null,null,"LONDON",null,"E39000018",null,4530,200,null,730,null,920,null,740,null,680,null,470,null,420,null,300,null,50,null,"~"]
[null,null,null,null,"NHS Central London (Westminster) ","E38000031","09A",380,30,null,120,null,110,null,60,null,40,null,20,null,10,null,"~",null,0,null,0]
[null,null,null,null,"NHS Hillingdon ","E38000082","08G",800,10,null,100,null,210,null,160,null,140,null,80,null,60,null,40,null,10,null,"~"]
[null,null,null,null,"NHS Hounslow ","E38000084","07Y",520,30,null,140,null,130,null,100,null,60,null,30,null,20,null,10,null,"~",null,0]
[null,null,null,null,"NHS Greenwich ","E38000066","08A",800,60,null,230,null,230,null,120,null,100,null,30,null,20,null,"~",null,"~",null,0]
[null,null,null,null,"NHS Lambeth ","E38000092","08K",2030,80,null,140,null,240,null,300,null,340,null,320,null,330,null,240,null,40,null,"~"]
[null,null,"SOUTH OF ENGLAND",null,null,"E40000004",null,73920,3780,null,13920,null,16620,null,13890,null,11470,null,6660,null,4490,null,2560,null,470,null,40]
[null,null,null,"BATH, GLOUCESTERSHIRE, SWINDON AND WILTSHIRE",null,"E39000019",null,19130,980,null,3550,null,4110,null,3780,null,3220,null,1830,null,1020,null,570,null,70,null,10]
[null,null,null,null,"NHS Gloucestershire ","E38000062","11M",2100,60,null,400,null,440,null,410,null,390,null,230,null,110,null,60,null,10,null,0]
[null,null,null,null,"NHS Swindon ","E38000181","12D",1080,0,null,10,null,40,null,290,null,250,null,200,null,170,null,100,null,20,null,0]
[null,null,null,null,"NHS Wiltshire ","E38000206","99N",15940,920,null,3140,null,3620,null,3080,null,2580,null,1400,null,740,null,400,null,50,null,10]
[null,null,null,"BRISTOL, NORTH SOMERSET, SOMERSET AND SOUTH GLOS",null,"E39000020",null,4600,80,null,610,null,920,null,820,null,780,null,520,null,490,null,310,null,50,null,"~"]
[null,null,null,null,"NHS Somerset ","E38000150","11X",3280,80,null,600,null,870,null,680,null,500,null,270,null,190,null,80,null,20,null,"~"]
[null,null,null,null,"NHS South Gloucestershire ","E38000155","12A",1310,0,null,10,null,60,null,140,null,280,null,250,null,300,null,230,null,40,null,"~"]
[null,null,null,"DEVON, CORNWALL AND ISLES OF SCILLY",null,"E39000021",null,12050,740,null,2670,null,2930,null,2140,null,1470,null,960,null,660,null,390,null,70,null,"~"]
[null,null,null,null,"NHS Kernow ","E38000089","11N",3120,400,null,630,null,620,null,530,null,370,null,260,null,170,null,120,null,20,null,"~"]
[null,null,null,null,"NHS North, East, West Devon ","E38000129","99P",8510,330,null,1880,null,2200,null,1570,null,1080,null,680,null,460,null,260,null,50,null,"~"]
[null,null,null,null,"NHS South Devon and Torbay","E38000152","99Q",420,20,null,170,null,110,null,40,null,30,null,20,null,20,null,10,null,"~",null,"~"]
[null,null,null,"KENT AND MEDWAY",null,"E39000022",null,2480,110,null,690,null,570,null,490,null,350,null,180,null,70,null,20,null,"~",null,0]
[null,null,null,null,"NHS Medway ","E38000104","09W",530,70,null,140,null,120,null,100,null,50,null,40,null,20,null,"~",null,"~",null,0]
[null,null,null,null,"NHS South Kent Coast ","E38000156","10A",1320,20,null,390,null,290,null,240,null,220,null,110,null,40,null,10,null,"~",null,0]
[null,null,null,null,"NHS West Kent ","E38000199","99J",620,10,null,160,null,160,null,140,null,90,null,40,null,10,null,"~",null,0,null,0]
[null,null,null,"SURREY AND SUSSEX",null,"E39000023",null,3260,390,null,760,null,830,null,580,null,380,null,180,null,80,null,40,null,10,null,"~"]
[null,null,null,null,"NHS Coastal West Sussex ","E38000213","09G",950,40,null,220,null,260,null,210,null,150,null,60,null,10,null,"~",null,"~",null,0]
[null,null,null,null,"NHS North West Surrey ","E38000128","09Y",1720,280,null,420,null,420,null,280,null,180,null,80,null,50,null,20,null,"~",null,"~"]
[null,null,null,null,"NHS Surrey Heath ","E38000178","10C",580,70,null,130,null,150,null,90,null,60,null,40,null,20,null,10,null,"~",null,0]
[null,null,null,"THAMES VALLEY",null,"E39000024",null,13110,500,null,2090,null,2860,null,2490,null,2300,null,1300,null,920,null,520,null,120,null,10]
[null,null,null,null,"NHS Aylesbury Vale ","E38000003","10Y",3010,280,null,330,null,350,null,450,null,520,null,370,null,380,null,270,null,70,null,10]
[null,null,null,null,"NHS Bracknell and Ascot ","E38000017","10G",1240,10,null,410,null,350,null,180,null,160,null,50,null,40,null,30,null,"~",null,"~"]
[null,null,null,null,"NHS Newbury and District ","E38000110","10M",330,10,null,30,null,80,null,80,null,60,null,40,null,20,null,10,null,0,null,"~"]
[null,null,null,null,"NHS Oxfordshire ","E38000136","10Q",7570,200,null,1110,null,1770,null,1570,null,1420,null,780,null,460,null,210,null,40,null,"~"]
[null,null,null,null,"NHS Windsor, Ascot and Maidenhead ","E38000207","11C",970,10,null,220,null,310,null,200,null,140,null,60,null,30,null,"~",null,"~",null,0]
[null,null,null,"WESSEX",null,"E39000025",null,19300,980,null,3550,null,4390,null,3580,null,2960,null,1690,null,1260,null,720,null,140,null,10]
[null,null,null,null,"NHS Fareham and Gosport ","E38000059","10K",3410,280,null,620,null,830,null,650,null,450,null,240,null,200,null,120,null,20,null,"~"]
[null,null,null,null,"NHS North East Hampshire and Farnham ","E38000118","99M",4700,270,null,1010,null,1100,null,870,null,770,null,420,null,180,null,70,null,10,null,"~"]
[null,null,null,null,"NHS North Hampshire ","E38000120","10J",1690,40,null,260,null,430,null,380,null,300,null,140,null,80,null,40,null,10,null,0]
[null,null,null,null,"NHS Portsmouth ","E38000137","10R",6660,210,null,1190,null,1390,null,1200,null,1020,null,610,null,590,null,360,null,80,null,"~"]
[null,null,null,null,"NHS West Hampshire ","E38000198","11A",2840,180,null,480,null,640,null,490,null,430,null,280,null,210,null,120,null,20,null,"~"]
[]
[]
[null,"Source: DMICP Data Warehouse"]
[null,"1. In line with Joint Service Publication 200, numbers 5 or fewer have been supressed and presented as '~'."]
[null,"2. Due to rounding, please note that totals may not equal the sum of their parts."]
[null,"3. The presence of  +/- indicates percentage changes in figures over the last six months.  + indicates there has been a 5% to 10% increase and - indicates there has been between a 5% to 10% decrease.  ++ indicates a greater than 10% increase and -- indicates a greater than 10% decrease."]
[null,"4. Age bands are based on age as at time of data extraction."]

{"sheet":"Table B1.4","index":8,"n_rows":100,"n_cols":34,"rows_kept":100,"cut":false,"hidden":false,"merged":[[9,1,9,4],[6,2,6,3],[96,1,96,21],[97,1,97,21],[98,1,98,21]]}
[null,"Annex B1 - England, by NHS Clinical Commissioning Group"]
[]
[null,"Table B1.4: Entitled civilian personnel DMS registrations, registered to NHS Clinical Commissioning Groups by age band, Numbers"]
[null,"1 April 2018"]
[null,"Defence Statistics Health"]
[]
[null,null,"Return to contents"]
[]
[null,null,null,null,null,"NEW","OLD"]
[null,"Area Name",null,null,null,"Area Code","Area Code","All Civilians","0-4","+/-","5-9","+/-","10-14","+/-","15-19","+/-","20-24","+/-","25-29","+/-","30-34","+/-","35-39","+/-","40-44","+/-","45-49","+/-","50-54","+/-","55-59","+/-","60+","+/-"]
[null,"ENGLAND                            ",null,null,null,"E92000001",null,13740,3600,"-",2700,"",1430,"",640,"",440,"- -",1180,"-",1420,"",1060,"",600,"",390,"+",190,"+",60,"++",20,"++"]
[null,"NORTH OF ENGLAND                        ",null,null,null,"E40000001",null,1560,430,null,350,null,160,null,70,null,40,null,130,null,150,null,120,null,60,null,40,null,20,null,"~",null,"~"]
[null,null,null,"CHESHIRE, WARRINGTON AND WIRRAL",null,"E39000001",null,0,0,null,0,null,0,null,0,null,0,null,0,null,0,null,0,null,0,null,0,null,0,null,0,null,0]
[null,null,null,null,"NHS West Cheshire","E38000196","02F",0,0,null,0,null,0,null,0,null,0,null,0,null,0,null,0,null,0,null,0,null,0,null,0,null,0]
[null,null,null,"LANCASHIRE",null,"E39000004",null,0,0,null,0,null,0,null,0,null,0,null,0,null,0,null,0,null,0,null,0,null,0,null,0,null,0]
[null,null,null,null,"NHS Fylde & Wyre","E38000060","02M",0,0,null,0,null,0,null,0,null,0,null,0,null,0,null,0,null,0,null,0,null,0,null,0,null,0]
[null,null,null,null,"NHS Greater Preston","E38000065","01E",0,0,null,0,null,0,null,0,null,0,null,0,null,0,null,0,null,0,null,0,null,0,null,0,null,0]
[null,null,null,"CUMBRIA, NORTHUMBERLAND, TYNE AND WEAR",null,"E39000006",null,0,0,null,0,null,0,null,0,null,0,null,0,null,0,null,0,null,0,null,0,null,0,null,0,null,0]
[null,null,null,null,"NHS Cumbria ","E38000041","01H",0,0,null,0,null,0,null,0,null,0,null,0,null,0,null,0,null,0,null,0,null,0,null,0,null,0]
[null,null,null,null,"NHS Northumberland ","E38000130","00L",0,0,null,0,null,0,null,0,null,0,null,0,null,0,null,0,null,0,null,0,null,0,null,0,null,0]
[null,null,null,"NORTH YORKSHIRE AND HUMBER                 ",null,"E39000007",null,1560,430,null,350,null,160,null,70,null,40,null,130,null,150,null,120,null,60,null,40,null,20,null,"~",null,"~"]
[null,null,null,null,"NHS East Riding of Yorkshire ","E38000052","02Y",0,0,null,0,null,0,null,0,null,0,null,0,null,0,null,0,null,0,null,0,null,0,null,0,null,0]
[null,null,null,null,"NHS Hambleton, Richmondshire and Whitby ","E38000069","03D",1380,380,null,310,null,140,null,60,null,40,null,120,null,140,null,100,null,50,null,30,null,20,null,"~",null,"~"]
[null,null,null,null,"NHS Harrogate and Rural District ","E38000073","03E",0,0,null,0,null,0,null,0,null,0,null,0,null,0,null,0,null,0,null,0,null,0,null,0,null,0]
[null,null,null,null,"NHS Scarborough and Ryedale ","E38000145","03M",0,0,null,0,null,0,null,0,null,0,null,0,null,0,null,0,null,0,null,0,null,0,null,0,null,0]
[null,null,null,null,"NHS Vale of York ","E38000188","03Q",180,50,null,40,null,20,null,10,null,"~",null,10,null,10,null,20,null,10,null,10,null,"~",null,"~",null,0]
[null,"MIDLANDS AND EAST OF ENGLAND",null,null,null,"E40000002",null,3520,910,null,670,null,350,null,150,null,140,null,350,null,360,null,260,null,150,null,110,null,50,null,10,null,"~"]
[null,null,null,"ARDEN, HEREFORDSHIRE AND WORCESTERSHIRE",null,"E39000010",null,"~",0,null,0,null,0,null,0,null,0,null,0,null,0,null,0,null,0,null,"~",null,0,null,0,null,0]
[null,null,null,null,"NHS Coventry and Rugby ","E38000038","05A",0,0,null,0,null,0,null,0,null,0,null,0,null,0,null,0,null,0,null,0,null,0,null,0,null,0]
[null,null,null,null,"NHS South Warwickshire ","E38000164","05R","~",0,null,0,null,0,null,0,null,0,null,0,null,0,null,0,null,0,null,"~",null,0,null,0,null,0]
[null,null,null,"BIRMINGHAM AND THE BLACK COUNTRY",null,"E39000011",null,0,0,null,0,null,0,null,0,null,0,null,0,null,0,null,0,null,0,null,0,null,0,null,0,null,0]
[null,null,null,null,"NHS Birmingham CrossCity ","E38000012","13P",0,0,null,0,null,0,null,0,null,0,null,0,null,0,null,0,null,0,null,0,null,0,null,0,null,0]
[null,null,null,"DERBYSHIRE AND NOTTINGHAMSHIRE",null,"E39000012",null,0,0,null,0,null,0,null,0,null,0,null,0,null,0,null,0,null,0,null,0,null,0,null,0,null,0]
[null,null,null,null,"NHS Nottingham West ","E38000134","04M",0,0,null,0,null,0,null,0,null,0,null,0,null,0,null,0,null,0,null,0,null,0,null,0,null,0]
[null,null,null,"EAST ANGLIA",null,"E39000013",null,1440,390,null,280,null,140,null,60,null,50,null,140,null,150,null,100,null,60,null,40,null,10,null,10,null,"~"]
[null,null,null,null,"NHS Cambridgeshire and Peterborough ","E38000026","06H",470,100,null,90,null,70,null,40,null,10,null,30,null,40,null,30,null,20,null,20,null,10,null,"~",null,0]
[null,null,null,null,"NHS Ipswich and East Suffolk ","E38000086","06L",10,0,null,"~",null,"~",null,0,null,"~",null,"~",null,"~",null,0,null,"~",null,"~",null,0,null,"~",null,0]
[null,null,null,null,"NHS South Norfolk ","E38000159","06Y",0,0,null,0,null,0,null,0,null,0,null,0,null,0,null,0,null,0,null,0,null,0,null,0,null,0]
[null,null,null,null,"NHS West Norfolk ","E38000203","07J",960,290,null,190,null,70,null,30,null,40,null,100,null,110,null,60,null,40,null,20,null,10,null,"~",null,"~"]
[null,null,null,"ESSEX",null,"E39000014",null,0,0,null,0,null,0,null,0,null,0,null,0,null,0,null,0,null,0,null,0,null,0,null,0,null,0]
[null,null,null,null,"NHS North East Essex ","E38000117","06T",0,0,null,0,null,0,null,0,null,0,null,0,null,0,null,0,null,0,null,0,null,0,null,0,null,0]
[null,null,null,null,"NHS West Essex ","E38000197","07H",0,0,null,0,null,0,null,0,null,0,null,0,null,0,null,0,null,0,null,0,null,0,null,0,null,0]
[null,null,null,"HERTFORDSHIRE AND THE SOUTH MIDLANDS",null,"E39000015",null,10,0,null,0,null,0,null,0,null,0,null,"~",null,"~",null,"~",null,0,null,"~",null,"~",null,"~",null,0]
[null,null,null,null,"NHS Bedfordshire ","E38000010","06F","~",0,null,0,null,0,null,0,null,0,null,0,null,"~",null,0,null,0,null,0,null,0,null,0,null,0]
[null,null,null,null,"NHS Herts Valleys ","E38000079","06N",10,0,null,0,null,0,null,0,null,0,null,"~",null,0,null,"~",null,0,null,"~",null,"~",null,"~",null,0]
[null,null,null,"LEICESTERSHIRE AND LINCOLNSHIRE",null,"E39000016",null,1380,340,null,280,null,150,null,70,null,40,null,120,null,140,null,120,null,60,null,40,null,20,null,"~",null,"~"]
[null,null,null,null,"NHS East Leicestershire and Rutland ","E38000051","03W",630,180,null,140,null,60,null,20,null,20,null,80,null,60,null,50,null,10,null,10,null,"~",null,"~",null,0]
[null,null,null,null,"NHS Lincolnshire East ","E38000099","03T",200,60,null,30,null,20,null,10,null,"~",null,10,null,20,null,10,null,10,null,10,null,10,null,0,null,0]
[null,null,null,null,"NHS Lincolnshire West ","E38000100","04D","~",0,null,0,null,0,null,0,null,"~",null,0,null,0,null,0,null,0,null,"~",null,0,null,0,null,0]
[null,null,null,null,"NHS South West Lincolnshire ","E38000165","04Q",550,100,null,110,null,80,null,40,null,10,null,30,null,50,null,50,null,40,null,30,null,10,null,"~",null,"~"]
[null,null,null,"SHROPSHIRE AND STAFFORDSHIRE",null,"E39000017",null,690,170,null,110,null,60,null,20,null,50,null,90,null,60,null,50,null,30,null,20,null,10,null,"~",null,0]
[null,null,null,null,"NHS Shropshire ","E38000147","05N",690,170,null,110,null,60,null,20,null,50,null,90,null,60,null,50,null,30,null,20,null,10,null,"~",null,0]
[null,null,null,null,"NHS South East Staffs and Seisdon and Peninsular","E38000153","05Q",0,0,null,0,null,0,null,0,null,0,null,0,null,0,null,0,null,0,null,0,null,0,null,0,null,0]
[null,null,null,null,"NHS Stafford and Surrounds ","E38000173","05V",0,0,null,0,null,0,null,0,null,0,null,0,null,0,null,0,null,0,null,0,null,0,null,0,null,0]
[null,"LONDON",null,null,null,"E40000003",null,460,130,null,70,null,30,null,30,null,10,null,40,null,60,null,30,null,30,null,20,null,10,null,"~",null,0]
[null,null,null,"LONDON",null,"E39000018",null,460,130,null,70,null,30,null,30,null,10,null,40,null,60,null,30,null,30,null,20,null,10,null,"~",null,0]
[null,null,null,null,"NHS Central London (Westminster) ","E38000031","09A",0,0,null,0,null,0,null,0,null,0,null,0,null,0,null,0,null,0,null,0,null,0,null,0,null,0]
[null,null,null,null,"NHS Hillingdon ","E38000082","08G",460,130,null,70,null,30,null,30,null,10,null,40,null,60,null,30,null,30,null,20,null,10,null,"~",null,0]
[null,null,null,null,"NHS Hounslow ","E38000084","07Y",0,0,null,0,null,0,null,0,null,0,null,0,null,0,null,0,null,0,null,0,null,0,null,0,null,0]
[null,null,null,null,"NHS Greenwich ","E38000066","08A",0,0,null,0,null,0,null,0,null,0,null,0,null,0,null,0,null,0,null,0,null,0,null,0,null,0]
[null,null,null,null,"NHS Lambeth ","E38000092","08K","~",0,null,0,null,0,null,0,null,0,null,0,null,"~",null,0,null,0,null,"~",null,0,null,0,null,0]
[null,"SOUTH OF ENGLAND",null,null,null,"E40000004",null,8200,2140,null,1600,null,890,null,400,null,240,null,660,null,860,null,650,null,370,null,220,null,110,null,40,null,20]
[null,null,null,"BATH, GLOUCESTERSHIRE, SWINDON AND WILTSHIRE",null,"E39000019",null,4620,1210,null,950,null,520,null,220,null,150,null,390,null,480,null,370,null,190,null,100,null,40,null,10,null,"~"]
[null,null,null,null,"NHS Gloucestershire ","E38000062","11M",0,0,null,0,null,0,null,0,null,0,null,0,null,0,null,0,null,0,null,0,null,0,null,0,null,0]
[null,null,null,null,"NHS Swindon ","E38000181","12D",0,0,null,0,null,0,null,0,null,0,null,0,null,0,null,0,null,0,null,0,null,0,null,0,null,0]
[null,null,null,null,"NHS Wiltshire ","E38000206","99N",4620,1210,null,950,null,520,null,220,null,150,null,390,null,480,null,370,null,190,null,100,null,40,null,10,null,"~"]
[null,null,null,"BRISTOL, NORTH SOMERSET, SOMERSET AND SOUTH GLOS",null,"E39000020",null,"~",0,null,0,null,0,null,0,null,0,null,0,null,0,null,0,null,0,null,0,null,0,null,"~",null,"~"]
[null,null,null,null,"NHS Somerset ","E38000150","11X","~",0,null,0,null,0,null,0,null,0,null,0,null,0,null,0,null,0,null,0,null,0,null,"~",null,"~"]
[null,null,null,null,"NHS South Gloucestershire ","E38000155","12A",0,0,null,0,null,0,null,0,null,0,null,0,null,0,null,0,null,0,null,0,null,0,null,0,null,0]
[null,null,null,"DEVON, CORNWALL AND ISLES OF SCILLY",null,"E39000021",null,60,0,null,0,null,"~",null,"~",null,"~",null,"~",null,20,null,"~",null,10,null,"~",null,10,null,10,null,"~"]
[null,null,null,null,"NHS Kernow ","E38000089","11N","~",0,null,0,null,0,null,0,null,0,null,0,null,"~",null,0,null,"~",null,0,null,0,null,0,null,0]
[null,null,null,null,"NHS North, East, West Devon ","E38000129","99P",60,0,null,0,null,"~",null,"~",null,"~",null,"~",null,10,null,"~",null,10,null,"~",null,10,null,10,null,"~"]
[null,null,null,null,"NHS South Devon and Torbay","E38000152","99Q",0,0,null,0,null,0,null,0,null,0,null,0,null,0,null,0,null,0,null,0,null,0,null,0,null,0]
[null,null,null,"KENT AND MEDWAY",null,"E39000022",null,"~",0,null,0,null,0,null,0,null,0,null,0,null,0,null,0,null,0,null,0,null,0,null,0,null,"~"]
[null,null,null,null,"NHS Medway ","E38000104","09W",0,0,null,0,null,0,null,0,null,0,null,0,null,0,null,0,null,0,null,0,null,0,null,0,null,0]
[null,null,null,null,"NHS South Kent Coast ","E38000156","10A",0,0,null,0,null,0,null,0,null,0,null,0,null,0,null,0,null,0,null,0,null,0,null,0,null,0]
[null,null,null,null,"NHS West Kent ","E38000199","99J","~",0,null,0,null,0,null,0,null,0,null,0,null,0,null,0,null,0,null,0,null,0,null,0,null,"~"]
[null,null,null,"SURREY AND SUSSEX",null,"E39000023",null,660,180,null,120,null,80,null,20,null,20,null,80,null,80,null,40,null,20,null,20,null,"~",null,0,null,"~"]
[null,null,null,null,"NHS Coastal West Sussex ","E38000213","09G","~",0,null,0,null,0,null,0,null,0,null,0,null,0,null,0,null,0,null,"~",null,0,null,0,null,"~"]
[null,null,null,null,"NHS North West Surrey ","E38000128","09Y",660,180,null,120,null,80,null,20,null,20,null,80,null,80,null,40,null,20,null,20,null,"~",null,0,null,0]
[null,null,null,null,"NHS Surrey Heath ","E38000178","10C",0,0,null,0,null,0,null,0,null,0,null,0,null,0,null,0,null,0,null,0,null,0,null,0,null,0]
[null,null,null,"THAMES VALLEY",null,"E39000024",null,2780,750,null,520,null,290,null,150,null,60,null,180,null,280,null,220,null,140,null,100,null,50,null,20,null,"~"]
[null,null,null,null,"NHS Aylesbury Vale ","E38000003","10Y",540,120,null,100,null,80,null,40,null,"~",null,20,null,40,null,40,null,30,null,30,null,20,null,10,null,0]
[null,null,null,null,"NHS Bracknell and Ascot ","E38000017","10G",540,130,null,100,null,40,null,30,null,20,null,40,null,60,null,40,null,40,null,20,null,10,null,10,null,"~"]
[null,null,null,null,"NHS Newbury and District ","E38000110","10M",0,0,null,0,null,0,null,0,null,0,null,0,null,0,null,0,null,0,null,0,null,0,null,0,null,0]
[null,null,null,null,"NHS Oxfordshire ","E38000136","10Q",1700,500,null,330,null,160,null,90,null,40,null,120,null,180,null,140,null,80,null,40,null,20,null,"~",null,"~"]
[null,null,null,null,"NHS Windsor, Ascot and Maidenhead ","E38000207","11C","~",0,null,0,null,0,null,0,null,0,null,0,null,0,null,"~",null,0,null,0,null,0,null,0,null,0]
[null,null,null,"WESSEX",null,"E39000025",null,80,0,null,0,null,0,null,0,null,"~",null,10,null,10,null,10,null,10,null,10,null,10,null,10,null,"~"]
[null,null,null,null,"NHS Fareham and Gosport ","E38000059","10K","~",0,null,0,null,0,null,0,null,0,null,0,null,"~",null,0,null,0,null,0,null,0,null,0,null,"~"]
[null,null,null,null,"NHS North East Hampshire and Farnham ","E38000118","99M","~",0,null,0,null,0,null,0,null,0,null,0,null,0,null,"~",null,0,null,0,null,0,null,"~",null,0]
[null,null,null,null,"NHS North Hampshire ","E38000120","10J","~",0,null,0,null,0,null,0,null,0,null,0,null,0,null,0,null,0,null,"~",null,0,null,0,null,0]
[null,null,null,null,"NHS Portsmouth ","E38000137","10R",70,0,null,0,null,0,null,0,null,"~",null,"~",null,10,null,10,null,10,null,10,null,10,null,10,null,"~"]
[null,null,null,null,"NHS West Hampshire ","E38000198","11A","~",0,null,0,null,0,null,0,null,"~",null,"~",null,"~",null,0,null,"~",null,0,null,0,null,0,null,0]
[]
[]
[null,"Source: DMICP Data Warehouse"]
[null,"1. In line with Joint Service Publication 200, numbers 5 or fewer have been supressed and presented as '~'."]
[null,"2. Due to rounding, please note that totals may not equal the sum of their parts."]
[null,"3. The presence of  +/- indicates percentage changes in figures over the last six months.  + indicates there has been a 5% to 10% increase and - indicates there has been between a 5% to 10% decrease.  ++ indicates a greater than 10% increase and -- indicates a greater than 10% decrease."]
[null,"4. Age bands are based on age as at time of data extraction."]

{"sheet":"Table B1.5","index":9,"n_rows":100,"n_cols":25,"rows_kept":100,"cut":false,"hidden":false,"merged":[[6,2,6,3],[9,1,9,4],[8,19,8,24],[8,13,8,18],[98,1,98,19],[97,1,97,19],[96,1,96,19]]}
[null,"Annex B1 - England, by NHS Clinical Commissioning Group"]
[]
[null,"Table B1.5: UK Armed Forces personnel and entitled civilian personnel DMS registrations, registered to NHS Clinical Commissioning Groups by gender, Numbers"]
[null,"1 April 2018"]
[null,"Defence Statistics Health"]
[]
[null,null,"Return to contents"]
[]
[null,null,null,null,null,"NEW","OLD",null,null,"All Persons",null,null,null,"UK Armed Forces",null,null,null,null,null,"Civilian"]
[null,"Area Name",null,null,null,"Area Code","Area Code","All","+/-","Male","+/-","Female","+/-","All","+/-","Male","+/-","Female","+/-","All","+/-","Male","+/-","Female","+/-"]
[null,"ENGLAND                            ",null,null,null,"E92000001",null,137610,"",115030,"",22580,"",123870,"",110250,"",13620,"",13740,"",4780,"",8960,""]
[null,null,"NORTH OF ENGLAND                        ",null,null,"E40000001",null,17620,null,15180,null,2440,null,16060,null,14640,null,1420,null,1560,null,540,null,1020]
[null,null,null,"CHESHIRE, WARRINGTON AND WIRRAL",null,"E39000001",null,610,null,580,null,30,null,610,null,580,null,30,null,0,null,0,null,0]
[null,null,null,null,"NHS West Cheshire","E38000196","02F",610,null,580,null,30,null,610,null,580,null,30,null,0,null,0,null,0]
[null,null,null,"LANCASHIRE",null,"E39000004",null,920,null,820,null,100,null,920,null,820,null,100,null,0,null,0,null,0]
[null,null,null,null,"NHS Fylde & Wyre","E38000060","02M",920,null,820,null,100,null,920,null,820,null,100,null,0,null,0,null,0]
[null,null,null,null,"NHS Greater Preston","E38000065","01E",10,null,10,null,"~",null,10,null,10,null,"~",null,0,null,0,null,0]
[null,null,null,"CUMBRIA, NORTHUMBERLAND, TYNE AND WEAR",null,"E39000006",null,1450,null,1310,null,140,null,1450,null,1310,null,140,null,0,null,0,null,0]
[null,null,null,null,"NHS Cumbria ","E38000041","01H",200,null,190,null,"~",null,200,null,190,null,"~",null,0,null,0,null,0]
[null,null,null,null,"NHS Northumberland ","E38000130","00L",1260,null,1120,null,140,null,1260,null,1120,null,140,null,0,null,0,null,0]
[null,null,null,"NORTH YORKSHIRE AND HUMBER                 ",null,"E39000007",null,14640,null,12470,null,2160,null,13070,null,11930,null,1140,null,1560,null,540,null,1020]
[null,null,null,null,"NHS East Riding of Yorkshire ","E38000052","02Y",410,null,360,null,60,null,410,null,360,null,60,null,0,null,0,null,0]
[null,null,null,null,"NHS Hambleton, Richmondshire and Whitby ","E38000069","03D",10030,null,8460,null,1560,null,8650,null,7980,null,670,null,1380,null,480,null,900]
[null,null,null,null,"NHS Harrogate and Rural District ","E38000073","03E",2740,null,2490,null,250,null,2740,null,2490,null,250,null,0,null,0,null,0]
[null,null,null,null,"NHS Scarborough and Ryedale ","E38000145","03M",90,null,80,null,10,null,90,null,80,null,10,null,0,null,0,null,0]
[null,null,null,null,"NHS Vale of York ","E38000188","03Q",1360,null,1080,null,290,null,1180,null,1020,null,160,null,180,null,60,null,130]
[null,null,"MIDLANDS AND EAST OF ENGLAND",null,null,"E40000002",null,32880,null,26980,null,5890,null,29360,null,25730,null,3630,null,3520,null,1250,null,2270]
[null,null,null,"ARDEN, HEREFORDSHIRE AND WORCESTERSHIRE",null,"E39000010",null,820,null,760,null,70,null,820,null,760,null,70,null,"~",null,0,null,"~"]
[null,null,null,null,"NHS Coventry and Rugby ","E38000038","05A",640,null,590,null,50,null,640,null,590,null,50,null,0,null,0,null,0]
[null,null,null,null,"NHS South Warwickshire ","E38000164","05R",190,null,170,null,20,null,180,null,170,null,20,null,"~",null,0,null,"~"]
[null,null,null,"BIRMINGHAM AND THE BLACK COUNTRY",null,"E39000011",null,710,null,320,null,390,null,710,null,320,null,390,null,0,null,0,null,0]
[null,null,null,null,"NHS Birmingham CrossCity ","E38000012","13P",710,null,320,null,390,null,710,null,320,null,390,null,0,null,0,null,0]
[null,null,null,"DERBYSHIRE AND NOTTINGHAMSHIRE",null,"E39000012",null,830,null,790,null,40,null,830,null,790,null,40,null,0,null,0,null,0]
[null,null,null,null,"NHS Nottingham West ","E38000134","04M",830,null,790,null,40,null,830,null,790,null,40,null,0,null,0,null,0]
[null,null,null,"EAST ANGLIA",null,"E39000013",null,8880,null,7210,null,1670,null,7440,null,6720,null,710,null,1440,null,490,null,950]
[null,null,null,null,"NHS Cambridgeshire and Peterborough ","E38000026","06H",2270,null,1740,null,540,null,1810,null,1580,null,230,null,470,null,160,null,300]
[null,null,null,null,"NHS Ipswich and East Suffolk ","E38000086","06L",3240,null,2990,null,240,null,3220,null,2980,null,240,null,10,null,10,null,"~"]
[null,null,null,null,"NHS South Norfolk ","E38000159","06Y",370,null,360,null,10,null,370,null,360,null,10,null,0,null,0,null,0]
[null,null,null,null,"NHS West Norfolk ","E38000203","07J",3000,null,2120,null,880,null,2030,null,1800,null,230,null,960,null,320,null,650]
[null,null,null,"ESSEX",null,"E39000014",null,3900,null,3660,null,240,null,3900,null,3660,null,240,null,0,null,0,null,0]
[null,null,null,null,"NHS North East Essex ","E38000117","06T",3180,null,2970,null,220,null,3180,null,2970,null,220,null,0,null,0,null,0]
[null,null,null,null,"NHS West Essex ","E38000197","07H",720,null,690,null,30,null,720,null,690,null,30,null,0,null,0,null,0]
[null,null,null,"HERTFORDSHIRE AND THE SOUTH MIDLANDS",null,"E39000015",null,2360,null,2010,null,350,null,2360,null,2010,null,350,null,10,null,"~",null,"~"]
[null,null,null,null,"NHS Bedfordshire ","E38000010","06F",1150,null,950,null,200,null,1150,null,950,null,200,null,"~",null,0,null,"~"]
[null,null,null,null,"NHS Herts Valleys ","E38000079","06N",1210,null,1070,null,150,null,1210,null,1060,null,150,null,10,null,"~",null,"~"]
[null,null,null,"LEICESTERSHIRE AND LINCOLNSHIRE",null,"E39000016",null,9570,null,7560,null,2010,null,8190,null,7090,null,1100,null,1380,null,480,null,910]
[null,null,null,null,"NHS East Leicestershire and Rutland ","E38000051","03W",2250,null,1590,null,660,null,1620,null,1380,null,240,null,630,null,210,null,420]
[null,null,null,null,"NHS Lincolnshire East ","E38000099","03T",2260,null,1930,null,330,null,2060,null,1850,null,210,null,200,null,80,null,120]
[null,null,null,null,"NHS Lincolnshire West ","E38000100","04D",2760,null,2450,null,300,null,2760,null,2450,null,300,null,"~",null,"~",null,"~"]
[null,null,null,null,"NHS South West Lincolnshire ","E38000165","04Q",2300,null,1590,null,710,null,1750,null,1400,null,350,null,550,null,190,null,360]
[null,null,null,"SHROPSHIRE AND STAFFORDSHIRE",null,"E39000017",null,5800,null,4670,null,1130,null,5110,null,4390,null,720,null,690,null,280,null,410]
[null,null,null,null,"NHS Shropshire ","E38000147","05N",3460,null,2750,null,700,null,2770,null,2470,null,300,null,690,null,280,null,410]
[null,null,null,null,"NHS South East Staffs and Seisdon and Peninsular","E38000153","05Q",760,null,460,null,300,null,760,null,460,null,300,null,0,null,0,null,0]
[null,null,null,null,"NHS Stafford and Surrounds ","E38000173","05V",1580,null,1460,null,120,null,1580,null,1460,null,120,null,0,null,0,null,0]
[null,null,"LONDON",null,null,"E40000003",null,5000,null,4180,null,820,null,4530,null,4030,null,500,null,460,null,150,null,320]
[null,null,null,"LONDON",null,"E39000018",null,5000,null,4180,null,820,null,4530,null,4030,null,500,null,460,null,150,null,320]
[null,null,null,null,"NHS Central London (Westminster) ","E38000031","09A",380,null,370,null,10,null,380,null,370,null,10,null,0,null,0,null,0]
[null,null,null,null,"NHS Hillingdon ","E38000082","08G",1260,null,820,null,440,null,800,null,670,null,130,null,460,null,150,null,310]
[null,null,null,null,"NHS Hounslow ","E38000084","07Y",520,null,490,null,30,null,520,null,490,null,30,null,0,null,0,null,0]
[null,null,null,null,"NHS Greenwich ","E38000066","08A",800,null,700,null,100,null,800,null,700,null,100,null,0,null,0,null,0]
[null,null,null,null,"NHS Lambeth ","E38000092","08K",2030,null,1800,null,240,null,2030,null,1800,null,240,null,"~",null,"~",null,"~"]
[null,null,"SOUTH OF ENGLAND",null,null,"E40000004",null,82120,null,68690,null,13430,null,73920,null,65850,null,8080,null,8200,null,2840,null,5360]
[null,null,null,"BATH, GLOUCESTERSHIRE, SWINDON AND WILTSHIRE",null,"E39000019",null,23750,null,18930,null,4820,null,19130,null,17380,null,1750,null,4620,null,1550,null,3070]
[null,null,null,null,"NHS Gloucestershire ","E38000062","11M",2100,null,1880,null,220,null,2100,null,1880,null,220,null,0,null,0,null,0]
[null,null,null,null,"NHS Swindon ","E38000181","12D",1080,null,940,null,140,null,1080,null,940,null,140,null,0,null,0,null,0]
[null,null,null,null,"NHS Wiltshire ","E38000206","99N",20560,null,16100,null,4460,null,15940,null,14550,null,1390,null,4620,null,1550,null,3070]
[null,null,null,"BRISTOL, NORTH SOMERSET, SOMERSET AND SOUTH GLOS",null,"E39000020",null,4600,null,4250,null,340,null,4600,null,4250,null,340,null,"~",null,"~",null,"~"]
[null,null,null,null,"NHS Somerset ","E38000150","11X",3280,null,3050,null,230,null,3280,null,3050,null,230,null,"~",null,"~",null,"~"]
[null,null,null,null,"NHS South Gloucestershire ","E38000155","12A",1310,null,1200,null,110,null,1310,null,1200,null,110,null,0,null,0,null,0]
[null,null,null,"DEVON, CORNWALL AND ISLES OF SCILLY",null,"E39000021",null,12110,null,10950,null,1160,null,12050,null,10900,null,1150,null,60,null,50,null,10]
[null,null,null,null,"NHS Kernow ","E38000089","11N",3130,null,2770,null,350,null,3120,null,2770,null,350,null,"~",null,"~",null,"~"]
[null,null,null,null,"NHS North, East, West Devon ","E38000129","99P",8570,null,7820,null,750,null,8510,null,7770,null,740,null,60,null,50,null,10]
[null,null,null,null,"NHS South Devon and Torbay","E38000152","99Q",420,null,360,null,60,null,420,null,360,null,60,null,0,null,0,null,0]
[null,null,null,"KENT AND MEDWAY",null,"E39000022",null,2480,null,2440,null,40,null,2480,null,2440,null,40,null,"~",null,"~",null,0]
[null,null,null,null,"NHS Medway ","E38000104","09W",530,null,510,null,20,null,530,null,510,null,20,null,0,null,0,null,0]
[null,null,null,null,"NHS South Kent Coast ","E38000156","10A",1320,null,1320,null,10,null,1320,null,1320,null,10,null,0,null,0,null,0]
[null,null,null,null,"NHS West Kent ","E38000199","99J",620,null,610,null,10,null,620,null,610,null,10,null,"~",null,"~",null,0]
[null,null,null,"SURREY AND SUSSEX",null,"E39000023",null,3920,null,3060,null,850,null,3260,null,2830,null,420,null,660,null,230,null,430]
[null,null,null,null,"NHS Coastal West Sussex ","E38000213","09G",950,null,840,null,110,null,950,null,840,null,110,null,"~",null,"~",null,"~"]
[null,null,null,null,"NHS North West Surrey ","E38000128","09Y",2380,null,1730,null,650,null,1720,null,1500,null,220,null,660,null,230,null,430]
[null,null,null,null,"NHS Surrey Heath ","E38000178","10C",580,null,490,null,90,null,580,null,490,null,90,null,0,null,0,null,0]
[null,null,null,"THAMES VALLEY",null,"E39000024",null,15890,null,12240,null,3650,null,13110,null,11310,null,1810,null,2780,null,930,null,1840]
[null,null,null,null,"NHS Aylesbury Vale ","E38000003","10Y",3550,null,2640,null,910,null,3010,null,2450,null,560,null,540,null,190,null,350]
[null,null,null,null,"NHS Bracknell and Ascot ","E38000017","10G",1770,null,1220,null,550,null,1240,null,1060,null,170,null,540,null,160,null,380]
[null,null,null,null,"NHS Newbury and District ","E38000110","10M",330,null,280,null,50,null,330,null,280,null,50,null,0,null,0,null,0]
[null,null,null,null,"NHS Oxfordshire ","E38000136","10Q",9270,null,7180,null,2100,null,7570,null,6590,null,980,null,1700,null,580,null,1120]
[null,null,null,null,"NHS Windsor, Ascot and Maidenhead ","E38000207","11C",970,null,920,null,40,null,970,null,920,null,40,null,"~",null,"~",null,0]
[null,null,null,"WESSEX",null,"E39000025",null,19370,null,16820,null,2560,null,19300,null,16740,null,2550,null,80,null,70,null,"~"]
[null,null,null,null,"NHS Fareham and Gosport ","E38000059","10K",3410,null,3080,null,340,null,3410,null,3070,null,340,null,"~",null,"~",null,"~"]
[null,null,null,null,"NHS North East Hampshire and Farnham ","E38000118","99M",4700,null,4110,null,590,null,4700,null,4110,null,590,null,"~",null,"~",null,"~"]
[null,null,null,null,"NHS North Hampshire ","E38000120","10J",1690,null,1510,null,180,null,1690,null,1510,null,180,null,"~",null,"~",null,0]
[null,null,null,null,"NHS Portsmouth ","E38000137","10R",6720,null,5790,null,930,null,6660,null,5720,null,930,null,70,null,70,null,0]
[null,null,null,null,"NHS West Hampshire ","E38000198","11A",2850,null,2330,null,520,null,2840,null,2330,null,520,null,"~",null,"~",null,"~"]
[]
[]
[null,"Source: DMICP Data Warehouse"]
[null,"1. In line with Joint Service Publication 200, numbers 5 or fewer have been supressed and presented as '~'."]
[null,"2. Due to rounding, please note that totals may not equal the sum of their parts."]
[null,"3. The presence of  +/- indicates percentage changes in figures over the last six months.  + indicates there has been a 5% to 10% increase and - indicates there has been between a 5% to 10% decrease.  ++ indicates a greater than 10% increase and -- indicates a greater than 10% decrease."]
[null,"4. Age bands are based on age as at time of data extraction."]

{"sheet":"Table B1.6","index":10,"n_rows":100,"n_cols":34,"rows_kept":100,"cut":false,"hidden":false,"merged":[[6,2,6,3],[9,1,9,4],[96,1,96,18],[99,1,99,20],[98,1,98,20],[97,1,97,20]]}
[null,"Annex B1 - England, by NHS Clinical Commissioning Group"]
[]
[null,"Table B1.6: UK Armed Forces males and entitled civilian males DMS registrations, registered to NHS Clinical Commissioning Groups by age band, Numbers"]
[null,"1 April 2018"]
[null,"Defence Statistics Health"]
[]
[null,null,"Return to contents"]
[]
[null,null,null,null,null,"NEW","OLD"]
[null,"Area Name",null,null,null,"Area Code","Area Code","All Males","0-4","+/-","5-9","+/-","10-14","+/-","15-19","+/-","20-24","+/-","25-29","+/-","30-34","+/-","35-39","+/-","40-44","+/-","45-49","+/-","50-54","+/-","55-59","+/-","60+","+/-"]
[null,"ENGLAND                            ",null,null,null,"E92000001",null,115030,1840,"-",1380,"",740,"",6720,"+",20810,"",24880,"",20320,"",16820,"",9950,"",6760,"",3940,"",780,"++",80,"+"]
[null,null,"NORTH OF ENGLAND                        ",null,null,"E40000001",null,15180,220,null,180,null,80,null,2060,null,2990,null,3420,null,2580,null,1850,null,980,null,510,null,250,null,50,null,"~"]
[null,null,null,"CHESHIRE, WARRINGTON AND WIRRAL",null,"E39000001",null,580,0,null,0,null,0,null,20,null,150,null,160,null,110,null,80,null,40,null,20,null,10,null,"~",null,0]
[null,null,null,null,"NHS West Cheshire","E38000196","02F",580,0,null,0,null,0,null,20,null,150,null,160,null,110,null,80,null,40,null,20,null,10,null,"~",null,0]
[null,null,null,"LANCASHIRE",null,"E39000004",null,820,0,null,0,null,0,null,20,null,180,null,220,null,160,null,120,null,70,null,30,null,20,null,"~",null,0]
[null,null,null,null,"NHS Fylde & Wyre","E38000060","02M",820,0,null,0,null,0,null,20,null,180,null,220,null,160,null,120,null,60,null,30,null,10,null,"~",null,0]
[null,null,null,null,"NHS Greater Preston","E38000065","01E",10,0,null,0,null,0,null,0,null,0,null,0,null,0,null,"~",null,"~",null,"~",null,"~",null,0,null,0]
[null,null,null,"CUMBRIA, NORTHUMBERLAND, TYNE AND WEAR",null,"E39000006",null,1310,0,null,0,null,0,null,50,null,230,null,330,null,260,null,220,null,100,null,80,null,40,null,10,null,0]
[null,null,null,null,"NHS Cumbria ","E38000041","01H",190,0,null,0,null,0,null,0,null,10,null,40,null,40,null,50,null,20,null,20,null,10,null,"~",null,0]
[null,null,null,null,"NHS Northumberland ","E38000130","00L",1120,0,null,0,null,0,null,50,null,220,null,280,null,220,null,170,null,80,null,60,null,30,null,"~",null,0]
[null,null,null,"NORTH YORKSHIRE AND HUMBER                 ",null,"E39000007",null,12470,220,null,180,null,80,null,1980,null,2430,null,2720,null,2050,null,1430,null,780,null,380,null,180,null,40,null,"~"]
[null,null,null,null,"NHS East Riding of Yorkshire ","E38000052","02Y",360,0,null,0,null,0,null,80,null,60,null,60,null,50,null,40,null,40,null,20,null,"~",null,"~",null,0]
[null,null,null,null,"NHS Hambleton, Richmondshire and Whitby ","E38000069","03D",8460,190,null,160,null,80,null,940,null,1900,null,1980,null,1440,null,900,null,490,null,230,null,110,null,20,null,"~"]
[null,null,null,null,"NHS Harrogate and Rural District ","E38000073","03E",2490,0,null,0,null,0,null,940,null,320,null,450,null,340,null,270,null,110,null,40,null,10,null,"~",null,0]
[null,null,null,null,"NHS Scarborough and Ryedale ","E38000145","03M",80,0,null,0,null,0,null,0,null,"~",null,20,null,20,null,10,null,20,null,20,null,10,null,0,null,0]
[null,null,null,null,"NHS Vale of York ","E38000188","03Q",1080,20,null,20,null,10,null,20,null,160,null,200,null,200,null,200,null,110,null,80,null,40,null,10,null,"~"]
[null,null,"MIDLANDS AND EAST OF ENGLAND",null,null,"E40000002",null,26980,470,null,350,null,190,null,870,null,4600,null,5930,null,4860,null,4310,null,2560,null,1690,null,930,null,200,null,20]
[null,null,null,"ARDEN, HEREFORDSHIRE AND WORCESTERSHIRE",null,"E39000010",null,760,0,null,0,null,0,null,30,null,180,null,180,null,130,null,150,null,50,null,20,null,10,null,"~",null,0]
[null,null,null,null,"NHS Coventry and Rugby ","E38000038","05A",590,0,null,0,null,0,null,20,null,160,null,140,null,100,null,110,null,40,null,10,null,"~",null,"~",null,0]
[null,null,null,null,"NHS South Warwickshire ","E38000164","05R",170,0,null,0,null,0,null,"~",null,20,null,40,null,30,null,40,null,10,null,10,null,"~",null,"~",null,0]
[null,null,null,"BIRMINGHAM AND THE BLACK COUNTRY",null,"E39000011",null,320,0,null,0,null,0,null,"~",null,20,null,60,null,60,null,60,null,50,null,30,null,20,null,10,null,"~"]
[null,null,null,null,"NHS Birmingham CrossCity ","E38000012","13P",320,0,null,0,null,0,null,"~",null,20,null,60,null,60,null,60,null,50,null,30,null,20,null,10,null,"~"]
[null,null,null,"DERBYSHIRE AND NOTTINGHAMSHIRE",null,"E39000012",null,790,0,null,0,null,0,null,10,null,50,null,100,null,170,null,160,null,140,null,110,null,40,null,10,null,"~"]
[null,null,null,null,"NHS Nottingham West ","E38000134","04M",790,0,null,0,null,0,null,10,null,50,null,100,null,170,null,160,null,140,null,110,null,40,null,10,null,"~"]
[null,null,null,"EAST ANGLIA",null,"E39000013",null,7210,210,null,150,null,80,null,210,null,1230,null,1720,null,1340,null,1030,null,580,null,390,null,230,null,50,null,"~"]
[null,null,null,null,"NHS Cambridgeshire and Peterborough ","E38000026","06H",1740,60,null,50,null,40,null,30,null,190,null,370,null,330,null,260,null,180,null,130,null,80,null,20,null,"~"]
[null,null,null,null,"NHS Ipswich and East Suffolk ","E38000086","06L",2990,0,null,"~",null,"~",null,120,null,620,null,790,null,560,null,450,null,220,null,140,null,70,null,10,null,"~"]
[null,null,null,null,"NHS South Norfolk ","E38000159","06Y",360,0,null,0,null,0,null,10,null,90,null,120,null,70,null,40,null,20,null,"~",null,"~",null,0,null,0]
[null,null,null,null,"NHS West Norfolk ","E38000203","07J",2120,160,null,100,null,40,null,40,null,320,null,440,null,370,null,270,null,160,null,110,null,80,null,20,null,"~"]
[null,null,null,"ESSEX",null,"E39000014",null,3660,0,null,0,null,0,null,140,null,900,null,1040,null,710,null,490,null,270,null,80,null,30,null,"~",null,"~"]
[null,null,null,null,"NHS North East Essex ","E38000117","06T",2970,0,null,0,null,0,null,130,null,750,null,850,null,550,null,390,null,210,null,60,null,20,null,"~",null,"~"]
[null,null,null,null,"NHS West Essex ","E38000197","07H",690,0,null,0,null,0,null,20,null,140,null,190,null,160,null,100,null,60,null,20,null,10,null,"~",null,0]
[null,null,null,"HERTFORDSHIRE AND THE SOUTH MIDLANDS",null,"E39000015",null,2010,0,null,0,null,0,null,20,null,110,null,270,null,360,null,450,null,320,null,260,null,180,null,30,null,"~"]
[null,null,null,null,"NHS Bedfordshire ","E38000010","06F",950,0,null,0,null,0,null,20,null,90,null,180,null,210,null,200,null,120,null,80,null,40,null,10,null,0]
[null,null,null,null,"NHS Herts Valleys ","E38000079","06N",1070,0,null,0,null,0,null,"~",null,20,null,100,null,160,null,250,null,200,null,170,null,140,null,20,null,"~"]
[null,null,null,"LEICESTERSHIRE AND LINCOLNSHIRE",null,"E39000016",null,7560,180,null,140,null,80,null,160,null,1000,null,1530,null,1380,null,1320,null,800,null,600,null,310,null,60,null,10]
[null,null,null,null,"NHS East Leicestershire and Rutland ","E38000051","03W",1590,80,null,70,null,30,null,70,null,310,null,370,null,280,null,210,null,100,null,40,null,10,null,"~",null,0]
[null,null,null,null,"NHS Lincolnshire East ","E38000099","03T",1930,30,null,20,null,10,null,40,null,250,null,440,null,380,null,350,null,210,null,120,null,60,null,10,null,0]
[null,null,null,null,"NHS Lincolnshire West ","E38000100","04D",2450,0,null,0,null,0,null,20,null,220,null,420,null,460,null,510,null,340,null,300,null,150,null,20,null,0]
[null,null,null,null,"NHS South West Lincolnshire ","E38000165","04Q",1590,60,null,60,null,30,null,30,null,230,null,290,null,260,null,240,null,150,null,140,null,90,null,20,null,10]
[null,null,null,"SHROPSHIRE AND STAFFORDSHIRE",null,"E39000017",null,4670,80,null,50,null,40,null,300,null,1100,null,1020,null,720,null,640,null,350,null,210,null,110,null,30,null,"~"]
[null,null,null,null,"NHS Shropshire ","E38000147","05N",2750,80,null,50,null,40,null,220,null,700,null,550,null,350,null,330,null,200,null,140,null,80,null,20,null,"~"]
[null,null,null,null,"NHS South East Staffs and Seisdon and Peninsular","E38000153","05Q",460,0,null,0,null,0,null,50,null,90,null,60,null,70,null,60,null,40,null,40,null,30,null,10,null,"~"]
[null,null,null,null,"NHS Stafford and Surrounds ","E38000173","05V",1460,0,null,0,null,0,null,30,null,320,null,410,null,290,null,260,null,120,null,30,null,10,null,"~",null,0]
[null,null,"LONDON",null,null,"E40000003",null,4180,60,null,40,null,10,null,190,null,670,null,820,null,650,null,600,null,400,null,400,null,290,null,50,null,"~"]
[null,null,null,"LONDON",null,"E39000018",null,4180,60,null,40,null,10,null,190,null,670,null,820,null,650,null,600,null,400,null,400,null,290,null,50,null,"~"]
[null,null,null,null,"NHS Central London (Westminster) ","E38000031","09A",370,0,null,0,null,0,null,30,null,110,null,100,null,50,null,40,null,10,null,10,null,"~",null,0,null,0]
[null,null,null,null,"NHS Hillingdon ","E38000082","08G",820,60,null,40,null,10,null,20,null,90,null,180,null,130,null,120,null,60,null,50,null,40,null,10,null,"~"]
[null,null,null,null,"NHS Hounslow ","E38000084","07Y",490,0,null,0,null,0,null,20,null,140,null,120,null,100,null,60,null,30,null,20,null,10,null,"~",null,0]
[null,null,null,null,"NHS Greenwich ","E38000066","08A",700,0,null,0,null,0,null,40,null,200,null,210,null,110,null,90,null,30,null,10,null,"~",null,"~",null,0]
[null,null,null,null,"NHS Lambeth ","E38000092","08K",1800,0,null,0,null,0,null,80,null,120,null,200,null,250,null,290,null,270,null,300,null,230,null,40,null,"~"]
[null,null,"SOUTH OF ENGLAND",null,null,"E40000004",null,68690,1090,null,820,null,450,null,3590,null,12550,null,14710,null,12230,null,10060,null,6010,null,4150,null,2480,null,480,null,50]
[null,null,null,"BATH, GLOUCESTERSHIRE, SWINDON AND WILTSHIRE",null,"E39000019",null,18930,610,null,490,null,280,null,1030,null,3260,null,3740,null,3440,null,2880,null,1640,null,950,null,540,null,70,null,10]
[null,null,null,null,"NHS Gloucestershire ","E38000062","11M",1880,0,null,0,null,0,null,50,null,360,null,390,null,370,null,340,null,200,null,100,null,60,null,10,null,0]
[null,null,null,null,"NHS Swindon ","E38000181","12D",940,0,null,0,null,0,null,0,null,10,null,30,null,250,null,210,null,160,null,160,null,100,null,20,null,0]
[null,null,null,null,"NHS Wiltshire ","E38000206","99N",16100,610,null,490,null,280,null,970,null,2900,null,3310,null,2820,null,2320,null,1270,null,690,null,380,null,50,null,10]
[null,null,null,"BRISTOL, NORTH SOMERSET, SOMERSET AND SOUTH GLOS",null,"E39000020",null,4250,0,null,0,null,0,null,70,null,560,null,860,null,730,null,720,null,490,null,470,null,310,null,50,null,"~"]
[null,null,null,null,"NHS Somerset ","E38000150","11X",3050,0,null,0,null,0,null,70,null,560,null,810,null,610,null,460,null,260,null,190,null,80,null,20,null,"~"]
[null,null,null,null,"NHS South Gloucestershire ","E38000155","12A",1200,0,null,0,null,0,null,0,null,"~",null,50,null,120,null,260,null,230,null,280,null,230,null,40,null,"~"]
[null,null,null,"DEVON, CORNWALL AND ISLES OF SCILLY",null,"E39000021",null,10950,0,null,0,null,0,null,680,null,2420,null,2630,null,1910,null,1330,null,890,null,610,null,380,null,80,null,10]
[null,null,null,null,"NHS Kernow ","E38000089","11N",2770,0,null,0,null,0,null,350,null,560,null,540,null,470,null,320,null,240,null,150,null,120,null,20,null,"~"]
[null,null,null,null,"NHS North, East, West Devon ","E38000129","99P",7820,0,null,0,null,0,null,320,null,1720,null,2000,null,1410,null,980,null,630,null,440,null,260,null,60,null,"~"]
[null,null,null,null,"NHS South Devon and Torbay","E38000152","99Q",360,0,null,0,null,0,null,20,null,140,null,100,null,30,null,20,null,20,null,20,null,10,null,"~",null,"~"]
[null,null,null,"KENT AND MEDWAY",null,"E39000022",null,2440,0,null,0,null,0,null,110,null,680,null,560,null,480,null,350,null,180,null,70,null,20,null,"~",null,"~"]
[null,null,null,null,"NHS Medway ","E38000104","09W",510,0,null,0,null,0,null,70,null,130,null,110,null,100,null,50,null,30,null,20,null,"~",null,"~",null,0]
[null,null,null,null,"NHS South Kent Coast ","E38000156","10A",1320,0,null,0,null,0,null,20,null,390,null,290,null,240,null,220,null,110,null,40,null,10,null,"~",null,0]
[null,null,null,null,"NHS West Kent ","E38000199","99J",610,0,null,0,null,0,null,10,null,160,null,160,null,130,null,80,null,40,null,10,null,"~",null,0,null,"~"]
[null,null,null,"SURREY AND SUSSEX",null,"E39000023",null,3060,90,null,60,null,50,null,320,null,660,null,740,null,520,null,340,null,160,null,70,null,30,null,10,null,"~"]
[null,null,null,null,"NHS Coastal West Sussex ","E38000213","09G",840,0,null,0,null,0,null,30,null,180,null,240,null,190,null,140,null,60,null,10,null,"~",null,"~",null,"~"]
[null,null,null,null,"NHS North West Surrey ","E38000128","09Y",1730,90,null,60,null,50,null,240,null,380,null,370,null,250,null,150,null,60,null,40,null,20,null,"~",null,0]
[null,null,null,null,"NHS Surrey Heath ","E38000178","10C",490,0,null,0,null,0,null,50,null,110,null,130,null,80,null,50,null,40,null,20,null,10,null,"~",null,0]
[null,null,null,"THAMES VALLEY",null,"E39000024",null,12240,390,null,270,null,130,null,520,null,1840,null,2440,null,2090,null,1950,null,1150,null,840,null,500,null,120,null,10]
[null,null,null,null,"NHS Aylesbury Vale ","E38000003","10Y",2640,60,null,60,null,30,null,260,null,280,null,270,null,340,null,380,null,310,null,330,null,250,null,70,null,10]
[null,null,null,null,"NHS Bracknell and Ascot ","E38000017","10G",1220,70,null,50,null,20,null,20,null,360,null,300,null,150,null,140,null,40,null,40,null,30,null,"~",null,"~"]
[null,null,null,null,"NHS Newbury and District ","E38000110","10M",280,0,null,0,null,0,null,10,null,20,null,70,null,70,null,50,null,30,null,20,null,10,null,0,null,0]
[null,null,null,null,"NHS Oxfordshire ","E38000136","10Q",7180,270,null,160,null,80,null,220,null,960,null,1490,null,1350,null,1250,null,710,null,430,null,210,null,40,null,"~"]
[null,null,null,null,"NHS Windsor, Ascot and Maidenhead ","E38000207","11C",920,0,null,0,null,0,null,10,null,210,null,300,null,190,null,130,null,60,null,30,null,"~",null,"~",null,0]
[null,null,null,"WESSEX",null,"E39000025",null,16820,0,null,0,null,0,null,870,null,3120,null,3750,null,3060,null,2510,null,1510,null,1150,null,700,null,150,null,20]
[null,null,null,null,"NHS Fareham and Gosport ","E38000059","10K",3080,0,null,0,null,0,null,260,null,570,null,730,null,580,null,390,null,220,null,180,null,110,null,20,null,"~"]
[null,null,null,null,"NHS North East Hampshire and Farnham ","E38000118","99M",4110,0,null,0,null,0,null,250,null,890,null,950,null,740,null,670,null,370,null,160,null,70,null,10,null,"~"]
[null,null,null,null,"NHS North Hampshire ","E38000120","10J",1510,0,null,0,null,0,null,40,null,230,null,380,null,340,null,260,null,140,null,70,null,40,null,10,null,0]
[null,null,null,null,"NHS Portsmouth ","E38000137","10R",5790,0,null,0,null,0,null,180,null,1030,null,1190,null,1010,null,850,null,530,null,550,null,370,null,80,null,10]
[null,null,null,null,"NHS West Hampshire ","E38000198","11A",2330,0,null,0,null,0,null,140,null,390,null,500,null,390,null,340,null,250,null,190,null,110,null,20,null,"~"]
[]
[]
[null,"Source: DMICP Data Warehouse"]
[null,"1. In line with Joint Service Publication 200, numbers 5 or fewer have been supressed and presented as '~'."]
[null,"2. Due to rounding, please note that totals may not equal the sum of their parts."]
[null,"3. The presence of  +/- indicates percentage changes in figures over the last six months.  + indicates there has been a 5% to 10% increase and - indicates there has been between a 5% to 10% decrease.  ++ indicates a greater than 10% increase and -- indicates a greater than 10% decrease."]
[null,"4. Age bands are based on age as at time of data extraction."]

{"sheet":"Table B1.7","index":11,"n_rows":99,"n_cols":34,"rows_kept":99,"cut":false,"hidden":false,"merged":[[6,2,6,3],[9,1,9,4],[98,1,98,20],[97,1,97,20],[96,1,96,20],[95,1,95,20]]}
[null,"Annex B1 - England, by NHS Clinical Commissioning Group"]
[]
[null,"Table B1.7: UK Armed Forces females and entitled civilian females DMS registrations, registered to NHS Clinical Commissioning Groups by age band, Numbers"]
[null,"1 April 2018"]
[null,"Defence Statistics Health"]
[]
[null,null,"Return to contents"]
[]
[null,null,null,null,null,"NEW","OLD"]
[null,"Area Name",null,null,null,"Area Code","Area Code","All Females","0-4","+/-","5-9","+/-","10-14","+/-","15-19","+/-","20-24","+/-","25-29","+/-","30-34","+/-","35-39","+/-","40-44","+/-","45-49","+/-","50-54","+/-","55-59","+/-","60+","+/-"]
[null,"ENGLAND                            ",null,null,null,"E92000001",null,22580,1760,"-",1310,"",700,"",1020,"++",2760,"",4340,"",4180,"",3380,"",1740,"",970,"+",360,"+",60,"",10,""]
[null,null,"NORTH OF ENGLAND                        ",null,null,"E40000001",null,2440,210,null,180,null,70,null,190,null,350,null,480,null,380,null,310,null,170,null,80,null,30,null,10,null,"~"]
[null,null,null,"CHESHIRE, WARRINGTON AND WIRRAL",null,"E39000001",null,30,0,null,0,null,0,null,0,null,"~",null,10,null,10,null,10,null,"~",null,"~",null,0,null,0,null,0]
[null,null,null,null,"NHS West Cheshire","E38000196","02F",30,0,null,0,null,0,null,0,null,"~",null,10,null,10,null,10,null,"~",null,"~",null,0,null,0,null,0]
[null,null,null,"LANCASHIRE",null,"E39000004",null,100,0,null,0,null,0,null,10,null,30,null,20,null,20,null,10,null,10,null,"~",null,0,null,0,null,0]
[null,null,null,null,"NHS Fylde & Wyre","E38000060","02M",100,0,null,0,null,0,null,10,null,30,null,20,null,20,null,10,null,10,null,"~",null,0,null,0,null,0]
[null,null,null,null,"NHS Greater Preston","E38000065","01E","~",0,null,0,null,0,null,0,null,0,null,0,null,0,null,0,null,"~",null,0,null,0,null,0,null,0]
[null,null,null,"CUMBRIA, NORTHUMBERLAND, TYNE AND WEAR",null,"E39000006",null,140,0,null,0,null,0,null,10,null,40,null,30,null,20,null,20,null,10,null,10,null,0,null,0,null,0]
[null,null,null,null,"NHS Cumbria ","E38000041","01H","~",0,null,0,null,0,null,0,null,0,null,0,null,"~",null,"~",null,0,null,0,null,0,null,0,null,0]
[null,null,null,null,"NHS Northumberland ","E38000130","00L",140,0,null,0,null,0,null,10,null,40,null,30,null,20,null,20,null,10,null,10,null,0,null,0,null,0]
[null,null,null,"NORTH YORKSHIRE AND HUMBER                 ",null,"E39000007",null,2160,210,null,180,null,70,null,170,null,270,null,410,null,330,null,270,null,150,null,70,null,30,null,10,null,"~"]
[null,null,null,null,"NHS East Riding of Yorkshire ","E38000052","02Y",60,0,null,0,null,0,null,20,null,10,null,"~",null,10,null,10,null,"~",null,"~",null,0,null,0,null,0]
[null,null,null,null,"NHS Hambleton, Richmondshire and Whitby ","E38000069","03D",1560,190,null,150,null,60,null,40,null,180,null,310,null,260,null,200,null,100,null,50,null,20,null,"~",null,"~"]
[null,null,null,null,"NHS Harrogate and Rural District ","E38000073","03E",250,0,null,0,null,0,null,100,null,40,null,50,null,20,null,20,null,10,null,"~",null,"~",null,0,null,"~"]
[null,null,null,null,"NHS Scarborough and Ryedale ","E38000145","03M",10,0,null,0,null,0,null,0,null,"~",null,"~",null,0,null,"~",null,"~",null,"~",null,0,null,0,null,0]
[null,null,null,null,"NHS Vale of York ","E38000188","03Q",290,20,null,20,null,10,null,10,null,30,null,40,null,50,null,40,null,30,null,20,null,10,null,"~",null,0]
[null,null,"MIDLANDS AND EAST OF ENGLAND",null,null,"E40000002",null,5890,440,null,320,null,160,null,200,null,720,null,1150,null,1120,null,900,null,460,null,280,null,110,null,20,null,"~"]
[null,null,null,"ARDEN, HEREFORDSHIRE AND WORCESTERSHIRE",null,"E39000010",null,70,0,null,0,null,0,null,"~",null,10,null,20,null,10,null,20,null,"~",null,"~",null,"~",null,0,null,0]
[null,null,null,null,"NHS Coventry and Rugby ","E38000038","05A",50,0,null,0,null,0,null,"~",null,10,null,10,null,10,null,10,null,"~",null,0,null,0,null,0,null,0]
[null,null,null,null,"NHS South Warwickshire ","E38000164","05R",20,0,null,0,null,0,null,0,null,"~",null,10,null,"~",null,"~",null,"~",null,"~",null,"~",null,0,null,0]
[null,null,null,"BIRMINGHAM AND THE BLACK COUNTRY",null,"E39000011",null,390,0,null,0,null,0,null,10,null,70,null,100,null,100,null,50,null,30,null,10,null,10,null,"~",null,0]
[null,null,null,null,"NHS Birmingham CrossCity ","E38000012","13P",390,0,null,0,null,0,null,10,null,70,null,100,null,100,null,50,null,30,null,10,null,10,null,"~",null,0]
[null,null,null,"DERBYSHIRE AND NOTTINGHAMSHIRE",null,"E39000012",null,40,0,null,0,null,0,null,0,null,10,null,10,null,10,null,10,null,10,null,"~",null,0,null,0,null,0]
[null,null,null,null,"NHS Nottingham West ","E38000134","04M",40,0,null,0,null,0,null,0,null,10,null,10,null,10,null,10,null,10,null,"~",null,0,null,0,null,0]
[null,null,null,"EAST ANGLIA",null,"E39000013",null,1670,180,null,130,null,60,null,40,null,170,null,320,null,310,null,210,null,130,null,70,null,30,null,"~",null,"~"]
[null,null,null,null,"NHS Cambridgeshire and Peterborough ","E38000026","06H",540,50,null,40,null,30,null,20,null,50,null,90,null,90,null,70,null,40,null,40,null,10,null,"~",null,0]
[null,null,null,null,"NHS Ipswich and East Suffolk ","E38000086","06L",240,0,null,0,null,0,null,"~",null,60,null,60,null,50,null,40,null,20,null,"~",null,"~",null,"~",null,0]
[null,null,null,null,"NHS South Norfolk ","E38000159","06Y",10,0,null,0,null,0,null,0,null,"~",null,10,null,"~",null,"~",null,0,null,0,null,0,null,0,null,0]
[null,null,null,null,"NHS West Norfolk ","E38000203","07J",880,130,null,90,null,30,null,20,null,60,null,170,null,160,null,100,null,60,null,30,null,10,null,"~",null,"~"]
[null,null,null,"ESSEX",null,"E39000014",null,240,0,null,0,null,0,null,10,null,50,null,70,null,60,null,40,null,10,null,"~",null,0,null,0,null,0]
[null,null,null,null,"NHS North East Essex ","E38000117","06T",220,0,null,0,null,0,null,10,null,40,null,60,null,50,null,40,null,10,null,"~",null,0,null,0,null,0]
[null,null,null,null,"NHS West Essex ","E38000197","07H",30,0,null,0,null,0,null,"~",null,10,null,10,null,"~",null,"~",null,"~",null,0,null,0,null,0,null,0]
[null,null,null,"HERTFORDSHIRE AND THE SOUTH MIDLANDS",null,"E39000015",null,350,0,null,0,null,0,null,"~",null,40,null,80,null,80,null,70,null,40,null,30,null,10,null,0,null,0]
[null,null,null,null,"NHS Bedfordshire ","E38000010","06F",200,0,null,0,null,0,null,"~",null,30,null,60,null,40,null,30,null,20,null,10,null,"~",null,0,null,0]
[null,null,null,null,"NHS Herts Valleys ","E38000079","06N",150,0,null,0,null,0,null,0,null,10,null,20,null,40,null,40,null,20,null,10,null,"~",null,0,null,0]
[null,null,null,"LEICESTERSHIRE AND LINCOLNSHIRE",null,"E39000016",null,2010,160,null,140,null,80,null,60,null,210,null,360,null,380,null,320,null,150,null,90,null,40,null,10,null,0]
[null,null,null,null,"NHS East Leicestershire and Rutland ","E38000051","03W",660,90,null,70,null,30,null,20,null,90,null,150,null,110,null,80,null,20,null,10,null,"~",null,"~",null,0]
[null,null,null,null,"NHS Lincolnshire East ","E38000099","03T",330,30,null,20,null,10,null,"~",null,40,null,50,null,70,null,60,null,30,null,20,null,10,null,"~",null,0]
[null,null,null,null,"NHS Lincolnshire West ","E38000100","04D",300,0,null,0,null,0,null,"~",null,30,null,70,null,70,null,80,null,30,null,20,null,"~",null,"~",null,0]
[null,null,null,null,"NHS South West Lincolnshire ","E38000165","04Q",710,40,null,50,null,40,null,30,null,60,null,90,null,130,null,110,null,70,null,50,null,20,null,"~",null,0]
[null,null,null,"SHROPSHIRE AND STAFFORDSHIRE",null,"E39000017",null,1130,90,null,60,null,20,null,80,null,150,null,190,null,170,null,170,null,90,null,70,null,30,null,"~",null,0]
[null,null,null,null,"NHS Shropshire ","E38000147","05N",700,90,null,60,null,20,null,20,null,60,null,120,null,110,null,110,null,60,null,40,null,10,null,"~",null,0]
[null,null,null,null,"NHS South East Staffs and Seisdon and Peninsular","E38000153","05Q",300,0,null,0,null,0,null,60,null,60,null,40,null,40,null,40,null,20,null,20,null,20,null,"~",null,0]
[null,null,null,null,"NHS Stafford and Surrounds ","E38000173","05V",120,0,null,0,null,0,null,"~",null,20,null,40,null,20,null,20,null,10,null,"~",null,0,null,0,null,0]
[null,null,"LONDON",null,null,"E40000003",null,820,70,null,40,null,20,null,40,null,80,null,140,null,160,null,110,null,100,null,50,null,20,null,"~",null,0]
[null,null,null,"LONDON",null,"E39000018",null,820,70,null,40,null,20,null,40,null,80,null,140,null,160,null,110,null,100,null,50,null,20,null,"~",null,0]
[null,null,null,null,"NHS Central London (Westminster) ","E38000031","09A",10,0,null,0,null,0,null,0,null,"~",null,"~",null,"~",null,"~",null,"~",null,0,null,0,null,0,null,0]
[null,null,null,null,"NHS Hillingdon ","E38000082","08G",440,70,null,40,null,20,null,20,null,20,null,70,null,80,null,50,null,50,null,20,null,10,null,"~",null,0]
[null,null,null,null,"NHS Hounslow ","E38000084","07Y",30,0,null,0,null,0,null,"~",null,"~",null,10,null,"~",null,"~",null,"~",null,"~",null,"~",null,0,null,0]
[null,null,null,null,"NHS Greenwich ","E38000066","08A",100,0,null,0,null,0,null,20,null,30,null,20,null,20,null,10,null,"~",null,"~",null,"~",null,0,null,0]
[null,null,null,null,"NHS Lambeth ","E38000092","08K",240,0,null,0,null,0,null,0,null,20,null,40,null,50,null,50,null,50,null,20,null,10,null,"~",null,0]
[null,null,"SOUTH OF ENGLAND",null,null,"E40000004",null,13430,1040,null,780,null,440,null,590,null,1610,null,2570,null,2520,null,2060,null,1020,null,560,null,200,null,40,null,"~"]
[null,null,null,"BATH, GLOUCESTERSHIRE, SWINDON AND WILTSHIRE",null,"E39000019",null,4820,600,null,460,null,250,null,170,null,440,null,760,null,820,null,710,null,370,null,170,null,70,null,10,null,"~"]
[null,null,null,null,"NHS Gloucestershire ","E38000062","11M",220,0,null,0,null,0,null,"~",null,40,null,60,null,40,null,40,null,30,null,10,null,"~",null,0,null,0]
[null,null,null,null,"NHS Swindon ","E38000181","12D",140,0,null,0,null,0,null,0,null,0,null,10,null,40,null,40,null,40,null,10,null,10,null,"~",null,0]
[null,null,null,null,"NHS Wiltshire ","E38000206","99N",4460,600,null,460,null,250,null,170,null,400,null,700,null,740,null,630,null,310,null,150,null,60,null,"~",null,"~"]
[null,null,null,"BRISTOL, NORTH SOMERSET, SOMERSET AND SOUTH GLOS",null,"E39000020",null,340,0,null,0,null,0,null,10,null,40,null,60,null,100,null,70,null,40,null,20,null,"~",null,"~",null,0]
[null,null,null,null,"NHS Somerset ","E38000150","11X",230,0,null,0,null,0,null,10,null,40,null,50,null,70,null,40,null,10,null,"~",null,"~",null,"~",null,0]
[null,null,null,null,"NHS South Gloucestershire ","E38000155","12A",110,0,null,0,null,0,null,0,null,"~",null,10,null,30,null,20,null,20,null,20,null,"~",null,0,null,0]
[null,null,null,"DEVON, CORNWALL AND ISLES OF SCILLY",null,"E39000021",null,1160,0,null,0,null,"~",null,70,null,250,null,300,null,240,null,150,null,80,null,50,null,20,null,0,null,"~"]
[null,null,null,null,"NHS Kernow ","E38000089","11N",350,0,null,0,null,0,null,50,null,70,null,90,null,60,null,40,null,20,null,20,null,"~",null,0,null,0]
[null,null,null,null,"NHS North, East, West Devon ","E38000129","99P",750,0,null,0,null,"~",null,20,null,160,null,200,null,180,null,100,null,60,null,30,null,10,null,0,null,"~"]
[null,null,null,null,"NHS South Devon and Torbay","E38000152","99Q",60,0,null,0,null,0,null,"~",null,30,null,20,null,"~",null,"~",null,"~",null,"~",null,0,null,0,null,0]
[null,null,null,"KENT AND MEDWAY",null,"E39000022",null,40,0,null,0,null,0,null,0,null,10,null,10,null,10,null,"~",null,"~",null,"~",null,0,null,0,null,0]
[null,null,null,null,"NHS Medway ","E38000104","09W",20,0,null,0,null,0,null,0,null,10,null,10,null,"~",null,"~",null,"~",null,"~",null,0,null,0,null,0]
[null,null,null,null,"NHS South Kent Coast ","E38000156","10A",10,0,null,0,null,0,null,0,null,"~",null,"~",null,"~",null,"~",null,"~",null,"~",null,0,null,0,null,0]
[null,null,null,null,"NHS West Kent ","E38000199","99J",10,0,null,0,null,0,null,0,null,0,null,"~",null,"~",null,"~",null,"~",null,0,null,0,null,0,null,0]
[null,null,null,"SURREY AND SUSSEX",null,"E39000023",null,850,90,null,60,null,30,null,90,null,120,null,170,null,140,null,90,null,40,null,20,null,"~",null,"~",null,"~"]
[null,null,null,null,"NHS Coastal West Sussex ","E38000213","09G",110,0,null,0,null,0,null,10,null,40,null,30,null,20,null,10,null,"~",null,"~",null,0,null,0,null,0]
[null,null,null,null,"NHS North West Surrey ","E38000128","09Y",650,90,null,60,null,30,null,60,null,50,null,130,null,110,null,70,null,30,null,20,null,"~",null,"~",null,"~"]
[null,null,null,null,"NHS Surrey Heath ","E38000178","10C",90,0,null,0,null,0,null,20,null,30,null,20,null,10,null,10,null,"~",null,"~",null,"~",null,0,null,0]
[null,null,null,"THAMES VALLEY",null,"E39000024",null,3650,360,null,250,null,160,null,140,null,310,null,610,null,680,null,570,null,290,null,180,null,80,null,20,null,"~"]
[null,null,null,null,"NHS Aylesbury Vale ","E38000003","10Y",910,60,null,40,null,50,null,60,null,50,null,100,null,160,null,170,null,90,null,80,null,40,null,10,null,0]
[null,null,null,null,"NHS Bracknell and Ascot ","E38000017","10G",550,60,null,40,null,30,null,20,null,70,null,90,null,90,null,60,null,40,null,20,null,10,null,10,null,"~"]
[null,null,null,null,"NHS Newbury and District ","E38000110","10M",50,0,null,0,null,0,null,0,null,"~",null,10,null,20,null,10,null,"~",null,"~",null,"~",null,0,null,"~"]
[null,null,null,null,"NHS Oxfordshire ","E38000136","10Q",2100,240,null,170,null,80,null,60,null,180,null,390,null,400,null,320,null,150,null,80,null,20,null,"~",null,0]
[null,null,null,null,"NHS Windsor, Ascot and Maidenhead ","E38000207","11C",40,0,null,0,null,0,null,"~",null,"~",null,10,null,10,null,10,null,10,null,0,null,0,null,0,null,0]
[null,null,null,"WESSEX",null,"E39000025",null,2560,0,null,0,null,0,null,120,null,440,null,650,null,540,null,470,null,200,null,120,null,30,null,10,null,0]
[null,null,null,null,"NHS Fareham and Gosport ","E38000059","10K",340,0,null,0,null,0,null,20,null,40,null,100,null,70,null,60,null,20,null,20,null,10,null,0,null,0]
[null,null,null,null,"NHS North East Hampshire and Farnham ","E38000118","99M",590,0,null,0,null,0,null,20,null,110,null,150,null,130,null,100,null,50,null,20,null,"~",null,0,null,0]
[null,null,null,null,"NHS North Hampshire ","E38000120","10J",180,0,null,0,null,0,null,"~",null,30,null,50,null,40,null,40,null,10,null,10,null,"~",null,0,null,0]
[null,null,null,null,"NHS Portsmouth ","E38000137","10R",930,0,null,0,null,0,null,30,null,170,null,210,null,200,null,180,null,80,null,50,null,10,null,"~",null,0]
[null,null,null,null,"NHS West Hampshire ","E38000198","11A",520,0,null,0,null,0,null,40,null,90,null,140,null,90,null,90,null,30,null,20,null,10,null,"~",null,0]
[]
[null,"Source: DMICP Data Warehouse"]
[null,"1. In line with Joint Service Publication 200, numbers 5 or fewer have been supressed and presented as '~'."]
[null,"2. Due to rounding, please note that totals may not equal the sum of their parts."]
[null,"3. The presence of  +/- indicates percentage changes in figures over the last six months.  + indicates there has been a 5% to 10% increase and - indicates there has been between a 5% to 10% decrease.  ++ indicates a greater than 10% increase and -- indicates a greater than 10% decrease."]
[null,"4. Age bands are based on age as at time of data extraction."]

{"sheet":"Table B2.1","index":12,"n_rows":65,"n_cols":13,"rows_kept":65,"cut":false,"hidden":false,"merged":[[64,1,64,18],[8,211,8,214],[8,225,8,228],[8,239,8,242],[8,253,8,256],[62,1,62,18],[63,1,63,18],[8,127,8,130],[8,141,8,144],[8,155,8,158],[8,169,8,172],[8,183,8,186],[8,197,8,200],[7,248,7,250],[8,1,8,3],[8,15,8,18],[8,29,8,32],[8,43,8,46],[8,57,8,60],[8,71,8,74],[8,85,8,88],[8,99,8,102],[8,113,8,116],[7,164,7,166],[7,178,7,180],[7,192,7,194],[7,206,7,208],[7,220,7,222],[7,234,7,236],[6,2,6,3],[7,150,7,152],[7,8,7,10],[7,24,7,26],[7,38,7,40],[7,52,7,54],[7,66,7,68],[7,80,7,82],[7,94,7,96],[7,108,7,110],[7,122,7,124],[7,136,7,138]]}
[null,"Table B1.7: UK Armed Forces females and entitled civilian females DMS registrations, registered to NHS Clinical Commissioning Groups by age band, 1 April 2017, Numbers"]
[]
[null,"Table B2.1: UK Armed Forces personnel and entitled civilian personnel DMS registrations, registered to regions & Local Area Authorities by Service, Numbers"]
[null,"1 April 2018"]
[null,"Defence Statistics Health"]
[]
[null,null,"Return to contents"]
[null,null,null,null,null,null,null,null,"UK Armed Forces split by "]
[null,"Area Name",null,null,"Area Code","All Persons","All UK Armed Forces","+/-","Naval Service","Army","RAF","Civilian","+/-"]
[null,"ENGLAND",null,null,"E92000001",137610,123870,"",26440,68080,29350,13740,""]
[null,null,"NORTH EAST",null,"E12000001",1260,1260,"",10,690,560,0,""]
[null,null,null,"Northumberland","E06000057",1260,1260,"",10,690,560,0,""]
[null,null,"NORTH WEST ",null,"E12000002",1730,1730,"",180,1480,60,0,""]
[null,null,null,"Cheshire West and Chester","E06000050",610,610,"",30,570,10,0,""]
[null,null,null,"Cumbria","E10000006",200,200,"++",140,0,50,0,""]
[null,null,null,"Lancashire","E10000017",920,920,"","~",920,"~",0,""]
[null,null,"YORKSHIRE AND THE HUMBER",null,"E12000003",14640,13070,"",70,11270,1730,1560,""]
[null,null,null,"East Riding of Yorkshire","E06000011",410,410,"-",40,350,30,0,""]
[null,null,null,"York","E06000014",950,950,"","~",950,"~",0,""]
[null,null,null,"North Yorkshire","E10000023",13270,11710,"",30,9970,1710,1560,""]
[null,null,"EAST MIDLANDS",null,"E12000004",10400,9020,"",140,2740,6140,1380,""]
[null,null,null,"Rutland","E06000017",2250,1620,"+",0,1600,20,630,""]
[null,null,null,"Lincolnshire","E10000019",7320,6570,"",140,330,6100,750,"-"]
[null,null,null,"Nottinghamshire","E10000024",830,830,"","~",820,10,0,""]
[null,null,"WEST MIDLANDS",null,"E12000005",7330,6640,"",370,3910,2360,690,""]
[null,null,null,"Shropshire","E06000051",3460,2770,"",80,870,1820,690,""]
[null,null,null,"Staffordshire","E10000028",2340,2340,"",150,1840,360,0,""]
[null,null,null,"Warwickshire","E10000031",820,820,"","~",810,10,"~",""]
[null,null,null,"West Midlands","E11000005",710,710,"+",140,400,170,0,""]
[null,null,"EAST ",null,"E12000006",15150,13700,"",800,7380,5520,1450,""]
[null,null,null,"Central Bedfordshire","E06000056",1150,1150,"",120,590,440,"~",""]
[null,null,null,"Peterborough","E06000031",1490,1020,"",10,80,940,470,"-"]
[null,null,null,"Cambridgeshire","E10000003",790,790,"",30,370,390,0,""]
[null,null,null,"Essex","E10000012",3900,3900,"",20,3830,60,0,""]
[null,null,null,"Hertfordshire","E10000015",1210,1210,"",540,310,360,10,""]
[null,null,null,"Norfolk","E10000020",3370,2400,"",70,380,1950,960,""]
[null,null,null,"Suffolk","E10000029",3240,3220,"",10,1820,1390,10,""]
[null,null,"LONDON",null,"E12000007",5000,4530,"",380,3100,1050,460,""]
[null,null,null,"Inner London","E13000001",2410,2410,"",370,1670,370,"~",""]
[null,null,null,"Outer London","E13000002",2580,2120,"",10,1440,670,460,""]
[null,null,"SOUTH EAST",null,"E12000008",42740,39230,"",10180,18480,10580,3510,""]
[null,null,null,"Bracknell Forest","E06000036",1770,1240,"","~",1230,"~",540,"-"]
[null,null,null,"Medway","E06000035",530,530,"+",0,530,"~",0,""]
[null,null,null,"Portsmouth","E06000044",6720,6660,"",6570,70,20,70,"++"]
[null,null,null,"West Berkshire","E06000037",330,330,"",10,300,10,0,""]
[null,null,null,"Windsor and Maidenhead","E06000040",970,970,"","~",960,0,"~",""]
[null,null,null,"Buckinghamshire","E10000002",3550,3010,"",40,60,2920,540,""]
[null,null,null,"Hampshire","E10000014",12650,12640,"",3290,7290,2060,10,""]
[null,null,null,"Kent","E10000016",1950,1950,"",20,1880,50,"~",""]
[null,null,null,"Oxfordshire","E10000025",10360,8650,"",220,2990,5440,1700,""]
[null,null,null,"Surrey","E10000030",2960,2310,"- -",10,2240,50,660,""]
[null,null,null,"West Sussex","E10000032",950,950,"",0,930,20,"~",""]
[null,null,"SOUTH WEST",null,"E12000009",39380,34690,"",14310,19020,1360,4680,"-"]
[null,null,null,"Cornwall","E06000052",3130,3120,"+",2850,110,160,"~",""]
[null,null,null,"Plymouth","E06000026",7590,7530,"",7020,430,70,60,"+"]
[null,null,null,"South Gloucestershire","E06000025",1310,1310,"",440,400,470,0,""]
[null,null,null,"Wiltshire","E06000054",20560,15940,"",220,15210,510,4620,"-"]
[null,null,null,"Devon","E10000008",1400,1400,"",980,420,0,"~",""]
[null,null,null,"Gloucestershire","E10000013",2100,2100,"",70,1910,130,0,""]
[null,null,null,"Somerset","E10000027",3280,3280,"",2720,540,20,"~",""]
[]
[null,"Source: DMICP Data Warehouse"]
[null,"1. In line with Joint Service Publication 200, numbers 5 or fewer have been supressed and presented as '~'."]
[null,"2. Due to rounding, please note that totals may not equal the sum of their parts."]
[null,"3. The presence of  +/- indicates percentage changes in figures over the last six months.  + indicates there has been a 5% to 10% increase and - indicates there has been between a 5% to 10% decrease.  ++ indicates a greater than 10% increase and -- indicates a greater than 10% decrease."]

{"sheet":"Table B2.2","index":13,"n_rows":66,"n_cols":32,"rows_kept":66,"cut":false,"hidden":false,"merged":[[65,1,65,18],[6,2,6,3],[8,1,8,3],[62,1,62,21],[63,1,63,20],[64,1,64,21]]}
[null,"Table B1.7: UK Armed Forces females and entitled civilian females DMS registrations, registered to NHS Clinical Commissioning Groups by age band, 1 April 2017, Numbers"]
[]
[null,"Table B2.2: UK Armed Forces personnel and entitled civilian personnel DMS registrations, registered to regions & Local Area Authorities by age band, Numbers"]
[null,"1 April 2018"]
[null,"Defence Statistics Health"]
[]
[null,null,"Return to contents"]
[]
[null,"Area Name",null,null,"Area Code","All Persons","0-4","+/-","5-9","+/-","10-14","+/-","15-19","+/-","20-24","+/-","25-29","+/-","30-34","+/-","35-39","+/-","40-44","+/-","45-49","+/-","50-54","+/-","55-59","+/-","60+","+/-"]
[null,"ENGLAND",null,null,"E92000001",137610,3600,"-",2700,"",1430,"",7740,"+",23570,"",29220,"",24500,"",20200,"",11700,"",7720,"",4300,"",840,"+",90,"+"]
[null,null,"NORTH EAST",null,"E12000001",1260,0,null,0,null,0,null,60,null,260,null,320,null,230,null,190,null,90,null,70,null,30,null,"~",null,0]
[null,null,null,"Northumberland","E06000057",1260,0,null,0,null,0,null,60,null,260,null,320,null,230,null,190,null,90,null,70,null,30,null,"~",null,0]
[null,null,"NORTH WEST ",null,"E12000002",1730,0,null,0,null,0,null,50,null,370,null,450,null,340,null,270,null,130,null,70,null,40,null,10,null,0]
[null,null,null,"Cheshire West and Chester","E06000050",610,0,null,0,null,0,null,20,null,150,null,160,null,120,null,80,null,40,null,20,null,10,null,"~",null,0]
[null,null,null,"Cumbria","E10000006",200,0,null,0,null,0,null,0,null,10,null,40,null,40,null,50,null,20,null,20,null,10,null,"~",null,0]
[null,null,null,"Lancashire","E10000017",920,0,null,0,null,0,null,30,null,210,null,240,null,180,null,140,null,70,null,30,null,20,null,"~",null,0]
[null,null,"YORKSHIRE AND THE HUMBER",null,"E12000003",14640,430,null,350,null,160,null,2150,null,2700,null,3130,null,2380,null,1700,null,930,null,450,null,210,null,40,null,"~"]
[null,null,null,"East Riding of Yorkshire","E06000011",410,0,null,0,null,0,null,100,null,70,null,70,null,60,null,50,null,40,null,20,null,"~",null,"~",null,0]
[null,null,null,"York","E06000014",950,0,null,0,null,0,null,10,null,160,null,180,null,210,null,180,null,110,null,70,null,30,null,"~",null,0]
[null,null,null,"North Yorkshire","E10000023",13270,430,null,350,null,160,null,2040,null,2480,null,2880,null,2120,null,1470,null,770,null,360,null,170,null,40,null,"~"]
[null,null,"EAST MIDLANDS",null,"E12000004",10400,340,null,280,null,150,null,230,null,1270,null,2000,null,1940,null,1810,null,1100,null,800,null,390,null,80,null,10]
[null,null,null,"Rutland","E06000017",2250,180,null,140,null,60,null,80,null,400,null,520,null,390,null,300,null,120,null,50,null,10,null,"~",null,0]
[null,null,null,"Lincolnshire","E10000019",7320,160,null,140,null,100,null,140,null,820,null,1370,null,1370,null,1340,null,830,null,640,null,330,null,60,null,10]
[null,null,null,"Nottinghamshire","E10000024",830,0,null,0,null,0,null,10,null,60,null,110,null,180,null,170,null,140,null,110,null,40,null,10,null,"~"]
[null,null,"WEST MIDLANDS",null,"E12000005",7330,170,null,110,null,60,null,420,null,1550,null,1580,null,1190,null,1100,null,580,null,350,null,180,null,50,null,10]
[null,null,null,"Shropshire","E06000051",3460,170,null,110,null,60,null,240,null,760,null,670,null,460,null,430,null,250,null,180,null,90,null,30,null,"~"]
[null,null,null,"Staffordshire","E10000028",2340,0,null,0,null,0,null,140,null,490,null,550,null,420,null,380,null,190,null,100,null,50,null,10,null,"~"]
[null,null,null,"Warwickshire","E10000031",820,0,null,0,null,0,null,30,null,200,null,200,null,150,null,160,null,50,null,20,null,10,null,"~",null,0]
[null,null,null,"West Midlands","E12000005",710,0,null,0,null,0,null,10,null,100,null,160,null,160,null,120,null,80,null,40,null,40,null,10,null,"~"]
[null,null,"EAST ",null,"E12000006",15150,390,null,280,null,140,null,430,null,2500,null,3510,null,2860,null,2300,null,1340,null,820,null,470,null,90,null,10]
[null,null,null,"Central Bedfordshire","E06000056",1150,0,null,0,null,0,null,20,null,120,null,230,null,250,null,240,null,140,null,100,null,40,null,10,null,0]
[null,null,null,"Peterborough","E06000031",1490,100,null,90,null,70,null,40,null,130,null,280,null,260,null,190,null,130,null,110,null,60,null,20,null,"~"]
[null,null,null,"Cambridgeshire","E10000003",790,0,null,0,null,0,null,10,null,100,null,180,null,160,null,150,null,80,null,60,null,40,null,10,null,0]
[null,null,null,"Essex","E10000012",3900,0,null,0,null,0,null,160,null,950,null,1110,null,760,null,530,null,280,null,80,null,30,null,"~",null,"~"]
[null,null,null,"Hertfordshire","E10000015",1210,0,null,0,null,0,null,"~",null,40,null,120,null,200,null,280,null,220,null,190,null,140,null,20,null,"~"]
[null,null,null,"Norfolk","E10000020",3370,290,null,190,null,70,null,70,null,480,null,730,null,610,null,420,null,240,null,150,null,90,null,20,null,"~"]
[null,null,null,"Suffolk","E10000029",3240,0,null,"~",null,"~",null,120,null,680,null,850,null,610,null,490,null,240,null,140,null,70,null,10,null,"~"]
[null,null,"LONDON",null,"E12000007",5000,130,null,70,null,30,null,230,null,740,null,960,null,800,null,710,null,500,null,440,null,310,null,60,null,"~"]
[null,null,null,"Inner London","E13000001",2410,0,null,0,null,0,null,110,null,260,null,340,null,360,null,380,null,330,null,340,null,250,null,40,null,"~"]
[null,null,null,"Outer London","E13000002",2580,130,null,70,null,30,null,120,null,490,null,610,null,440,null,330,null,170,null,110,null,70,null,10,null,"~"]
[null,null,"SOUTH EAST",null,"E12000008",42740,930,null,650,null,370,null,2160,null,7190,null,8960,null,7800,null,6520,null,3720,null,2620,null,1470,null,320,null,30]
[null,null,null,"Bracknell Forest","E06000036",1770,130,null,100,null,40,null,40,null,430,null,400,null,240,null,200,null,90,null,60,null,40,null,10,null,"~"]
[null,null,null,"Medway","E06000035",530,0,null,0,null,0,null,70,null,140,null,120,null,100,null,50,null,40,null,20,null,"~",null,"~",null,0]
[null,null,null,"Portsmouth","E06000044",6720,0,null,0,null,0,null,210,null,1200,null,1400,null,1200,null,1030,null,620,null,600,null,380,null,80,null,10]
[null,null,null,"West Berkshire","E06000037",330,0,null,0,null,0,null,10,null,30,null,80,null,80,null,60,null,40,null,20,null,10,null,0,null,"~"]
[null,null,null,"Windsor and Maidenhead","E06000040",970,0,null,0,null,0,null,10,null,220,null,310,null,200,null,140,null,60,null,30,null,"~",null,"~",null,0]
[null,null,null,"Buckinghamshire","E10000002",3550,120,null,100,null,80,null,320,null,330,null,370,null,500,null,560,null,400,null,410,null,290,null,80,null,10]
[null,null,null,"Hampshire","E10000014",12650,0,null,0,null,0,null,770,null,2360,null,3000,null,2390,null,1940,null,1080,null,660,null,360,null,70,null,10]
[null,null,null,"Kent","E10000016",1950,0,null,0,null,0,null,40,null,560,null,450,null,380,null,300,null,150,null,50,null,10,null,"~",null,"~"]
[null,null,null,"Oxfordshire","E10000025",10360,500,null,330,null,160,null,280,null,1150,null,1920,null,2040,null,1810,null,1060,null,680,null,340,null,70,null,"~"]
[null,null,null,"Surrey","E10000030",2960,180,null,120,null,80,null,370,null,560,null,650,null,450,null,280,null,140,null,80,null,40,null,10,null,"~"]
[null,null,null,"West Sussex","E10000032",950,0,null,0,null,0,null,40,null,220,null,260,null,210,null,150,null,60,null,10,null,"~",null,"~",null,"~"]
[null,null,"SOUTH WEST",null,"E12000009",39380,1210,null,950,null,520,null,2020,null,6980,null,8320,null,6950,null,5600,null,3300,null,2090,null,1210,null,200,null,30]
[null,null,null,"Cornwall","E06000052",3130,0,null,0,null,0,null,400,null,630,null,620,null,530,null,370,null,260,null,170,null,120,null,20,null,"~"]
[null,null,null,"Plymouth","E06000026",7590,0,null,0,null,"~",null,320,null,1740,null,1840,null,1340,null,960,null,620,null,450,null,250,null,60,null,10]
[null,null,null,"South Gloucestershire","E06000025",1310,0,null,0,null,0,null,0,null,10,null,60,null,140,null,280,null,250,null,300,null,230,null,40,null,"~"]
[null,null,null,"Wiltshire","E06000054",20560,1210,null,950,null,520,null,1140,null,3300,null,4010,null,3560,null,2950,null,1580,null,840,null,440,null,50,null,10]
[null,null,null,"Devon","E10000008",1400,0,null,0,null,0,null,30,null,310,null,470,null,290,null,150,null,80,null,40,null,20,null,"~",null,0]
[null,null,null,"Gloucestershire","E10000013",2100,0,null,0,null,0,null,60,null,400,null,440,null,410,null,390,null,230,null,110,null,60,null,10,null,0]
[null,null,null,"Somerset","E10000027",3280,0,null,0,null,0,null,80,null,600,null,870,null,680,null,500,null,270,null,190,null,80,null,20,null,"~"]
[]
[null,"Source: DMICP Data Warehouse"]
[null,"1. In line with Joint Service Publication 200, numbers 5 or fewer have been supressed and presented as '~'."]
[null,"2. Due to rounding, please note that totals may not equal the sum of their parts."]
[null,"3. The presence of  +/- indicates percentage changes in figures over the last six months.  + indicates there has been a 5% to 10% increase and - indicates there has been between a 5% to 10% decrease.  ++ indicates a greater than 10% increase and -- indicates a greater than 10% decrease."]
[null,"4. Age bands are based on age as at time of data extraction."]

{"sheet":"Table B2.3","index":14,"n_rows":66,"n_cols":26,"rows_kept":66,"cut":false,"hidden":false,"merged":[[8,1,8,3],[6,2,6,3],[62,1,62,21],[64,1,64,22],[63,1,63,21]]}
[null,"Annex B2 - England, by Regions and Local Authorities"]
[]
[null,"Table B2.3: UK Armed Forces personnel DMS registrations, registered to regions & Local Area Authorities by age band, Numbers"]
[null,"1 April 2018"]
[null,"Defence Statistics Health"]
[]
[null,null,"Return to contents"]
[]
[null,"Area Name",null,null,"Area Code","All UK Armed Forces","16-19","+/-","20-24","+/-","25-29","+/-","30-34","+/-","35-39","+/-","40-44","+/-","45-49","+/-","50-54","+/-","55-59","+/-","60+","+/-"]
[null,"ENGLAND",null,null,"E92000001",123870,7090,"+",23130,"",28040,"",23080,"",19140,"",11100,"",7330,"",4110,"",780,"+",70,""]
[null,null,"NORTH EAST",null,"E12000001",1260,60,null,260,null,320,null,230,null,190,null,90,null,70,null,30,null,"~",null,0]
[null,null,null,"Northumberland","E06000057",1260,60,null,260,null,320,null,230,null,190,null,90,null,70,null,30,null,"~",null,0]
[null,null,"NORTH WEST ",null,"E12000002",1730,50,null,370,null,450,null,340,null,270,null,130,null,70,null,40,null,10,null,0]
[null,null,null,"Cheshire West and Chester","E06000050",610,20,null,150,null,160,null,120,null,80,null,40,null,20,null,10,null,"~",null,0]
[null,null,null,"Cumbria","E10000006",200,0,null,10,null,40,null,40,null,50,null,20,null,20,null,10,null,"~",null,0]
[null,null,null,"Lancashire","E10000017",920,30,null,210,null,240,null,180,null,140,null,70,null,30,null,20,null,"~",null,0]
[null,null,"YORKSHIRE AND THE HUMBER",null,"E12000003",13070,2080,null,2660,null,3000,null,2240,null,1580,null,870,null,420,null,190,null,40,null,"~"]
[null,null,null,"East Riding of Yorkshire","E06000011",410,100,null,70,null,70,null,60,null,50,null,40,null,20,null,"~",null,"~",null,0]
[null,null,null,"York","E06000014",950,10,null,160,null,180,null,210,null,180,null,110,null,70,null,30,null,"~",null,0]
[null,null,null,"North Yorkshire","E10000023",11710,1970,null,2430,null,2760,null,1970,null,1350,null,710,null,320,null,150,null,30,null,"~"]
[null,null,"EAST MIDLANDS",null,"E12000004",9020,160,null,1240,null,1880,null,1800,null,1690,null,1050,null,760,null,360,null,70,null,10]
[null,null,null,"Rutland","E06000017",1620,60,null,370,null,440,null,330,null,240,null,110,null,40,null,10,null,"~",null,0]
[null,null,null,"Lincolnshire","E10000019",6570,90,null,810,null,1330,null,1300,null,1280,null,790,null,610,null,310,null,60,null,10]
[null,null,null,"Nottinghamshire","E10000024",830,10,null,60,null,110,null,180,null,170,null,140,null,110,null,40,null,10,null,"~"]
[null,null,"WEST MIDLANDS",null,"E12000005",6640,400,null,1500,null,1480,null,1130,null,1050,null,540,null,320,null,170,null,40,null,10]
[null,null,null,"Shropshire","E06000051",2770,220,null,710,null,580,null,400,null,390,null,220,null,160,null,80,null,20,null,"~"]
[null,null,null,"Staffordshire","E10000028",2340,140,null,490,null,550,null,420,null,380,null,190,null,100,null,50,null,10,null,"~"]
[null,null,null,"Warwickshire","E10000031",820,30,null,200,null,200,null,150,null,160,null,50,null,20,null,10,null,"~",null,0]
[null,null,null,"West Midlands","E12000005",710,10,null,100,null,160,null,160,null,120,null,80,null,40,null,40,null,10,null,"~"]
[null,null,"EAST ",null,"E12000006",13700,370,null,2450,null,3370,null,2710,null,2200,null,1280,null,780,null,460,null,80,null,10]
[null,null,null,"Central Bedfordshire","E06000056",1150,20,null,120,null,230,null,250,null,240,null,140,null,100,null,40,null,10,null,0]
[null,null,null,"Peterborough","E06000031",1020,10,null,120,null,250,null,220,null,150,null,120,null,90,null,50,null,10,null,"~"]
[null,null,null,"Cambridgeshire","E10000003",790,10,null,100,null,180,null,160,null,150,null,80,null,60,null,40,null,10,null,0]
[null,null,null,"Essex","E10000012",3900,160,null,950,null,1110,null,760,null,530,null,280,null,80,null,30,null,"~",null,"~"]
[null,null,null,"Hertfordshire","E10000015",1210,"~",null,40,null,120,null,200,null,280,null,220,null,190,null,140,null,20,null,"~"]
[null,null,null,"Norfolk","E10000020",2400,50,null,440,null,630,null,500,null,360,null,200,null,130,null,80,null,20,null,"~"]
[null,null,null,"Suffolk","E10000029",3220,120,null,680,null,850,null,610,null,490,null,240,null,140,null,70,null,10,null,"~"]
[null,null,"LONDON",null,"E12000007",4530,200,null,730,null,920,null,740,null,680,null,470,null,420,null,300,null,50,null,"~"]
[null,null,null,"Inner London","E13000001",2410,110,null,260,null,340,null,360,null,380,null,330,null,340,null,250,null,40,null,"~"]
[null,null,null,"Outer London","E13000002",2120,90,null,480,null,570,null,390,null,300,null,140,null,90,null,60,null,10,null,"~"]
[null,null,"SOUTH EAST",null,"E12000008",39230,1980,null,7100,null,8700,null,7440,null,6240,null,3550,null,2500,null,1400,null,290,null,20]
[null,null,null,"Bracknell Forest","E06000036",1240,10,null,410,null,350,null,180,null,160,null,50,null,40,null,30,null,"~",null,"~"]
[null,null,null,"Medway","E06000035",530,70,null,140,null,120,null,100,null,50,null,40,null,20,null,"~",null,"~",null,0]
[null,null,null,"Portsmouth","E06000044",6660,210,null,1190,null,1390,null,1200,null,1020,null,610,null,590,null,360,null,80,null,"~"]
[null,null,null,"West Berkshire","E06000037",330,10,null,30,null,80,null,80,null,60,null,40,null,20,null,10,null,0,null,"~"]
[null,null,null,"Windsor and Maidenhead","E06000040",970,10,null,220,null,310,null,200,null,140,null,60,null,30,null,"~",null,"~",null,0]
[null,null,null,"Buckinghamshire","E10000002",3010,280,null,330,null,350,null,450,null,520,null,370,null,380,null,270,null,70,null,10]
[null,null,null,"Hampshire","E10000014",12640,770,null,2360,null,3000,null,2390,null,1940,null,1080,null,660,null,360,null,70,null,10]
[null,null,null,"Kent","E10000016",1950,40,null,560,null,450,null,380,null,300,null,150,null,50,null,10,null,"~",null,0]
[null,null,null,"Oxfordshire","E10000025",8650,200,null,1120,null,1810,null,1870,null,1670,null,980,null,630,null,320,null,60,null,"~"]
[null,null,null,"Surrey","E10000030",2310,350,null,550,null,570,null,370,null,230,null,120,null,70,null,30,null,10,null,"~"]
[null,null,null,"West Sussex","E10000032",950,40,null,220,null,260,null,210,null,150,null,60,null,10,null,"~",null,"~",null,0]
[null,null,"SOUTH WEST",null,"E12000009",34690,1800,null,6820,null,7920,null,6450,null,5230,null,3110,null,1990,null,1170,null,180,null,20]
[null,null,null,"Cornwall","E06000052",3120,400,null,630,null,620,null,530,null,370,null,260,null,170,null,120,null,20,null,"~"]
[null,null,null,"Plymouth","E06000026",7530,320,null,1730,null,1840,null,1320,null,950,null,610,null,450,null,250,null,50,null,"~"]
[null,null,null,"South Gloucestershire","E06000025",1310,0,null,10,null,60,null,140,null,280,null,250,null,300,null,230,null,40,null,"~"]
[null,null,null,"Wiltshire","E06000054",15940,920,null,3140,null,3620,null,3080,null,2580,null,1400,null,740,null,400,null,50,null,10]
[null,null,null,"Devon","E10000008",1400,30,null,310,null,470,null,290,null,150,null,80,null,40,null,20,null,"~",null,0]
[null,null,null,"Gloucestershire","E10000013",2100,60,null,400,null,440,null,410,null,390,null,230,null,110,null,60,null,10,null,0]
[null,null,null,"Somerset","E10000027",3280,80,null,600,null,870,null,680,null,500,null,270,null,190,null,80,null,20,null,"~"]
[]
[null,"Source: DMICP Data Warehouse"]
[null,"1. In line with Joint Service Publication 200, numbers 5 or fewer have been supressed and presented as '~'."]
[null,"2. Due to rounding, please note that totals may not equal the sum of their parts."]
[null,"3. The presence of  +/- indicates percentage changes in figures over the last six months.  + indicates there has been a 5% to 10% increase and - indicates there has been between a 5% to 10% decrease.  ++ indicates a greater than 10% increase and -- indicates a greater than 10% decrease."]
[null,"4. Age bands are based on age as at time of data extraction."]

{"sheet":"Table B2.4","index":15,"n_rows":66,"n_cols":32,"rows_kept":66,"cut":false,"hidden":false,"merged":[[8,1,8,3],[6,2,6,3],[62,1,62,21]]}
[null,"Annex B2 - England, by Regions and Local Authorities"]
[]
[null,"Table B2.4: Entitled civilian personnel DMS registrations, registered to regions & Local Area Authorities by age band, Numbers"]
[null,"1 April 2018"]
[null,"Defence Statistics Health"]
[]
[null,null,"Return to contents"]
[]
[null,"Area Name",null,null,"Area Code","All Civilians","0-4","+/-","5-9","+/-","10-14","+/-","15-19","+/-","20-24","+/-","25-29","+/-","30-34","+/-","35-39","+/-","40-44","+/-","45-49","+/-","50-54","+/-","55-59","+/-","60+","+/-"]
[null,"ENGLAND",null,null,"E92000001",13740,3600,"-",2700,"",1430,"",640,"",440,"- -",1180,"-",1420,"",1060,"",600,"",390,"+",190,"+",60,"++",20,"++"]
[null,null,"NORTH EAST",null,"E12000001",0,0,null,0,null,0,null,0,null,0,null,0,null,0,null,0,null,0,null,0,null,0,null,0,null,0]
[null,null,null,"Northumberland","E06000057",0,0,null,0,null,0,null,0,null,0,null,0,null,0,null,0,null,0,null,0,null,0,null,0,null,0]
[null,null,"NORTH WEST ",null,"E12000002",0,0,null,0,null,0,null,0,null,0,null,0,null,0,null,0,null,0,null,0,null,0,null,0,null,0]
[null,null,null,"Cheshire West and Chester","E06000050",0,0,null,0,null,0,null,0,null,0,null,0,null,0,null,0,null,0,null,0,null,0,null,0,null,0]
[null,null,null,"Cumbria","E10000006",0,0,null,0,null,0,null,0,null,0,null,0,null,0,null,0,null,0,null,0,null,0,null,0,null,0]
[null,null,null,"Lancashire","E10000017",0,0,null,0,null,0,null,0,null,0,null,0,null,0,null,0,null,0,null,0,null,0,null,0,null,0]
[null,null,"YORKSHIRE AND THE HUMBER",null,"E12000003",1560,430,null,350,null,160,null,70,null,40,null,130,null,150,null,120,null,60,null,40,null,20,null,"~",null,"~"]
[null,null,null,"East Riding of Yorkshire","E06000011",0,0,null,0,null,0,null,0,null,0,null,0,null,0,null,0,null,0,null,0,null,0,null,0,null,0]
[null,null,null,"York","E06000014",0,0,null,0,null,0,null,0,null,0,null,0,null,0,null,0,null,0,null,0,null,0,null,0,null,0]
[null,null,null,"North Yorkshire","E10000023",1560,430,null,350,null,160,null,70,null,40,null,130,null,150,null,120,null,60,null,40,null,20,null,"~",null,"~"]
[null,null,"EAST MIDLANDS",null,"E12000004",1380,340,null,280,null,150,null,70,null,40,null,120,null,140,null,120,null,60,null,40,null,20,null,"~",null,"~"]
[null,null,null,"Rutland","E06000017",630,180,null,140,null,60,null,20,null,20,null,80,null,60,null,50,null,10,null,10,null,"~",null,"~",null,0]
[null,null,null,"Lincolnshire","E10000019",750,160,null,140,null,100,null,50,null,10,null,40,null,80,null,60,null,40,null,40,null,20,null,"~",null,"~"]
[null,null,null,"Nottinghamshire","E10000024",0,0,null,0,null,0,null,0,null,0,null,0,null,0,null,0,null,0,null,0,null,0,null,0,null,0]
[null,null,"WEST MIDLANDS",null,"E12000005",690,170,null,110,null,60,null,20,null,50,null,90,null,60,null,50,null,30,null,20,null,10,null,"~",null,0]
[null,null,null,"Shropshire","E06000051",690,170,null,110,null,60,null,20,null,50,null,90,null,60,null,50,null,30,null,20,null,10,null,"~",null,0]
[null,null,null,"Staffordshire","E10000028",0,0,null,0,null,0,null,0,null,0,null,0,null,0,null,0,null,0,null,0,null,0,null,0,null,0]
[null,null,null,"Warwickshire","E10000031","~",0,null,0,null,0,null,0,null,0,null,0,null,0,null,0,null,0,null,"~",null,0,null,0,null,0]
[null,null,null,"West Midlands","E12000005",0,0,null,0,null,0,null,0,null,0,null,0,null,0,null,0,null,0,null,0,null,0,null,0,null,0]
[null,null,"EAST ",null,"E12000006",1450,390,null,280,null,140,null,60,null,50,null,140,null,150,null,100,null,60,null,40,null,20,null,10,null,"~"]
[null,null,null,"Central Bedfordshire","E06000056","~",0,null,0,null,0,null,0,null,0,null,0,null,"~",null,0,null,0,null,0,null,0,null,0,null,0]
[null,null,null,"Peterborough","E06000031",470,100,null,90,null,70,null,40,null,10,null,30,null,40,null,30,null,20,null,20,null,10,null,"~",null,0]
[null,null,null,"Cambridgeshire","E10000003",0,0,null,0,null,0,null,0,null,0,null,0,null,0,null,0,null,0,null,0,null,0,null,0,null,0]
[null,null,null,"Essex","E10000012",0,0,null,0,null,0,null,0,null,0,null,0,null,0,null,0,null,0,null,0,null,0,null,0,null,0]
[null,null,null,"Hertfordshire","E10000015",10,0,null,0,null,0,null,0,null,0,null,"~",null,0,null,"~",null,0,null,"~",null,"~",null,"~",null,0]
[null,null,null,"Norfolk","E10000020",960,290,null,190,null,70,null,30,null,40,null,100,null,110,null,60,null,40,null,20,null,10,null,"~",null,"~"]
[null,null,null,"Suffolk","E10000029",10,0,null,"~",null,"~",null,0,null,"~",null,"~",null,"~",null,0,null,"~",null,"~",null,0,null,"~",null,0]
[null,null,"LONDON",null,"E12000007",460,130,null,70,null,30,null,30,null,10,null,40,null,60,null,30,null,30,null,20,null,10,null,"~",null,0]
[null,null,null,"Inner London","E13000001","~",0,null,0,null,0,null,0,null,0,null,0,null,"~",null,0,null,0,null,"~",null,0,null,0,null,0]
[null,null,null,"Outer London","E13000002",460,130,null,70,null,30,null,30,null,10,null,40,null,60,null,30,null,30,null,20,null,10,null,"~",null,0]
[null,null,"SOUTH EAST",null,"E12000008",3510,930,null,650,null,370,null,170,null,80,null,270,null,370,null,280,null,170,null,120,null,70,null,30,null,10]
[null,null,null,"Bracknell Forest","E06000036",540,130,null,100,null,40,null,30,null,20,null,40,null,60,null,40,null,40,null,20,null,10,null,10,null,"~"]
[null,null,null,"Medway","E06000035",0,0,null,0,null,0,null,0,null,0,null,0,null,0,null,0,null,0,null,0,null,0,null,0,null,0]
[null,null,null,"Portsmouth","E06000044",70,0,null,0,null,0,null,0,null,"~",null,"~",null,10,null,10,null,10,null,10,null,10,null,10,null,"~"]
[null,null,null,"West Berkshire","E06000037",0,0,null,0,null,0,null,0,null,0,null,0,null,0,null,0,null,0,null,0,null,0,null,0,null,0]
[null,null,null,"Windsor and Maidenhead","E06000040","~",0,null,0,null,0,null,0,null,0,null,0,null,0,null,"~",null,0,null,0,null,0,null,0,null,0]
[null,null,null,"Buckinghamshire","E10000002",540,120,null,100,null,80,null,40,null,"~",null,20,null,40,null,40,null,30,null,30,null,20,null,10,null,0]
[null,null,null,"Hampshire","E10000014",10,0,null,0,null,0,null,0,null,"~",null,"~",null,"~",null,"~",null,"~",null,"~",null,0,null,"~",null,"~"]
[null,null,null,"Kent","E10000016","~",0,null,0,null,0,null,0,null,0,null,0,null,0,null,0,null,0,null,0,null,0,null,0,null,"~"]
[null,null,null,"Oxfordshire","E10000025",1700,500,null,330,null,160,null,90,null,40,null,120,null,180,null,140,null,80,null,40,null,20,null,"~",null,"~"]
[null,null,null,"Surrey","E10000030",660,180,null,120,null,80,null,20,null,20,null,80,null,80,null,40,null,20,null,20,null,"~",null,0,null,0]
[null,null,null,"West Sussex","E10000032","~",0,null,0,null,0,null,0,null,0,null,0,null,0,null,0,null,0,null,"~",null,0,null,0,null,"~"]
[null,null,"SOUTH WEST",null,"E12000009",4680,1210,null,950,null,520,null,220,null,160,null,390,null,490,null,370,null,200,null,100,null,40,null,10,null,10]
[null,null,null,"Cornwall","E06000052","~",0,null,0,null,0,null,0,null,0,null,0,null,"~",null,0,null,"~",null,0,null,0,null,0,null,0]
[null,null,null,"Plymouth","E06000026",60,0,null,0,null,"~",null,"~",null,"~",null,"~",null,10,null,"~",null,10,null,"~",null,"~",null,10,null,"~"]
[null,null,null,"South Gloucestershire","E06000025",0,0,null,0,null,0,null,0,null,0,null,0,null,0,null,0,null,0,null,0,null,0,null,0,null,0]
[null,null,null,"Wiltshire","E06000054",4620,1210,null,950,null,520,null,220,null,150,null,390,null,480,null,370,null,190,null,100,null,40,null,10,null,"~"]
[null,null,null,"Devon","E10000008","~",0,null,0,null,0,null,0,null,0,null,0,null,0,null,0,null,0,null,"~",null,"~",null,0,null,0]
[null,null,null,"Gloucestershire","E10000013",0,0,null,0,null,0,null,0,null,0,null,0,null,0,null,0,null,0,null,0,null,0,null,0,null,0]
[null,null,null,"Somerset","E10000027","~",0,null,0,null,0,null,0,null,0,null,0,null,0,null,0,null,0,null,0,null,0,null,"~",null,"~"]
[]
[null,"Source: DMICP Data Warehouse"]
[null,"1. In line with Joint Service Publication 200, numbers 5 or fewer have been supressed and presented as '~'."]
[null,"2. Due to rounding, please note that totals may not equal the sum of their parts."]
[null,"3. The presence of  +/- indicates percentage changes in figures over the last six months.  + indicates there has been a 5% to 10% increase and - indicates there has been between a 5% to 10% decrease.  ++ indicates a greater than 10% increase and -- indicates a greater than 10% decrease."]
[null,"4. Age bands are based on age as at time of data extraction."]

{"sheet":"Table B2.5","index":16,"n_rows":66,"n_cols":23,"rows_kept":66,"cut":false,"hidden":false,"merged":[[6,2,6,3],[63,1,63,21],[8,17,8,22],[8,11,8,16],[9,1,9,3],[8,5,8,10]]}
[null,"Annex B2 - England, by Regions and Local Authorities"]
[]
[null,"Table B2.5: UK Armed Forces personnel and entitled civilian personnel DMS registrations, registered to regions & Local Area Authorities by gender, Numbers"]
[null,"1 April 2018"]
[null,"Defence Statistics Health"]
[]
[null,null,"Return to contents"]
[]
[null,null,null,null,null,"All Persons",null,null,null,null,null,"UK Armed Forces",null,null,null,null,null,"Civilian"]
[null,"Area Name",null,null,"Area Code","All","+/-","Male","+/-","Female","+/-","All","+/-","Male","+/-","Female","+/-","All","+/-","Male","+/-","Female","+/-"]
[null,"ENGLAND",null,null,"E92000001",137610,"",115030,"",22580,"",123870,"",110250,"",13620,"",13740,"",4780,"",8960,""]
[null,null,"NORTH EAST",null,"E12000001",1260,null,1120,null,140,null,1260,null,1120,null,140,null,0,null,0,null,0]
[null,null,null,"Northumberland","E06000057",1260,null,1120,null,140,null,1260,null,1120,null,140,null,0,null,0,null,0]
[null,null,"NORTH WEST ",null,"E12000002",1730,null,1590,null,140,null,1730,null,1590,null,140,null,0,null,0,null,0]
[null,null,null,"Cheshire West and Chester","E06000050",610,null,580,null,30,null,610,null,580,null,30,null,0,null,0,null,0]
[null,null,null,"Cumbria","E10000006",200,null,190,null,"~",null,200,null,190,null,"~",null,0,null,0,null,0]
[null,null,null,"Lancashire","E10000017",920,null,820,null,100,null,920,null,820,null,100,null,0,null,0,null,0]
[null,null,"YORKSHIRE AND THE HUMBER",null,"E12000003",14640,null,12470,null,2160,null,13070,null,11930,null,1140,null,1560,null,540,null,1020]
[null,null,null,"East Riding of Yorkshire","E06000011",410,null,360,null,60,null,410,null,360,null,60,null,0,null,0,null,0]
[null,null,null,"York","E06000014",950,null,830,null,120,null,950,null,830,null,120,null,0,null,0,null,0]
[null,null,null,"North Yorkshire","E10000023",13270,null,11280,null,1990,null,11710,null,10750,null,960,null,1560,null,540,null,1020]
[null,null,"EAST MIDLANDS",null,"E12000004",10400,null,8350,null,2050,null,9020,null,7880,null,1140,null,1380,null,480,null,910]
[null,null,null,"Rutland","E06000017",2250,null,1590,null,660,null,1620,null,1380,null,240,null,630,null,210,null,420]
[null,null,null,"Lincolnshire","E10000019",7320,null,5980,null,1340,null,6570,null,5710,null,860,null,750,null,270,null,480]
[null,null,null,"Nottinghamshire","E10000024",830,null,790,null,40,null,830,null,790,null,40,null,0,null,0,null,0]
[null,null,"WEST MIDLANDS",null,"E12000005",7330,null,5750,null,1580,null,6640,null,5460,null,1180,null,690,null,280,null,410]
[null,null,null,"Shropshire","E06000051",3460,null,2750,null,700,null,2770,null,2470,null,300,null,690,null,280,null,410]
[null,null,null,"Staffordshire","E10000028",2340,null,1920,null,420,null,2340,null,1920,null,420,null,0,null,0,null,0]
[null,null,null,"Warwickshire","E10000031",820,null,760,null,70,null,820,null,760,null,70,null,"~",null,0,null,"~"]
[null,null,null,"West Midlands","E12000005",710,null,320,null,390,null,710,null,320,null,390,null,0,null,0,null,0]
[null,null,"EAST ",null,"E12000006",15150,null,12880,null,2260,null,13700,null,12390,null,1310,null,1450,null,490,null,960]
[null,null,null,"Central Bedfordshire","E06000056",1150,null,950,null,200,null,1150,null,950,null,200,null,"~",null,0,null,"~"]
[null,null,null,"Peterborough","E06000031",1490,null,1070,null,420,null,1020,null,900,null,120,null,470,null,160,null,300]
[null,null,null,"Cambridgeshire","E10000003",790,null,670,null,120,null,790,null,670,null,120,null,0,null,0,null,0]
[null,null,null,"Essex","E10000012",3900,null,3660,null,240,null,3900,null,3660,null,240,null,0,null,0,null,0]
[null,null,null,"Hertfordshire","E10000015",1210,null,1070,null,150,null,1210,null,1060,null,150,null,10,null,"~",null,"~"]
[null,null,null,"Norfolk","E10000020",3370,null,2480,null,890,null,2400,null,2160,null,240,null,960,null,320,null,650]
[null,null,null,"Suffolk","E10000029",3240,null,2990,null,240,null,3220,null,2980,null,240,null,10,null,10,null,"~"]
[null,null,"LONDON",null,"E12000007",5000,null,4180,null,820,null,4530,null,4030,null,500,null,460,null,150,null,320]
[null,null,null,"Inner London","E13000001",2410,null,2170,null,240,null,2410,null,2170,null,240,null,"~",null,"~",null,"~"]
[null,null,null,"Outer London","E13000002",2580,null,2000,null,580,null,2120,null,1860,null,260,null,460,null,150,null,310]
[null,null,"SOUTH EAST",null,"E12000008",42740,null,35500,null,7250,null,39230,null,34260,null,4970,null,3510,null,1240,null,2270]
[null,null,null,"Bracknell Forest","E06000036",1770,null,1220,null,550,null,1240,null,1060,null,170,null,540,null,160,null,380]
[null,null,null,"Medway","E06000035",530,null,510,null,20,null,530,null,510,null,20,null,0,null,0,null,0]
[null,null,null,"Portsmouth","E06000044",6720,null,5790,null,930,null,6660,null,5720,null,930,null,70,null,70,null,0]
[null,null,null,"West Berkshire","E06000037",330,null,280,null,50,null,330,null,280,null,50,null,0,null,0,null,0]
[null,null,null,"Windsor and Maidenhead","E06000040",970,null,920,null,40,null,970,null,920,null,40,null,"~",null,"~",null,0]
[null,null,null,"Buckinghamshire","E10000002",3550,null,2640,null,910,null,3010,null,2450,null,560,null,540,null,190,null,350]
[null,null,null,"Hampshire","E10000014",12650,null,11030,null,1620,null,12640,null,11020,null,1620,null,10,null,10,null,"~"]
[null,null,null,"Kent","E10000016",1950,null,1930,null,20,null,1950,null,1920,null,20,null,"~",null,"~",null,0]
[null,null,null,"Oxfordshire","E10000025",10360,null,8120,null,2240,null,8650,null,7530,null,1120,null,1700,null,580,null,1120]
[null,null,null,"Surrey","E10000030",2960,null,2220,null,740,null,2310,null,1990,null,310,null,660,null,230,null,430]
[null,null,null,"West Sussex","E10000032",950,null,840,null,110,null,950,null,840,null,110,null,"~",null,"~",null,"~"]
[null,null,"SOUTH WEST",null,"E12000009",39380,null,33190,null,6190,null,34690,null,31590,null,3100,null,4680,null,1600,null,3080]
[null,null,null,"Cornwall","E06000052",3130,null,2770,null,350,null,3120,null,2770,null,350,null,"~",null,"~",null,"~"]
[null,null,null,"Plymouth","E06000026",7590,null,6810,null,780,null,7530,null,6760,null,770,null,60,null,40,null,10]
[null,null,null,"South Gloucestershire","E06000025",1310,null,1200,null,110,null,1310,null,1200,null,110,null,0,null,0,null,0]
[null,null,null,"Wiltshire","E06000054",20560,null,16100,null,4460,null,15940,null,14550,null,1390,null,4620,null,1550,null,3070]
[null,null,null,"Devon","E10000008",1400,null,1370,null,30,null,1400,null,1370,null,30,null,"~",null,"~",null,"~"]
[null,null,null,"Gloucestershire","E10000013",2100,null,1880,null,220,null,2100,null,1880,null,220,null,0,null,0,null,0]
[null,null,null,"Somerset","E10000027",3280,null,3050,null,230,null,3280,null,3050,null,230,null,"~",null,"~",null,"~"]
[]
[null,"Source: DMICP Data Warehouse"]
[null,"1. In line with Joint Service Publication 200, numbers 5 or fewer have been supressed and presented as '~'."]
[null,"2. Due to rounding, please note that totals may not equal the sum of their parts."]
[null,"3. The presence of  +/- indicates percentage changes in figures over the last six months.  + indicates there has been a 5% to 10% increase and - indicates there has been between a 5% to 10% decrease.  ++ indicates a greater than 10% increase and -- indicates a greater than 10% decrease."]

{"sheet":"Table B2.6","index":17,"n_rows":66,"n_cols":32,"rows_kept":66,"cut":false,"hidden":false,"merged":[[8,1,8,3],[6,2,6,3],[62,1,62,21],[63,1,63,24],[64,1,64,30]]}
[null,"Annex B2 - England, by Regions and Local Authorities"]
[]
[null,"Table B2.6: UK Armed Forces males and entitled civilian males DMS registrations, registered to regions & Local Area Authorities by age band, Numbers"]
[null,"1 April 2018"]
[null,"Defence Statistics Health"]
[]
[null,null,"Return to contents"]
[]
[null,"Area Name",null,null,"Area Code","All Males","0-4","+/-","5-9","+/-","10-14","+/-","15-19","+/-","20-24","+/-","25-29","+/-","30-34","+/-","35-39","+/-","40-44","+/-","45-49","+/-","50-54","+/-","55-59","+/-","60+","+/-"]
[null,"ENGLAND",null,null,"E92000001",115030,1840,"-",1380,"",740,"",6720,"+",20810,"",24880,"",20320,"",16820,"",9950,"",6760,"",3940,"",780,"++",80,"+"]
[null,null,"NORTH EAST",null,"E12000001",1120,0,null,0,null,0,null,50,null,220,null,280,null,220,null,170,null,80,null,60,null,30,null,"~",null,0]
[null,null,null,"Northumberland","E06000057",1120,0,null,0,null,0,null,50,null,220,null,280,null,220,null,170,null,80,null,60,null,30,null,"~",null,0]
[null,null,"NORTH WEST ",null,"E12000002",1590,0,null,0,null,0,null,40,null,340,null,420,null,310,null,250,null,120,null,70,null,40,null,10,null,0]
[null,null,null,"Cheshire West and Chester","E06000050",580,0,null,0,null,0,null,20,null,150,null,160,null,110,null,80,null,40,null,20,null,10,null,"~",null,0]
[null,null,null,"Cumbria","E10000006",190,0,null,0,null,0,null,0,null,10,null,40,null,40,null,50,null,20,null,20,null,10,null,"~",null,0]
[null,null,null,"Lancashire","E10000017",820,0,null,0,null,0,null,20,null,180,null,220,null,160,null,120,null,70,null,30,null,20,null,"~",null,0]
[null,null,"YORKSHIRE AND THE HUMBER",null,"E12000003",12470,220,null,180,null,80,null,1980,null,2430,null,2720,null,2050,null,1430,null,780,null,380,null,180,null,40,null,"~"]
[null,null,null,"East Riding of Yorkshire","E06000011",360,0,null,0,null,0,null,80,null,60,null,60,null,50,null,40,null,40,null,20,null,"~",null,"~",null,0]
[null,null,null,"York","E06000014",830,0,null,0,null,0,null,10,null,130,null,150,null,180,null,160,null,90,null,60,null,30,null,"~",null,0]
[null,null,null,"North Yorkshire","E10000023",11280,220,null,180,null,80,null,1890,null,2240,null,2500,null,1820,null,1230,null,640,null,300,null,140,null,30,null,"~"]
[null,null,"EAST MIDLANDS",null,"E12000004",8350,180,null,140,null,80,null,170,null,1060,null,1630,null,1550,null,1480,null,940,null,710,null,350,null,70,null,10]
[null,null,null,"Rutland","E06000017",1590,80,null,70,null,30,null,70,null,310,null,370,null,280,null,210,null,100,null,40,null,10,null,"~",null,0]
[null,null,null,"Lincolnshire","E10000019",5980,90,null,70,null,50,null,100,null,690,null,1150,null,1100,null,1100,null,700,null,560,null,300,null,50,null,10]
[null,null,null,"Nottinghamshire","E10000024",790,0,null,0,null,0,null,10,null,50,null,100,null,170,null,160,null,140,null,110,null,40,null,10,null,"~"]
[null,null,"WEST MIDLANDS",null,"E12000005",5750,80,null,50,null,40,null,330,null,1310,null,1260,null,910,null,860,null,450,null,270,null,140,null,40,null,10]
[null,null,null,"Shropshire","E06000051",2750,80,null,50,null,40,null,220,null,700,null,550,null,350,null,330,null,200,null,140,null,80,null,20,null,"~"]
[null,null,null,"Staffordshire","E10000028",1920,0,null,0,null,0,null,80,null,410,null,470,null,360,null,320,null,160,null,70,null,40,null,10,null,"~"]
[null,null,null,"Warwickshire","E10000031",760,0,null,0,null,0,null,30,null,180,null,180,null,130,null,150,null,50,null,20,null,10,null,"~",null,0]
[null,null,null,"West Midlands","E12000005",320,0,null,0,null,0,null,"~",null,20,null,60,null,60,null,60,null,50,null,30,null,20,null,10,null,"~"]
[null,null,"EAST ",null,"E12000006",12880,210,null,150,null,80,null,370,null,2240,null,3040,null,2410,null,1970,null,1170,null,720,null,440,null,90,null,10]
[null,null,null,"Central Bedfordshire","E06000056",950,0,null,0,null,0,null,20,null,90,null,180,null,210,null,200,null,120,null,80,null,40,null,10,null,0]
[null,null,null,"Peterborough","E06000031",1070,60,null,50,null,40,null,30,null,100,null,220,null,190,null,140,null,100,null,80,null,40,null,10,null,"~"]
[null,null,null,"Cambridgeshire","E10000003",670,0,null,0,null,0,null,10,null,90,null,150,null,140,null,130,null,70,null,50,null,40,null,10,null,0]
[null,null,null,"Essex","E10000012",3660,0,null,0,null,0,null,140,null,900,null,1040,null,710,null,490,null,270,null,80,null,30,null,"~",null,"~"]
[null,null,null,"Hertfordshire","E10000015",1070,0,null,0,null,0,null,"~",null,20,null,100,null,160,null,250,null,200,null,170,null,140,null,20,null,"~"]
[null,null,null,"Norfolk","E10000020",2480,160,null,100,null,40,null,50,null,410,null,560,null,450,null,320,null,180,null,120,null,80,null,20,null,"~"]
[null,null,null,"Suffolk","E10000029",2990,0,null,"~",null,"~",null,120,null,620,null,790,null,560,null,450,null,220,null,140,null,70,null,10,null,"~"]
[null,null,"LONDON",null,"E12000007",4180,60,null,40,null,10,null,190,null,670,null,820,null,650,null,600,null,400,null,400,null,290,null,50,null,"~"]
[null,null,null,"Inner London","E13000001",2170,0,null,0,null,0,null,110,null,240,null,300,null,300,null,340,null,280,null,310,null,240,null,40,null,"~"]
[null,null,null,"Outer London","E13000002",2000,60,null,40,null,10,null,80,null,430,null,510,null,340,null,270,null,120,null,80,null,50,null,10,null,"~"]
[null,null,"SOUTH EAST",null,"E12000008",35500,480,null,340,null,180,null,1810,null,6310,null,7520,null,6390,null,5350,null,3160,null,2290,null,1350,null,290,null,30]
[null,null,null,"Bracknell Forest","E06000036",1220,70,null,50,null,20,null,20,null,360,null,300,null,150,null,140,null,40,null,40,null,30,null,"~",null,"~"]
[null,null,null,"Medway","E06000035",510,0,null,0,null,0,null,70,null,130,null,110,null,100,null,50,null,30,null,20,null,"~",null,"~",null,0]
[null,null,null,"Portsmouth","E06000044",5790,0,null,0,null,0,null,180,null,1030,null,1190,null,1010,null,850,null,530,null,550,null,370,null,80,null,10]
[null,null,null,"West Berkshire","E06000037",280,0,null,0,null,0,null,10,null,20,null,70,null,70,null,50,null,30,null,20,null,10,null,0,null,0]
[null,null,null,"Windsor and Maidenhead","E06000040",920,0,null,0,null,0,null,10,null,210,null,300,null,190,null,130,null,60,null,30,null,"~",null,"~",null,0]
[null,null,null,"Buckinghamshire","E10000002",2640,60,null,60,null,30,null,260,null,280,null,270,null,340,null,380,null,310,null,330,null,250,null,70,null,10]
[null,null,null,"Hampshire","E10000014",11030,0,null,0,null,0,null,690,null,2090,null,2560,null,2050,null,1660,null,970,null,600,null,330,null,70,null,10]
[null,null,null,"Kent","E10000016",1930,0,null,0,null,0,null,40,null,550,null,450,null,380,null,300,null,150,null,50,null,10,null,"~",null,"~"]
[null,null,null,"Oxfordshire","E10000025",8120,270,null,160,null,80,null,220,null,970,null,1530,null,1600,null,1460,null,870,null,590,null,310,null,60,null,"~"]
[null,null,null,"Surrey","E10000030",2220,90,null,60,null,50,null,290,null,490,null,500,null,330,null,200,null,110,null,60,null,30,null,10,null,0]
[null,null,null,"West Sussex","E10000032",840,0,null,0,null,0,null,30,null,180,null,240,null,190,null,140,null,60,null,10,null,"~",null,"~",null,"~"]
[null,null,"SOUTH WEST",null,"E12000009",33190,610,null,490,null,280,null,1780,null,6240,null,7190,null,5840,null,4710,null,2850,null,1860,null,1130,null,190,null,20]
[null,null,null,"Cornwall","E06000052",2770,0,null,0,null,0,null,350,null,560,null,540,null,470,null,320,null,240,null,150,null,120,null,20,null,"~"]
[null,null,null,"Plymouth","E06000026",6810,0,null,0,null,0,null,300,null,1560,null,1640,null,1160,null,860,null,560,null,420,null,240,null,60,null,10]
[null,null,null,"South Gloucestershire","E06000025",1200,0,null,0,null,0,null,0,null,"~",null,50,null,120,null,260,null,230,null,280,null,230,null,40,null,"~"]
[null,null,null,"Wiltshire","E06000054",16100,610,null,490,null,280,null,970,null,2900,null,3310,null,2820,null,2320,null,1270,null,690,null,380,null,50,null,10]
[null,null,null,"Devon","E10000008",1370,0,null,0,null,0,null,30,null,310,null,460,null,280,null,150,null,80,null,40,null,20,null,"~",null,0]
[null,null,null,"Gloucestershire","E10000013",1880,0,null,0,null,0,null,50,null,360,null,390,null,370,null,340,null,200,null,100,null,60,null,10,null,0]
[null,null,null,"Somerset","E10000027",3050,0,null,0,null,0,null,70,null,560,null,810,null,610,null,460,null,260,null,190,null,80,null,20,null,"~"]
[]
[null,"Source: DMICP Data Warehouse"]
[null,"1. In line with Joint Service Publication 200, numbers 5 or fewer have been supressed and presented as '~'."]
[null,"2. Due to rounding, please note that totals may not equal the sum of their parts."]
[null,"3. The presence of  +/- indicates percentage changes in figures over the last six months.  + indicates there has been a 5% to 10% increase and - indicates there has been between a 5% to 10% decrease.  ++ indicates a greater than 10% increase and -- indicates a greater than 10% decrease."]
[null,"4. Age bands are based on age as at time of data extraction."]

{"sheet":"Table B2.7","index":18,"n_rows":66,"n_cols":32,"rows_kept":66,"cut":false,"hidden":false,"merged":[[8,1,8,3],[6,2,6,3],[62,1,62,21],[64,1,64,28],[63,1,63,28]]}
[null,"Annex B2 - England, by Regions and Local Authorities"]
[]
[null,"Table B2.7: UK Armed Forces females and entitled civilian females DMS registrations, registered to regions & Local Area Authorities by age band, Numbers"]
[null,"1 April 2018"]
[null,"Defence Statistics Health"]
[]
[null,null,"Return to contents"]
[]
[null,"Area Name",null,null,"Area Code","All Females","0-4","+/-","5-9","+/-","10-14","+/-","15-19","+/-","20-24","+/-","25-29","+/-","30-34","+/-","35-39","+/-","40-44","+/-","45-49","+/-","50-54","+/-","55-59","+/-","60+","+/-"]
[null,"ENGLAND",null,null,"E92000001",22580,1760,"-",1310,"",700,"",1020,"++",2760,"",4340,"",4180,"",3380,"",1740,"",970,"+",360,"+",60,"",10,""]
[null,null,"NORTH EAST",null,"E12000001",140,0,null,0,null,0,null,10,null,40,null,30,null,20,null,20,null,10,null,10,null,0,null,0,null,0]
[null,null,null,"Northumberland","E06000057",140,0,null,0,null,0,null,10,null,40,null,30,null,20,null,20,null,10,null,10,null,0,null,0,null,0]
[null,null,"NORTH WEST ",null,"E12000002",140,0,null,0,null,0,null,10,null,30,null,30,null,30,null,20,null,10,null,"~",null,0,null,0,null,0]
[null,null,null,"Cheshire West and Chester","E06000050",30,0,null,0,null,0,null,0,null,"~",null,10,null,10,null,10,null,"~",null,"~",null,0,null,0,null,0]
[null,null,null,"Cumbria","E10000006","~",0,null,0,null,0,null,0,null,0,null,0,null,"~",null,"~",null,0,null,0,null,0,null,0,null,0]
[null,null,null,"Lancashire","E10000017",100,0,null,0,null,0,null,10,null,30,null,20,null,20,null,10,null,10,null,"~",null,0,null,0,null,0]
[null,null,"YORKSHIRE AND THE HUMBER",null,"E12000003",2160,210,null,180,null,70,null,170,null,270,null,410,null,330,null,270,null,150,null,70,null,30,null,10,null,"~"]
[null,null,null,"East Riding of Yorkshire","E06000011",60,0,null,0,null,0,null,20,null,10,null,"~",null,10,null,10,null,"~",null,"~",null,0,null,0,null,0]
[null,null,null,"York","E06000014",120,0,null,0,null,0,null,"~",null,30,null,30,null,30,null,20,null,20,null,10,null,"~",null,0,null,0]
[null,null,null,"North Yorkshire","E10000023",1990,210,null,180,null,70,null,150,null,240,null,380,null,300,null,240,null,130,null,60,null,20,null,10,null,"~"]
[null,null,"EAST MIDLANDS",null,"E12000004",2050,160,null,140,null,80,null,60,null,220,null,370,null,390,null,330,null,160,null,100,null,40,null,10,null,0]
[null,null,null,"Rutland","E06000017",660,90,null,70,null,30,null,20,null,90,null,150,null,110,null,80,null,20,null,10,null,"~",null,"~",null,0]
[null,null,null,"Lincolnshire","E10000019",1340,70,null,70,null,50,null,40,null,130,null,210,null,280,null,240,null,130,null,90,null,30,null,10,null,0]
[null,null,null,"Nottinghamshire","E10000024",40,0,null,0,null,0,null,0,null,10,null,10,null,10,null,10,null,10,null,"~",null,0,null,0,null,0]
[null,null,"WEST MIDLANDS",null,"E12000005",1580,90,null,60,null,20,null,90,null,240,null,310,null,280,null,240,null,130,null,80,null,40,null,10,null,0]
[null,null,null,"Shropshire","E06000051",700,90,null,60,null,20,null,20,null,60,null,120,null,110,null,110,null,60,null,40,null,10,null,"~",null,0]
[null,null,null,"Staffordshire","E10000028",420,0,null,0,null,0,null,60,null,80,null,70,null,60,null,60,null,40,null,30,null,20,null,"~",null,0]
[null,null,null,"Warwickshire","E10000031",70,0,null,0,null,0,null,"~",null,10,null,20,null,10,null,20,null,"~",null,"~",null,"~",null,0,null,0]
[null,null,null,"West Midlands","E12000005",390,0,null,0,null,0,null,10,null,70,null,100,null,100,null,50,null,30,null,10,null,10,null,"~",null,0]
[null,null,"EAST ",null,"E12000006",2260,180,null,130,null,60,null,60,null,260,null,470,null,450,null,320,null,180,null,100,null,30,null,"~",null,"~"]
[null,null,null,"Central Bedfordshire","E06000056",200,0,null,0,null,0,null,"~",null,30,null,60,null,40,null,30,null,20,null,10,null,"~",null,0,null,0]
[null,null,null,"Peterborough","E06000031",420,50,null,40,null,30,null,20,null,30,null,60,null,70,null,50,null,30,null,30,null,10,null,"~",null,0]
[null,null,null,"Cambridgeshire","E10000003",120,0,null,0,null,0,null,"~",null,20,null,30,null,30,null,20,null,10,null,10,null,"~",null,0,null,0]
[null,null,null,"Essex","E10000012",240,0,null,0,null,0,null,10,null,50,null,70,null,60,null,40,null,10,null,"~",null,0,null,0,null,0]
[null,null,null,"Hertfordshire","E10000015",150,0,null,0,null,0,null,0,null,10,null,20,null,40,null,40,null,20,null,10,null,"~",null,0,null,0]
[null,null,null,"Norfolk","E10000020",890,130,null,90,null,30,null,20,null,60,null,170,null,170,null,100,null,60,null,30,null,10,null,"~",null,"~"]
[null,null,null,"Suffolk","E10000029",240,0,null,0,null,0,null,"~",null,60,null,60,null,50,null,40,null,20,null,"~",null,"~",null,"~",null,0]
[null,null,"LONDON",null,"E12000007",820,70,null,40,null,20,null,40,null,80,null,140,null,160,null,110,null,100,null,50,null,20,null,"~",null,0]
[null,null,null,"Inner London","E13000001",240,0,null,0,null,0,null,0,null,20,null,40,null,50,null,50,null,50,null,20,null,10,null,"~",null,0]
[null,null,null,"Outer London","E13000002",580,70,null,40,null,20,null,40,null,60,null,100,null,100,null,60,null,50,null,20,null,10,null,"~",null,0]
[null,null,"SOUTH EAST",null,"E12000008",7250,450,null,310,null,200,null,340,null,870,null,1440,null,1410,null,1170,null,560,null,330,null,120,null,30,null,"~"]
[null,null,null,"Bracknell Forest","E06000036",550,60,null,40,null,30,null,20,null,70,null,90,null,90,null,60,null,40,null,20,null,10,null,10,null,"~"]
[null,null,null,"Medway","E06000035",20,0,null,0,null,0,null,0,null,10,null,10,null,"~",null,"~",null,"~",null,"~",null,0,null,0,null,0]
[null,null,null,"Portsmouth","E06000044",930,0,null,0,null,0,null,30,null,170,null,210,null,200,null,180,null,80,null,50,null,10,null,"~",null,0]
[null,null,null,"West Berkshire","E06000037",50,0,null,0,null,0,null,0,null,"~",null,10,null,20,null,10,null,"~",null,"~",null,"~",null,0,null,"~"]
[null,null,null,"Windsor and Maidenhead","E06000040",40,0,null,0,null,0,null,"~",null,"~",null,10,null,10,null,10,null,10,null,0,null,0,null,0,null,0]
[null,null,null,"Buckinghamshire","E10000002",910,60,null,40,null,50,null,60,null,50,null,100,null,160,null,170,null,90,null,80,null,40,null,10,null,0]
[null,null,null,"Hampshire","E10000014",1620,0,null,0,null,0,null,80,null,280,null,440,null,340,null,290,null,110,null,60,null,20,null,"~",null,0]
[null,null,null,"Kent","E10000016",20,0,null,0,null,0,null,0,null,"~",null,10,null,10,null,"~",null,"~",null,"~",null,0,null,0,null,0]
[null,null,null,"Oxfordshire","E10000025",2240,240,null,170,null,80,null,60,null,180,null,400,null,450,null,360,null,190,null,80,null,30,null,10,null,0]
[null,null,null,"Surrey","E10000030",740,90,null,60,null,30,null,80,null,80,null,150,null,120,null,80,null,30,null,20,null,"~",null,"~",null,"~"]
[null,null,null,"West Sussex","E10000032",110,0,null,0,null,0,null,10,null,40,null,30,null,20,null,10,null,"~",null,"~",null,0,null,0,null,0]
[null,null,"SOUTH WEST",null,"E12000009",6190,600,null,460,null,250,null,250,null,740,null,1120,null,1110,null,890,null,450,null,230,null,80,null,10,null,"~"]
[null,null,null,"Cornwall","E06000052",350,0,null,0,null,0,null,50,null,70,null,90,null,60,null,40,null,20,null,20,null,"~",null,0,null,0]
[null,null,null,"Plymouth","E06000026",780,0,null,0,null,"~",null,20,null,180,null,210,null,170,null,100,null,60,null,30,null,10,null,0,null,"~"]
[null,null,null,"South Gloucestershire","E06000025",110,0,null,0,null,0,null,0,null,"~",null,10,null,30,null,20,null,20,null,20,null,"~",null,0,null,0]
[null,null,null,"Wiltshire","E06000054",4460,600,null,460,null,250,null,170,null,400,null,700,null,740,null,630,null,310,null,150,null,60,null,"~",null,"~"]
[null,null,null,"Devon","E10000008",30,0,null,0,null,0,null,0,null,"~",null,10,null,10,null,10,null,0,null,0,null,"~",null,0,null,0]
[null,null,null,"Gloucestershire","E10000013",220,0,null,0,null,0,null,"~",null,40,null,60,null,40,null,40,null,30,null,10,null,"~",null,0,null,0]
[null,null,null,"Somerset","E10000027",230,0,null,0,null,0,null,10,null,40,null,50,null,70,null,40,null,10,null,"~",null,"~",null,"~",null,0]
[]
[null,"Source: DMICP Data Warehouse"]
[null,"1. In line with Joint Service Publication 200, numbers 5 or fewer have been supressed and presented as '~'."]
[null,"2. Due to rounding, please note that totals may not equal the sum of their parts."]
[null,"3. The presence of  +/- indicates percentage changes in figures over the last six months.  + indicates there has been a 5% to 10% increase and - indicates there has been between a 5% to 10% decrease.  ++ indicates a greater than 10% increase and -- indicates a greater than 10% decrease."]
[null,"4. Age bands are based on age as at time of data extraction."]

{"sheet":"Table C1.1","index":19,"n_rows":19,"n_cols":15,"rows_kept":19,"cut":false,"hidden":false,"merged":[[7,9,7,11],[16,1,16,18],[17,1,17,18],[18,1,18,18],[6,2,6,3]]}
[null,"Annex C1 - Wales, by Local Health Boards"]
[]
[null,"Table C1.1: UK Armed Forces personnel and entitled civilian personnel DMS registrations, registered to Local Health Boards by Service, Numbers"]
[null,"1 April 2018"]
[null,"Defence Statistics Health"]
[]
[null,null,"Return to contents"]
[null,null,null,null,"NEW","OLD",null,null,null,"UK Armed Forces split by "]
[null,null,null,"Area Name","Area Code","Area Code","All Persons","All UK Armed Forces","+/-","Naval Service","Army","RAF","Civilian","+/-"]
[null,null,"WALES",null,"W92000004",null,1410,1180,"",30,900,250,230,"-",""]
[null,null,null,"Betsi Cadwaladr University","W11000023","7A1",490,270,"",20,20,230,230,"-",""]
[null,null,null,"Powys Teaching","W11000024","7A7",420,420,"-",10,390,20,0,"",""]
[null,null,null,"Hywel Dda","W11000025","7A2",490,490,"+",0,490,"~",0,"",""]
[]
[]
[null,"Source: DMICP Data Warehouse"]
[null,"1. In line with Joint Service Publication 200, numbers 5 or fewer have been supressed and presented as '~'."]
[null,"2. Due to rounding, please note that totals may not equal the sum of their parts."]
[null,"3. The presence of  +/- indicates percentage changes in figures over the last six months.  + indicates there has been a 5% to 10% increase and - indicates there has been between a 5% to 10% decrease.  ++ indicates a greater than 10% increase and -- indicates a greater than 10% decrease."]

{"sheet":"Table C1.2","index":20,"n_rows":20,"n_cols":32,"rows_kept":20,"cut":false,"hidden":false,"merged":[[9,1,9,2],[16,1,16,21],[18,1,18,26],[17,1,17,26],[6,2,6,3]]}
[null,"Annex C1 - Wales, by Local Health Boards"]
[]
[null,"Table C1.2: UK Armed Forces personnel and entitled civilian personnel DMS registrations, registered to Local Health Boards by age band, Numbers"]
[null,"1 April 2018"]
[null,"Defence Statistics Health"]
[]
[null,null,"Return to contents"]
[]
[null,null,null,"NEW","OLD"]
[null,"Area Name",null,"Area Code","Area Code","All Persons","0-4","+/-","5-9","+/-","10-14","+/-","15-19","+/-","20-24","+/-","25-29","+/-","30-34","+/-","35-39","+/-","40-44","+/-","45-49","+/-","50-54","+/-","55-59","+/-","60+","+/-"]
[null,"WALES",null,"W92000004",null,1410,50,"- -",50,"-",30,"",20,"++",170,"-",330,"",280,"",250,"",110,"-",80,"",30,"- -","~","",0,""]
[null,null,"Betsi Cadwaladr University","W11000023","7A1",490,50,null,50,null,30,null,10,null,20,null,80,null,80,null,80,null,40,null,40,null,20,null,"~",null,0]
[null,null,"Powys Teaching","W11000024","7A7",420,0,null,0,null,0,null,0,null,60,null,100,null,100,null,90,null,40,null,30,null,10,null,0,null,0]
[null,null,"Hywel Dda","W11000025","7A2",490,0,null,0,null,0,null,10,null,90,null,160,null,100,null,90,null,40,null,10,null,"~",null,0,null,0]
[]
[null,"Source: DMICP Data Warehouse"]
[null,"1. In line with Joint Service Publication 200, numbers 5 or fewer have been supressed and presented as '~'."]
[null,"2. Due to rounding, please note that totals may not equal the sum of their parts."]
[null,"3. The presence of  +/- indicates percentage changes in figures over the last six months.  + indicates there has been a 5% to 10% increase and - indicates there has been between a 5% to 10% decrease.  ++ indicates a greater than 10% increase and -- indicates a greater than 10% decrease."]
[null,"4. Age bands are based on age as at time of data extraction."]

{"sheet":"Table C1.3","index":21,"n_rows":20,"n_cols":26,"rows_kept":20,"cut":false,"hidden":false,"merged":[[9,1,9,2],[16,1,16,21],[18,1,18,22],[17,1,17,22],[6,2,6,3]]}
[null,"Annex C1 - Wales, by Local Health Boards"]
[]
[null,"Table C1.3: UK Armed Forces personnel DMS registrations, registered to Local Health Boards by age band, Numbers"]
[null,"1 April 2018"]
[null,"Defence Statistics Health"]
[]
[null,null,"Return to contents"]
[]
[null,null,null,"NEW","OLD"]
[null,"Area Name",null,"Area Code","Area Code","All UK Armed Forces","16-19","+/-","20-24","+/-","25-29","+/-","30-34","+/-","35-39","+/-","40-44","+/-","45-49","+/-","50-54","+/-","55-59","+/-","60+","+/-"]
[null,"WALES",null,"W92000004",null,1180,10,"",170,"-",320,"",260,"",230,"+",100,"-",70,"",20,"- -","~","",0,""]
[null,null,"Betsi Cadwaladr University","W11000023","7A1",270,"~",null,20,null,60,null,60,null,50,null,30,null,30,null,10,null,"~",null,0]
[null,null,"Powys Teaching","W11000024","7A7",420,0,null,60,null,100,null,100,null,90,null,40,null,30,null,10,null,0,null,0]
[null,null,"Hywel Dda","W11000025","7A2",490,10,null,90,null,160,null,100,null,90,null,40,null,10,null,"~",null,0,null,0]
[]
[null,"Source: DMICP Data Warehouse"]
[null,"1. In line with Joint Service Publication 200, numbers 5 or fewer have been supressed and presented as '~'."]
[null,"2. Due to rounding, please note that totals may not equal the sum of their parts."]
[null,"3. The presence of  +/- indicates percentage changes in figures over the last six months.  + indicates there has been a 5% to 10% increase and - indicates there has been between a 5% to 10% decrease.  ++ indicates a greater than 10% increase and -- indicates a greater than 10% decrease."]
[null,"4. Age bands are based on age as at time of data extraction."]

{"sheet":"Table C1.4","index":22,"n_rows":20,"n_cols":32,"rows_kept":20,"cut":false,"hidden":false,"merged":[[16,1,16,21],[18,1,18,28],[17,1,17,28],[6,2,6,3]]}
[null,"Annex C1 - Wales, by Local Health Boards"]
[]
[null,"Table C1.4: Entitled civilian personnel DMS registrations, registered to Local Health Boards by age band, Numbers"]
[null,"1 April 2018"]
[null,"Defence Statistics Health"]
[]
[null,null,"Return to contents"]
[]
[null,null,null,"NEW","OLD"]
[null,"Area Name",null,"Area Code","Area Code","All Civilians","0-4","+/-","5-9","+/-","10-14","+/-","15-19","+/-","20-24","+/-","25-29","+/-","30-34","+/-","35-39","+/-","40-44","+/-","45-49","+/-","50-54","+/-","55-59","+/-","60+","+/-"]
[null,"WALES",null,"W92000004",null,230,50,"- -",50,"-",30,"",10,"","~","",10,"",20,"- -",20,"",10,"","~","",10,"","~","",0,""]
[null,null,"Betsi Cadwaladr University","W11000023","7A1",230,50,null,50,null,30,null,10,null,"~",null,10,null,20,null,20,null,10,null,"~",null,10,null,"~",null,0]
[null,null,"Powys Teaching","W11000024","7A7",0,0,null,0,null,0,null,0,null,0,null,0,null,0,null,0,null,0,null,0,null,0,null,0,null,0]
[null,null,"Hywel Dda","W11000025","7A2",0,0,null,0,null,0,null,0,null,0,null,0,null,0,null,0,null,0,null,0,null,0,null,0,null,0]
[]
[null,"Source: DMICP Data Warehouse"]
[null,"1. In line with Joint Service Publication 200, numbers 5 or fewer have been supressed and presented as '~'."]
[null,"2. Due to rounding, please note that totals may not equal the sum of their parts."]
[null,"3. The presence of  +/- indicates percentage changes in figures over the last six months.  + indicates there has been a 5% to 10% increase and - indicates there has been between a 5% to 10% decrease.  ++ indicates a greater than 10% increase and -- indicates a greater than 10% decrease."]
[null,"4. Age bands are based on age as at time of data extraction."]

{"sheet":"Table C1.5","index":23,"n_rows":19,"n_cols":23,"rows_kept":19,"cut":false,"hidden":false,"merged":[[6,2,6,3],[18,1,18,22],[8,5,8,9],[8,11,8,16],[8,17,8,22],[16,1,16,21],[17,1,17,19]]}
[null,"Annex C1 - Wales, by Local Health Boards"]
[]
[null,"Table C1.5: UK Armed Forces personnel and entitled civilian personnel DMS registrations, registered to Local Health Boards by gender, Numbers"]
[null,"1 April 2018"]
[null,"Defence Statistics Health"]
[]
[null,null,"Return to contents"]
[]
[null,null,null,"NEW","OLD","All Persons",null,null,null,null,null,"UK Armed Forces",null,null,null,null,null,"Civilian"]
[null,"Area Name",null,"Area Code","Area Code","All","+/-","Male","+/-","Female","+/-","All","+/-","Male","+/-","Female","+/-","All","+/-","Male","+/-","Female","+/-"]
[null,"WALES",null,"W92000004",null,1410,"",1160,"",240,"-",1180,"",1080,"",100,"+",230,"-",80,"",150,"- -"]
[null,null,"Betsi Cadwaladr University","W11000023","7A1",490,null,310,null,180,null,270,null,230,null,30,null,230,null,80,null,150]
[null,null,"Powys Teaching","W11000024","7A7",420,null,400,null,20,null,420,null,400,null,20,null,0,null,0,null,0]
[null,null,"Hywel Dda","W11000025","7A2",490,null,450,null,40,null,490,null,450,null,40,null,0,null,0,null,0]
[]
[null,"Source: DMICP Data Warehouse"]
[null,"1. In line with Joint Service Publication 200, numbers 5 or fewer have been supressed and presented as '~'."]
[null,"2. Due to rounding, please note that totals may not equal the sum of their parts."]
[null,"3. The presence of  +/- indicates percentage changes in figures over the last six months.  + indicates there has been a 5% to 10% increase and - indicates there has been between a 5% to 10% decrease.  ++ indicates a greater than 10% increase and -- indicates a greater than 10% decrease."]

{"sheet":"Table C1.6","index":24,"n_rows":20,"n_cols":32,"rows_kept":20,"cut":false,"hidden":false,"merged":[[16,1,16,21],[18,1,18,27],[17,1,17,27],[6,2,6,3]]}
[null,"Annex C1 - Wales, by Local Health Boards"]
[]
[null,"Table C1.6: UK Armed Forces males and entitled civilian males DMS registrations, registered to Local Health Boards by age band, Numbers"]
[null,"1 April 2018"]
[null,"Defence Statistics Health"]
[]
[null,null,"Return to contents"]
[]
[null,null,null,"NEW","OLD"]
[null,"Area Name",null,"Area Code","Area Code","All Males","0-4","+/-","5-9","+/-","10-14","+/-","15-19","+/-","20-24","+/-","25-29","+/-","30-34","+/-","35-39","+/-","40-44","+/-","45-49","+/-","50-54","+/-","55-59","+/-","60+","+/-"]
[null,"WALES",null,"W92000004",null,1160,20,"- -",30,"+",10,"",20,"",150,"- -",280,"",240,"",210,"+",90,"- -",70,"",20,"- -","~","",0,""]
[null,null,"Betsi Cadwaladr University","W11000023","7A1",310,20,null,30,null,10,null,10,null,20,null,50,null,50,null,50,null,20,null,30,null,10,null,"~",null,0]
[null,null,"Powys Teaching","W11000024","7A7",400,0,null,0,null,0,null,0,null,60,null,90,null,100,null,80,null,40,null,20,null,10,null,0,null,0]
[null,null,"Hywel Dda","W11000025","7A2",450,0,null,0,null,0,null,10,null,80,null,140,null,100,null,80,null,40,null,10,null,"~",null,0,null,0]
[]
[null,"Source: DMICP Data Warehouse"]
[null,"1. In line with Joint Service Publication 200, numbers 5 or fewer have been supressed and presented as '~'."]
[null,"2. Due to rounding, please note that totals may not equal the sum of their parts."]
[null,"3. The presence of  +/- indicates percentage changes in figures over the last six months.  + indicates there has been a 5% to 10% increase and - indicates there has been between a 5% to 10% decrease.  ++ indicates a greater than 10% increase and -- indicates a greater than 10% decrease."]
[null,"4. Age bands are based on age as at time of data extraction."]

{"sheet":"Table C1.7","index":25,"n_rows":19,"n_cols":32,"rows_kept":19,"cut":false,"hidden":false,"merged":[[15,1,15,21],[17,1,17,28],[16,1,16,28],[6,2,6,3]]}
[null,"Annex C1 - Wales, by Local Health Boards"]
[]
[null,"Table C1.7: UK Armed Forces females and entitled civilian females DMS registrations, registered to Local Health Boards by age band, Numbers"]
[null,"1 April 2018"]
[null,"Defence Statistics Health"]
[]
[null,null,"Return to contents"]
[null,null,null,"NEW","OLD"]
[null,"Area Name",null,"Area Code","Area Code","All Females","0-4","+/-","5-9","+/-","10-14","+/-","15-19","+/-","20-24","+/-","25-29","+/-","30-34","+/-","35-39","+/-","40-44","+/-","45-49","+/-","50-54","+/-","55-59","+/-","60+","+/-"]
[null,"WALES",null,"W92000004",null,240,30,"- -",20,"- -",20,"",10,"",20,"++",40,"",40,"- -",40,"",20,"",10,"",10,"",0,"",0,""]
[null,null,"Betsi Cadwaladr University","W11000023","7A1",180,30,null,20,null,20,null,"~",null,"~",null,20,null,30,null,30,null,20,null,"~",null,10,null,0,null,0]
[null,null,"Powys Teaching","W11000024","7A7",20,0,null,0,null,0,null,0,null,0,null,"~",null,10,null,"~",null,"~",null,"~",null,"~",null,0,null,0]
[null,null,"Hywel Dda","W11000025","7A2",40,0,null,0,null,0,null,"~",null,20,null,20,null,"~",null,10,null,"~",null,0,null,0,null,0,null,0]
[]
[null,"Source: DMICP Data Warehouse"]
[null,"1. In line with Joint Service Publication 200, numbers 5 or fewer have been supressed and presented as '~'."]
[null,"2. Due to rounding, please note that totals may not equal the sum of their parts."]
[null,"3. The presence of  +/- indicates percentage changes in figures over the last six months.  + indicates there has been a 5% to 10% increase and - indicates there has been between a 5% to 10% decrease.  ++ indicates a greater than 10% increase and -- indicates a greater than 10% decrease."]
[null,"4. Age bands are based on age as at time of data extraction."]

{"sheet":"Table C2.1","index":26,"n_rows":19,"n_cols":14,"rows_kept":19,"cut":false,"hidden":false,"merged":[[18,1,18,18],[6,2,6,3],[8,1,8,3],[7,8,7,10],[16,1,16,21],[17,1,17,17]]}
[null,"Annex C2 - Wales, by Local Authorities"]
[]
[null,"Table C2.1: UK Armed Forces personnel and entitled civilian personnel DMS registrations, registered to Local Area Authorities by Service, Numbers"]
[null,"1 April 2018"]
[null,"Defence Statistics Health"]
[]
[null,null,"Return to contents"]
[null,null,null,null,null,null,null,null,"UK Armed Forces split by "]
[null,"Area Name",null,null,"Area Code","All Persons","All UK Armed Forces","+/-","Naval Service","Army","RAF","Civilian","+/-"]
[null,null,"WALES",null,"W92000004",1410,1180,"",30,900,250,230,"-",""]
[null,null,null,"Isle of Anglesey","W06000001",490,270,"",20,20,230,230,"-",""]
[null,null,null,"Powys","W06000023",420,420,"-",10,390,20,0,"",""]
[null,null,null,"Pembrokeshire","W06000009",490,490,"+",0,490,"~",0,"",""]
[]
[]
[null,"Source: DMICP Data Warehouse"]
[null,"1. In line with Joint Service Publication 200, numbers 5 or fewer have been supressed and presented as '~'."]
[null,"2. Due to rounding, please note that totals may not equal the sum of their parts."]
[null,"3. The presence of  +/- indicates percentage changes in figures over the last six months.  + indicates there has been a 5% to 10% increase and - indicates there has been between a 5% to 10% decrease.  ++ indicates a greater than 10% increase and -- indicates a greater than 10% decrease."]

{"sheet":"Table C2.2","index":27,"n_rows":18,"n_cols":31,"rows_kept":18,"cut":false,"hidden":false,"merged":[[7,1,7,2],[14,1,14,21],[16,1,16,29],[15,1,15,29],[6,2,6,3]]}
[null,"Annex C2 - Wales, by Local Authorities"]
[]
[null,"Table C2.2: UK Armed Forces personnel and entitled civilian personnel DMS registrations, registered to Local Area Authorities by age band, Numbers"]
[null,"1 April 2018"]
[null," Defence Statistics Health"]
[]
[null,null,"Return to contents"]
[null,"Area Name",null,"Area Code","All Persons","0-4","+/-","5-9","+/-","10-14","+/-","15-19","+/-","20-24","+/-","25-29","+/-","30-34","+/-","35-39","+/-","40-44","+/-","45-49","+/-","50-54","+/-","55-59","+/-","60+","+/-"]
[null,"WALES",null,"W92000004",1410,50,"- -",50,"-",30,"",20,"++",170,"-",330,"",280,"",250,"",110,"-",80,"",30,"- -","~","",0,""]
[null,null,"Isle of Anglesey","W06000001",490,50,null,50,null,30,null,10,null,20,null,80,null,80,null,80,null,40,null,40,null,20,null,"~",null,0]
[null,null,"Powys","W06000023",420,0,null,0,null,0,null,0,null,60,null,100,null,100,null,90,null,40,null,30,null,10,null,0,null,0]
[null,null,"Pembrokeshire","W06000009",490,0,null,0,null,0,null,10,null,90,null,160,null,100,null,90,null,40,null,10,null,"~",null,0,null,0]
[]
[null,"Source: DMICP Data Warehouse"]
[null,"1. In line with Joint Service Publication 200, numbers 5 or fewer have been supressed and presented as '~'."]
[null,"2. Due to rounding, please note that totals may not equal the sum of their parts."]
[null,"3. The presence of  +/- indicates percentage changes in figures over the last six months.  + indicates there has been a 5% to 10% increase and - indicates there has been between a 5% to 10% decrease.  ++ indicates a greater than 10% increase and -- indicates a greater than 10% decrease."]
[null,"4. Age bands are based on age as at time of data extraction."]

{"sheet":"Table C2.3","index":28,"n_rows":19,"n_cols":25,"rows_kept":19,"cut":false,"hidden":false,"merged":[[8,1,8,2],[15,1,15,21],[17,1,17,23],[16,1,16,23],[6,2,6,3]]}
[null,"Annex C2 - Wales, by Local Authorities"]
[]
[null,"Table C2.3: UK Armed Forces personnel DMS registrations, registered to Local Area Authorities by age band, Numbers"]
[null,"1 April 2018"]
[null,"Defence Statistics Health"]
[]
[null,null,"Return to contents"]
[]
[null,"Area Name",null,"Area Code","All UK Armed Forces","16-19","+/-","20-24","+/-","25-29","+/-","30-34","+/-","35-39","+/-","40-44","+/-","45-49","+/-","50-54","+/-","55-59","+/-","60+","+/-"]
[null,"WALES",null,"W92000004",1180,10,"",170,"-",320,"",260,"",230,"+",100,"-",70,"",20,"- -","~","",0,""]
[null,null,"Isle of Anglesey","W06000001",270,"~",null,20,null,60,null,60,null,50,null,30,null,30,null,10,null,"~",null,0]
[null,null,"Powys","W06000023",420,0,null,60,null,100,null,100,null,90,null,40,null,30,null,10,null,0,null,0]
[null,null,"Pembrokeshire","W06000009",490,10,null,90,null,160,null,100,null,90,null,40,null,10,null,"~",null,0,null,0]
[]
[null,"Source: DMICP Data Warehouse"]
[null,"1. In line with Joint Service Publication 200, numbers 5 or fewer have been supressed and presented as '~'."]
[null,"2. Due to rounding, please note that totals may not equal the sum of their parts."]
[null,"3. The presence of  +/- indicates percentage changes in figures over the last six months.  + indicates there has been a 5% to 10% increase and - indicates there has been between a 5% to 10% decrease.  ++ indicates a greater than 10% increase and -- indicates a greater than 10% decrease."]
[null,"4. Age bands are based on age as at time of data extraction."]

{"sheet":"Table C2.4","index":29,"n_rows":19,"n_cols":31,"rows_kept":19,"cut":false,"hidden":false,"merged":[[8,1,8,2],[15,1,15,21],[17,1,17,30],[16,1,16,30],[6,2,6,3]]}
[null,"Annex C2 - Wales, by Local Authorities"]
[]
[null,"Table C2.4: Entitled civilian personnel DMS registrations, registered to Local Area Authorities by age band, Numbers"]
[null,"1 April 2018"]
[null,"Defence Statistics Health"]
[]
[null,null,"Return to contents"]
[]
[null,"Area Name",null,"Area Code","All Civilians","0-4","+/-","5-9","+/-","10-14","+/-","15-19","+/-","20-24","+/-","25-29","+/-","30-34","+/-","35-39","+/-","40-44","+/-","45-49","+/-","50-54","+/-","55-59","+/-","60+","+/-"]
[null,"WALES",null,"W92000004",230,50,"- -",50,"-",30,"",10,"","~","",10,"",20,"- -",20,"",10,"","~","",10,"","~","",0,""]
[null,null,"Isle of Anglesey","W06000001",230,50,null,50,null,30,null,10,null,"~",null,10,null,20,null,20,null,10,null,"~",null,10,null,"~",null,0]
[null,null,"Powys","W06000023",0,0,null,0,null,0,null,0,null,0,null,0,null,0,null,0,null,0,null,0,null,0,null,0,null,0]
[null,null,"Pembrokeshire","W06000009",0,0,null,0,null,0,null,0,null,0,null,0,null,0,null,0,null,0,null,0,null,0,null,0,null,0]
[]
[null,"Source: DMICP Data Warehouse"]
[null,"1. In line with Joint Service Publication 200, numbers 5 or fewer have been supressed and presented as '~'."]
[null,"2. Due to rounding, please note that totals may not equal the sum of their parts."]
[null,"3. The presence of  +/- indicates percentage changes in figures over the last six months.  + indicates there has been a 5% to 10% increase and - indicates there has been between a 5% to 10% decrease.  ++ indicates a greater than 10% increase and -- indicates a greater than 10% decrease."]
[null,"4. Age bands are based on age as at time of data extraction."]

{"sheet":"Table C2.5","index":30,"n_rows":19,"n_cols":22,"rows_kept":19,"cut":false,"hidden":false,"merged":[[6,2,6,3],[17,1,17,24],[18,1,18,25],[7,10,7,15],[7,16,7,21],[7,4,7,9],[8,1,8,2],[16,1,16,21]]}
[null,"Annex C2 - Wales, by Local Authorities"]
[]
[null,"Table C2.5: UK Armed Forces personnel and entitled civilian personnel DMS registrations, registered to Local Area Authorities by gender, Numbers"]
[null,"1 April 2018"]
[null,"Defence Statistics Health"]
[]
[null,null,"Return to contents"]
[null,null,null,null,"All Persons",null,null,null,null,null,"UK Armed Forces",null,null,null,null,null,"Civilian"]
[null,"Area Name",null,"Area Code","All","+/-","Male","+/-","Female","+/-","All","+/-","Male","+/-","Female","+/-","All","+/-","Male","+/-","Female","+/-"]
[null,"WALES",null,"W92000004",1410,"",1160,"",240,"-",1180,"",1080,"",100,"+",230,"-",80,"",150,"- -"]
[null,null,"Isle of Anglesey","W06000001",490,null,310,null,180,null,270,null,230,null,30,null,230,null,80,null,150]
[null,null,"Powys","W06000023",420,null,400,null,20,null,420,null,400,null,20,null,0,null,0,null,0]
[null,null,"Pembrokeshire","W06000009",490,null,450,null,40,null,490,null,450,null,40,null,0,null,0,null,0]
[]
[]
[null,"Source: DMICP Data Warehouse"]
[null,"1. In line with Joint Service Publication 200, numbers 5 or fewer have been supressed and presented as '~'."]
[null,"2. Due to rounding, please note that totals may not equal the sum of their parts."]
[null,"3. The presence of  +/- indicates percentage changes in figures over the last six months.  + indicates there has been a 5% to 10% increase and - indicates there has been between a 5% to 10% decrease.  ++ indicates a greater than 10% increase and -- indicates a greater than 10% decrease."]

{"sheet":"Table C2.6","index":31,"n_rows":18,"n_cols":31,"rows_kept":18,"cut":false,"hidden":false,"merged":[[7,1,7,2],[14,1,14,21],[15,1,15,29],[16,1,16,30],[6,2,6,3]]}
[null,"Annex C2 - Wales, by Local Authorities"]
[]
[null,"Table C2.6: UK Armed Forces males and entitled civilian males DMS registrations, registered to Local Area Authorities by age band, Numbers"]
[null,"1 April 2018"]
[null,"Defence Statistics Health"]
[]
[null,null,"Return to contents"]
[null,"Area Name",null,"Area Code","All Males","0-4","+/-","5-9","+/-","10-14","+/-","15-19","+/-","20-24","+/-","25-29","+/-","30-34","+/-","35-39","+/-","40-44","+/-","45-49","+/-","50-54","+/-","55-59","+/-","60+","+/-"]
[null,"WALES",null,"W92000004",1160,20,"- -",30,"+",10,"",20,"",150,"- -",280,"",240,"",210,"+",90,"- -",70,"",20,"- -","~","",0,""]
[null,null,"Isle of Anglesey","W06000001",310,20,null,30,null,10,null,10,null,20,null,50,null,50,null,50,null,20,null,30,null,10,null,"~",null,0]
[null,null,"Powys","W06000023",400,0,null,0,null,0,null,0,null,60,null,90,null,100,null,80,null,40,null,20,null,10,null,0,null,0]
[null,null,"Pembrokeshire","W06000009",450,0,null,0,null,0,null,10,null,80,null,140,null,100,null,80,null,40,null,10,null,"~",null,0,null,0]
[]
[null,"Source: DMICP Data Warehouse"]
[null,"1. In line with Joint Service Publication 200, numbers 5 or fewer have been supressed and presented as '~'."]
[null,"2. Due to rounding, please note that totals may not equal the sum of their parts."]
[null,"3. The presence of  +/- indicates percentage changes in figures over the last six month.  + indicates there has been a 5% to 10% increase and - indicates there has been between a 5% to 10% decrease.  ++ indicates a greater than 10% increase and -- indicates a greater than 10% decrease."]
[null,"4. Age bands are based on age as at time of data extraction."]

{"sheet":"Table C2.7","index":32,"n_rows":20,"n_cols":31,"rows_kept":20,"cut":false,"hidden":false,"merged":[[8,1,8,2],[16,1,16,21],[18,1,18,29],[17,1,17,27],[6,2,6,3]]}
[null,"Annex C2 - Wales, by Local Authorities"]
[]
[null,"Table C2.7: UK Armed Forces females and entitled civilian females DMS registrations, registered to Local Area Authorities by age band, Numbers"]
[null,"1 April 2018"]
[null,"Defence Statistics Health"]
[]
[null,null,"Return to contents"]
[]
[null,"Area Name",null,"Area Code","All Females","0-4","+/-","5-9","+/-","10-14","+/-","15-19","+/-","20-24","+/-","25-29","+/-","30-34","+/-","35-39","+/-","40-44","+/-","45-49","+/-","50-54","+/-","55-59","+/-","60+","+/-"]
[null,"WALES",null,"W92000004",240,30,"- -",20,"- -",20,"",10,"",20,"++",40,"",40,"- -",40,"",20,"",10,"",10,"",0,"",0,""]
[null,null,"Isle of Anglesey","W06000001",180,30,null,20,null,20,null,"~",null,"~",null,20,null,30,null,30,null,20,null,"~",null,10,null,0,null,0]
[null,null,"Powys","W06000023",20,0,null,0,null,0,null,0,null,0,null,"~",null,10,null,"~",null,"~",null,"~",null,"~",null,0,null,0]
[null,null,"Pembrokeshire","W06000009",40,0,null,0,null,0,null,"~",null,20,null,20,null,"~",null,10,null,"~",null,0,null,0,null,0,null,0]
[]
[]
[null,"Source: DMICP Data Warehouse"]
[null,"1. In line with Joint Service Publication 200, numbers 5 or fewer have been supressed and presented as '~'."]
[null,"2. Due to rounding, please note that totals may not equal the sum of their parts."]
[null,"3. The presence of  +/- indicates percentage changes in figures over the last six months.  + indicates there has been a 5% to 10% increase and - indicates there has been between a 5% to 10% decrease.  ++ indicates a greater than 10% increase and -- indicates a greater than 10% decrease."]
[null,"4. Age bands are based on age as at time of data extraction."]

{"sheet":"Table D1.1","index":33,"n_rows":22,"n_cols":14,"rows_kept":22,"cut":false,"hidden":false,"merged":[[6,2,6,3],[7,9,7,11],[8,1,8,3],[19,1,19,22],[21,1,21,18],[20,1,20,17]]}
[null,"Annex D1 - Scotland, by Health and Social Care Partnerships & Council Areas"]
[]
[null,"Table D1.1: UK Armed Forces personnel and entitled civilian personnel DMS registrations, registered to Health and Social Care Partnerships & Council Areas by Service, Numbers"]
[null,"1 April 2018"]
[null," Defence Statistics Health"]
[]
[null,null,"Return to contents"]
[null,null,null,null,null,null,null,null,null,"UK Armed Forces split by "]
[null,"Area Name",null,null,"HSCP Area Code","CA Area Code","All Persons","All UK Armed Forces","+/-","Naval Service","Army","RAF","Civilian","+/-"]
[null,null,"SCOTLAND",null,"S92000003","S92000003",10830,10350,"",4760,3860,1730,480,"-"]
[null,null,null,"Angus","S37000003","S12000041",540,540,"- -",480,60,"~",0,""]
[null,null,null,"Argyll & Bute","S37000004","S12000035",4130,4130,"",3920,190,10,"~",""]
[null,null,null,"Edinburgh City of","S37000012","S12000036",1700,1690,"",20,1660,20,"~",""]
[null,null,null,"Fife","S37000014","S12000015",1610,1130,"",340,740,50,480,"-"]
[null,null,null,"Highland","S37000016","S12000017",510,510,"-","~",510,0,0,""]
[null,null,null,"Moray","S37000019","S12000020",2350,2350,"","~",700,1640,"~",""]
[null,null,null,null,null,null,null,null,null,null,null,null,null,""]
[]
[null,"Source: DMICP Data Warehouse"]
[null,"1. In line with Joint Service Publication 200, numbers 5 or fewer have been supressed and presented as '~'."]
[null,"2. Due to rounding, please note that totals may not equal the sum of their parts."]
[null,"3. The presence of  +/- indicates percentage changes in figures over the last six months.  + indicates there has been a 5% to 10% increase and - indicates there has been between a 5% to 10% decrease.  ++ indicates a greater than 10% increase and -- indicates a greater than 10% decrease."]

{"sheet":"Table D1.2","index":34,"n_rows":22,"n_cols":32,"rows_kept":22,"cut":false,"hidden":false,"merged":[[7,1,7,2],[18,1,18,22],[20,1,20,30],[19,1,19,30],[6,2,6,3]]}
[null,"Annex D1 - Scotland, by Health and Social Care Partnerships & Council Areas"]
[]
[null,"Table D1.2: UK Armed Forces personnel and entitled civilian personnel DMS registrations, registered to Health and Social Care Partnerships & Council Areas by age band, Numbers"]
[null,"1 April 2018"]
[null,"Defence Statistics Health"]
[]
[null,null,"Return to contents"]
[null,"Area Name",null,"HSCP Area Code","CA Area Code","All Persons","0-4","+/-","5-9","+/-","10-14","+/-","15-19","+/-","20-24","+/-","25-29","+/-","30-34","+/-","35-39","+/-","40-44","+/-","45-49","+/-","50-54","+/-","55-59","+/-","60+","+/-"]
[null,"SCOTLAND",null,"S92000003","S92000003",10830,100,"",120,"",50,"",380,"+",2090,"",2640,"",2010,"",1570,"",890,"",600,"",300,"",80,"++","~",""]
[null,null,"Angus","S37000003","S12000041",540,0,null,0,null,0,null,10,null,150,null,190,null,90,null,50,null,20,null,20,null,"~",null,"~",null,0]
[null,null,"Argyll & Bute","S37000004","S12000035",4130,0,null,0,null,0,null,120,null,760,null,1000,null,800,null,600,null,330,null,300,null,170,null,50,null,"~"]
[null,null,"Edinburgh City of","S37000012","S12000036",1700,0,null,0,null,0,null,100,null,410,null,410,null,300,null,220,null,140,null,80,null,30,null,10,null,"~"]
[null,null,"Fife","S37000014","S12000015",1610,100,null,120,null,50,null,60,null,220,null,300,null,240,null,260,null,150,null,80,null,20,null,10,null,0]
[null,null,"Highland","S37000016","S12000017",510,0,null,0,null,0,null,40,null,120,null,140,null,110,null,60,null,30,null,10,null,"~",null,"~",null,0]
[null,null,"Moray","S37000019","S12000020",2350,0,null,0,null,0,null,60,null,430,null,600,null,470,null,380,null,230,null,110,null,60,null,10,null,0]
[]
[]
[null,"Source:DMICP Data Warehouse"]
[null,"1. In line with Joint Service Publication 200, numbers 5 or fewer have been supressed and presented as '~'."]
[null,"2. Due to rounding, please note that totals may not equal the sum of their parts."]
[null,"3. The presence of  +/- indicates percentage changes in figures over the last six months.  + indicates there has been a 5% to 10% increase and - indicates there has been between a 5% to 10% decrease.  ++ indicates a greater than 10% increase and -- indicates a greater than 10% decrease."]
[null,"4. Age bands are based on age as at time of data extraction."]

{"sheet":"Table D1.3","index":35,"n_rows":22,"n_cols":26,"rows_kept":22,"cut":false,"hidden":false,"merged":[[7,1,7,2],[18,1,18,22],[20,1,20,26],[19,1,19,26],[6,2,6,3]]}
[null,"Annex D1 - Scotland, by Health and Social Care Partnerships & Council Areas"]
[]
[null,"Table D1.3: UK Armed Forces personnel DMS registrations, registered to Health and Social Care Partnerships & Council Areas by age band, Numbers"]
[null,"1 April 2018"]
[null,"Defence Statistics Health"]
[]
[null,null,"Return to contents"]
[null,"Area Name",null,"HSCP Area Code","CA Area Code","UK Armed Forces","16-19","+/-","20-24","+/-","25-29","+/-","30-34","+/-","35-39","+/-","40-44","+/-","45-49","+/-","50-54","+/-","55-59","+/-","60+","+/-"]
[null,"SCOTLAND",null,"S92000003","S92000003",10350,350,"++",2070,"",2600,"",1980,"",1530,"",870,"",580,"",290,"",80,"++","~",""]
[null,null,"Angus","S37000003","S12000041",540,10,null,150,null,190,null,90,null,50,null,20,null,20,null,"~",null,"~",null,0]
[null,null,"Argyll & Bute","S37000004","S12000035",4130,120,null,760,null,1000,null,800,null,600,null,330,null,300,null,170,null,40,null,"~"]
[null,null,"Edinburgh City of","S37000012","S12000036",1690,100,null,410,null,410,null,300,null,220,null,140,null,80,null,30,null,10,null,"~"]
[null,null,"Fife","S37000014","S12000015",1130,30,null,200,null,260,null,200,null,220,null,130,null,70,null,20,null,10,null,0]
[null,null,"Highland","S37000016","S12000017",510,40,null,120,null,140,null,110,null,60,null,30,null,10,null,"~",null,"~",null,0]
[null,null,"Moray","S37000019","S12000020",2350,60,null,430,null,600,null,470,null,380,null,230,null,110,null,60,null,10,null,0]
[]
[]
[null,"Source:DMICP Data Warehouse"]
[null,"1. In line with Joint Service Publication 200, numbers 5 or fewer have been supressed and presented as '~'."]
[null,"2. Due to rounding, please note that totals may not equal the sum of their parts."]
[null,"3. The presence of  +/- indicates percentage changes in figures over the last six months.  + indicates there has been a 5% to 10% increase and - indicates there has been between a 5% to 10% decrease.  ++ indicates a greater than 10% increase and -- indicates a greater than 10% decrease."]
[null,"4. Age bands are based on age as at time of data extraction."]

{"sheet":"Table D1.4","index":36,"n_rows":22,"n_cols":32,"rows_kept":22,"cut":false,"hidden":false,"merged":[[18,1,18,22],[20,1,20,30],[19,1,19,30],[6,2,6,3]]}
[null,"Annex D1 - Scotland, by Health and Social Care Partnerships & Council Areas"]
[]
[null,"Table D1.4: Entitled civilian personnel DMS registrations, registered to Health and Social Care Partnerships & Council Areas by age band, Numbers"]
[null,"1 April 2018"]
[null,"Defence Statistics Health"]
[]
[null,null,"Return to contents"]
[null,"Area Name",null,"HSCP Area Code","CA Area Code","All Civilians","0-4","+/-","5-9","+/-","10-14","+/-","15-19","+/-","20-24","+/-","25-29","+/-","30-34","+/-","35-39","+/-","40-44","+/-","45-49","+/-","50-54","+/-","55-59","+/-","60+","+/-"]
[null,"SCOTLAND",null,"S92000003","S92000003",480,100,"",120,"",50,"",30,"",20,"- -",40,"- -",40,"",40,"- -",30,"- -",10,"",10,"","~","",0,""]
[null,null,"Angus","S37000003","S12000041",0,0,null,0,null,0,null,0,null,0,null,0,null,0,null,0,null,0,null,0,null,0,null,0,null,0]
[null,null,"Argyll & Bute","S37000004","S12000035","~",0,null,0,null,0,null,0,null,0,null,0,null,0,null,0,null,0,null,0,null,0,null,"~",null,0]
[null,null,"Edinburgh City of","S37000012","S12000036","~",0,null,0,null,0,null,0,null,0,null,0,null,0,null,0,null,0,null,"~",null,0,null,0,null,0]
[null,null,"Fife","S37000014","S12000015",480,100,null,120,null,50,null,30,null,20,null,40,null,40,null,40,null,30,null,10,null,"~",null,0,null,0]
[null,null,"Highland","S37000016","S12000017",0,0,null,0,null,0,null,0,null,0,null,0,null,0,null,0,null,0,null,0,null,0,null,0,null,0]
[null,null,"Moray","S37000019","S12000020","~",0,null,0,null,0,null,0,null,0,null,0,null,0,null,0,null,0,null,0,null,"~",null,0,null,0]
[]
[]
[null,"Source:DMICP Data Warehouse"]
[null,"1. In line with Joint Service Publication 200, numbers 5 or fewer have been supressed and presented as '~'."]
[null,"2. Due to rounding, please note that totals may not equal the sum of their parts."]
[null,"3. The presence of  +/- indicates percentage changes in figures over the last six months.  + indicates there has been a 5% to 10% increase and - indicates there has been between a 5% to 10% decrease.  ++ indicates a greater than 10% increase and -- indicates a greater than 10% decrease."]
[null,"4. Age bands are based on age as at time of data extraction."]

{"sheet":"Table D1.5","index":37,"n_rows":23,"n_cols":23,"rows_kept":23,"cut":false,"hidden":false,"merged":[[6,2,6,3],[7,11,7,16],[7,17,7,22],[19,1,19,22],[21,1,21,25],[20,1,20,25]]}
[null,"Annex D1 - Scotland, by Health and Social Care Partnerships & Council Areas"]
[]
[null,"Table D1.5: UK Armed Forces personnel and entitled civilian personnel DMS registrations, registered to Health and Social Care Partnerships & Council Areas by gender, Numbers"]
[null,"1 April 2018"]
[null,"Defence Statistics Health"]
[]
[null,null,"Return to contents"]
[null,null,null,null,null,null,null,"All Persons",null,null,null,"UK Armed Forces",null,null,null,null,null,"Civilian"]
[null,"Area Name",null,"HSCP Area Code","CA Area Code","All","+/-","Male","+/-","Female","+/-","All","+/-","Male","+/-","Female","+/-","All","+/-","Male","+/-","Female","+/-"]
[null,"SCOTLAND",null,"S92000003","S92000003",10830,"",9960,"",870,"",10350,"",9780,"",570,"",480,"- -",180,"- -",300,""]
[null,null,"Angus","S37000003","S12000041",540,null,540,null,10,null,540,null,540,null,10,null,0,null,0,null,0]
[null,null,"Argyll & Bute","S37000004","S12000035",4130,null,3950,null,180,null,4130,null,3950,null,180,null,"~",null,"~",null,0]
[null,null,"Edinburgh City of","S37000012","S12000036",1700,null,1600,null,90,null,1690,null,1600,null,90,null,"~",null,"~",null,0]
[null,null,"Fife","S37000014","S12000015",1610,null,1210,null,400,null,1130,null,1030,null,100,null,480,null,170,null,300]
[null,null,"Highland","S37000016","S12000017",510,null,500,null,10,null,510,null,500,null,10,null,0,null,0,null,0]
[null,null,"Moray","S37000019","S12000020",2350,null,2160,null,190,null,2350,null,2160,null,190,null,"~",null,"~",null,0]
[]
[]
[null,"Source:DMICP Data Warehouse"]
[null,"1. In line with Joint Service Publication 200, numbers 5 or fewer have been supressed and presented as '~'."]
[null,"2. Due to rounding, please note that totals may not equal the sum of their parts."]
[null,"3. The presence of  +/- indicates percentage changes in figures over the last six months.  + indicates there has been a 5% to 10% increase and - indicates there has been between a 5% to 10% decrease.  ++ indicates a greater than 10% increase and -- indicates a greater than 10% decrease."]
[null,"4. Age bands are based on age as at time of data extraction."]

{"sheet":"Table D1.6","index":38,"n_rows":22,"n_cols":32,"rows_kept":22,"cut":false,"hidden":false,"merged":[[18,1,18,22],[20,1,20,31],[19,1,19,31],[6,2,6,3]]}
[null,"Annex D1 - Scotland, by Health and Social Care Partnerships & Council Areas"]
[]
[null,"Table D1.6: UK Armed Forces males and entitled civilian males DMS registrations, registered to Health and Social Care Partnerships & Council Areas by age band, Numbers"]
[null,"1 April 2018"]
[null,"Defence Statistics Health"]
[]
[null,null,"Return to contents"]
[null,"Area Name",null,"HSCP Area Code","CA Area Code","All Males","0-4","+/-","5-9","+/-","10-14","+/-","15-19","+/-","20-24","+/-","25-29","+/-","30-34","+/-","35-39","+/-","40-44","+/-","45-49","+/-","50-54","+/-","55-59","+/-","60+","+/-"]
[null,"SCOTLAND",null,"S92000003","S92000003",9960,60,"++",70,"",30,"",350,"++",1980,"",2470,"",1850,"",1420,"",820,"",550,"",280,"",80,"++","~",""]
[null,null,"Angus","S37000003","S12000041",540,0,null,0,null,0,null,10,null,150,null,180,null,90,null,50,null,20,null,20,null,"~",null,"~",null,0]
[null,null,"Argyll & Bute","S37000004","S12000035",3950,0,null,0,null,0,null,110,null,720,null,960,null,770,null,570,null,320,null,280,null,160,null,40,null,"~"]
[null,null,"Edinburgh City of","S37000012","S12000036",1600,0,null,0,null,0,null,100,null,400,null,400,null,270,null,200,null,120,null,70,null,30,null,10,null,"~"]
[null,null,"Fife","S37000014","S12000015",1210,60,null,70,null,30,null,40,null,180,null,240,null,190,null,190,null,120,null,60,null,20,null,10,null,0]
[null,null,"Highland","S37000016","S12000017",500,0,null,0,null,0,null,40,null,120,null,140,null,100,null,60,null,30,null,10,null,"~",null,"~",null,0]
[null,null,"Moray","S37000019","S12000020",2160,0,null,0,null,0,null,50,null,400,null,550,null,420,null,350,null,210,null,100,null,60,null,10,null,0]
[]
[]
[null,"Source:DMICP Data Warehouse"]
[null,"1. In line with Joint Service Publication 200, numbers 5 or fewer have been supressed and presented as '~'."]
[null,"2. Due to rounding, please note that totals may not equal the sum of their parts."]
[null,"3. The presence of  +/- indicates percentage changes in figures over the last six months.  + indicates there has been a 5% to 10% increase and - indicates there has been between a 5% to 10% decrease.  ++ indicates a greater than 10% increase and -- indicates a greater than 10% decrease."]
[null,"4. Age bands are based on age as at time of data extraction."]

{"sheet":"Table D1.7","index":39,"n_rows":22,"n_cols":32,"rows_kept":22,"cut":false,"hidden":false,"merged":[[18,1,18,22],[20,1,20,30],[19,1,19,30],[6,2,6,3]]}
[null,"Annex D1 - Scotland, by Health and Social Care Partnerships & Council Areas"]
[]
[null,"Table D1.7: UK Armed Forces females and entitled civilian females DMS registrations, registered to Health and Social Care Partnerships & Council Areas by age band, Numbers"]
[null,"1 April 2018"]
[null,"Defence Statistics Health"]
[]
[null,null,"Return to contents"]
[null,"Area Name",null,"HSCP Area Code","CA Area Code","All Females","0-4","+/-","5-9","+/-","10-14","+/-","15-19","+/-","20-24","+/-","25-29","+/-","30-34","+/-","35-39","+/-","40-44","+/-","45-49","+/-","50-54","+/-","55-59","+/-","60+","+/-"]
[null,"SCOTLAND",null,"S92000003","S92000003",870,40,"- -",50,"+",20,"-",20,"- -",110,"+",180,"-",160,"",150,"",70,"",50,"",20,"","~","",0,""]
[null,null,"Angus","S37000003","S12000041",10,0,null,0,null,0,null,"~",null,"~",null,"~",null,"~",null,"~",null,0,null,0,null,0,null,0,null,0]
[null,null,"Argyll & Bute","S37000004","S12000035",180,0,null,0,null,0,null,10,null,40,null,40,null,30,null,30,null,10,null,20,null,10,null,"~",null,0]
[null,null,"Edinburgh City of","S37000012","S12000036",90,0,null,0,null,0,null,0,null,10,null,10,null,30,null,20,null,10,null,"~",null,"~",null,0,null,0]
[null,null,"Fife","S37000014","S12000015",400,40,null,50,null,20,null,10,null,40,null,70,null,50,null,60,null,30,null,20,null,"~",null,0,null,0]
[null,null,"Highland","S37000016","S12000017",10,0,null,0,null,0,null,0,null,"~",null,"~",null,"~",null,"~",null,0,null,0,null,0,null,0,null,0]
[null,null,"Moray","S37000019","S12000020",190,0,null,0,null,0,null,"~",null,30,null,50,null,50,null,30,null,20,null,10,null,"~",null,0,null,0]
[]
[]
[null,"Source:DMICP Data Warehouse"]
[null,"1. In line with Joint Service Publication 200, numbers 5 or fewer have been supressed and presented as '~'."]
[null,"2. Due to rounding, please note that totals may not equal the sum of their parts."]
[null,"3. The presence of  +/- indicates percentage changes in figures over the last six months.  + indicates there has been a 5% to 10% increase and - indicates there has been between a 5% to 10% decrease.  ++ indicates a greater than 10% increase and -- indicates a greater than 10% decrease."]
[null,"4. Age bands are based on age as at time of data extraction."]

{"sheet":"Table E1.1","index":40,"n_rows":19,"n_cols":13,"rows_kept":19,"cut":false,"hidden":false,"merged":[[6,2,6,3],[8,8,8,10],[9,1,9,2],[15,1,15,21],[17,1,17,20],[16,1,16,20]]}
[null,"Annex E1 - Northern Ireland, by Local Commissioning Groups"]
[]
[null,"Table E1.1: UK Armed Forces personnel and entitled civilian personnel DMS registrations, registered to Local Commissioning Groups by Service, Numbers"]
[null,"1 April 2018"]
[null,"Defence Statistics Health"]
[]
[null,null,"Return to contents"]
[]
[null,null,null,"NEW","OLD",null,null,null,"UK Armed Forces split by "]
[null,"Area Name",null,"Area Code","Area Code","All Persons","All UK Armed Forces","+/-","Naval Service","Army","RAF","Civilian","+/-"]
[null,"NORTHERN IRELAND",null,"N92000002 ",null,2480,2090,"",20,2000,70,390,"-"]
[null,null,"South Eastern","ZC040","ZC4",2480,2090,"",20,2000,70,390,"-"]
[]
[]
[null,"Source: DMICP Data Warehouse"]
[null,"1. In line with Joint Service Publication 200, numbers 5 or fewer have been supressed and presented as '~'."]
[null,"2. Due to rounding, please note that totals may not equal the sum of their parts."]
[null,"3. The presence of  +/- indicates percentage changes in figures over the last six months.  + indicates there has been a 5% to 10% increase and - indicates there has been between a 5% to 10% decrease.  ++ indicates a greater than 10% increase and -- indicates a greater than 10% decrease."]
[null,"4. There are no nine character codes for the local commissioning groups in Northern Ireland."]

{"sheet":"Table E1.2","index":41,"n_rows":19,"n_cols":32,"rows_kept":19,"cut":false,"hidden":false,"merged":[[9,1,9,2],[14,1,14,21],[16,1,16,29],[15,1,15,25],[6,2,6,3]]}
[null,"Annex E1 - Northern Ireland, by Local Commissioning Groups"]
[]
[null,"Table E1.2: UK Armed Forces personnel and entitled civilian personnel DMS registrations, registered to Local Commissioning Groups by age band, Numbers"]
[null,"1 April 2018"]
[null,"Defence Statistics Health"]
[]
[null,null,"Return to contents"]
[]
[null,null,null,"NEW","OLD"]
[null,"Area Name",null,"Area Code","Area Code","All Persons","0-4","+/-","5-9","+/-","10-14","+/-","15-19","+/-","20-24","+/-","25-29","+/-","30-34","+/-","35-39","+/-","40-44","+/-","45-49","+/-","50-54","+/-","55-59","+/-","60+","+/-"]
[null,"NORTHERN IRELAND",null,"N92000002 ",null,2480,100,"",80,"- -",50,"",60,"- -",460,"",570,"",480,"",340,"",210,"",80,"-",40,"+",10,"","~",""]
[null,null,"South Eastern","ZC040","ZC4",2480,100,null,80,null,50,null,60,null,460,null,570,null,480,null,340,null,210,null,80,null,40,null,10,null,"~"]
[]
[null,"Source:DMICP Data Warehouse"]
[null,"1. In line with Joint Service Publication 200, numbers 5 or fewer have been supressed and presented as '~'."]
[null,"2. Due to rounding, please note that totals may not equal the sum of their parts."]
[null,"3. The presence of  +/- indicates percentage changes in figures over the last six months.  + indicates there has been a 5% to 10% increase and - indicates there has been between a 5% to 10% decrease.  ++ indicates a greater than 10% increase and -- indicates a greater than 10% decrease."]
[null,"4. Age bands are based on age as at time of data extraction."]
[null,"5. There are no nine character codes for the local commissioning groups in Northern Ireland."]

{"sheet":"Table E1.3","index":42,"n_rows":19,"n_cols":26,"rows_kept":19,"cut":false,"hidden":false,"merged":[[8,1,8,2],[14,1,14,21],[16,1,16,24],[15,1,15,24],[6,2,6,3]]}
[null,"Annex E1 - Northern Ireland, by Local Commissioning Groups"]
[]
[null,"Table E1.3: UK Armed Forces personnel DMS registrations, registered to Local Commissioning Groups by age band, Numbers"]
[null,"1 April 2018"]
[null,"Defence Statistics Health"]
[]
[null,null,"Return to contents"]
[null,null,null,"NEW","OLD"]
[null,"Area Name",null,"Area Code","Area Code","All UK Armed Forces","16-19","+/-","20-24","+/-","25-29","+/-","30-34","+/-","35-39","+/-","40-44","+/-","45-49","+/-","50-54","+/-","55-59","+/-","60+","+/-"]
[null,"NORTHERN IRELAND",null,"N92000002 ",null,2090,50,"- -",450,"",530,"",440,"",310,"",190,"+",70,"-",30,"",10,"","~",""]
[null,null,"South Eastern","ZC040","ZC4",2090,50,null,450,null,530,null,440,null,310,null,190,null,70,null,30,null,10,null,"~"]
[]
[]
[null,"Source:DMICP Data Warehouse"]
[null,"1. In line with Joint Service Publication 200, numbers 5 or fewer have been supressed and presented as '~'."]
[null,"2. Due to rounding, please note that totals may not equal the sum of their parts."]
[null,"3. The presence of  +/- indicates percentage changes in figures over the last six months.  + indicates there has been a 5% to 10% increase and - indicates there has been between a 5% to 10% decrease.  ++ indicates a greater than 10% increase and -- indicates a greater than 10% decrease."]
[null,"4. Age bands are based on age as at time of data extraction."]
[null,"5. There are no nine character codes for the local commissioning groups in Northern Ireland."]

{"sheet":"Table E1.4","index":43,"n_rows":18,"n_cols":32,"rows_kept":18,"cut":false,"hidden":false,"merged":[[8,1,8,2],[14,1,14,26],[15,1,15,26],[13,1,13,21],[6,2,6,3]]}
[null,"Annex E1 - Northern Ireland, by Local Commissioning Groups"]
[]
[null,"Table E1.4: Entitled civilian personnel DMS registrations, registered to Local Commissioning Groups by age band, Numbers"]
[null,"1 April 2018"]
[null,"Defence Statistics Health"]
[]
[null,null,"Return to contents"]
[null,null,null,"NEW","OLD"]
[null,"Area Name",null,"Area Code","Area Code","All Civilians","0-4","+/-","5-9","+/-","10-14","+/-","15-19","+/-","20-24","+/-","25-29","+/-","30-34","+/-","35-39","+/-","40-44","+/-","45-49","+/-","50-54","+/-","55-59","+/-","60+","+/-"]
[null,"NORTHERN IRELAND",null,"N92000002 ",null,390,100,"",80,"- -",50,"",20,"",10,"",40,"- -",40,"-",30,"++",20,"- -",10,"","~","",0,"","~",""]
[null,null,"South Eastern","ZC040","ZC4",390,100,null,80,null,50,null,20,null,10,null,40,null,40,null,30,null,20,null,10,null,"~",null,0,null,"~"]
[]
[null,"Source:DMICP Data Warehouse"]
[null,"1. In line with Joint Service Publication 200, numbers 5 or fewer have been supressed and presented as '~'."]
[null,"2. Due to rounding, please note that totals may not equal the sum of their parts."]
[null,"3. The presence of  +/- indicates percentage changes in figures over the last six months.  + indicates there has been a 5% to 10% increase and - indicates there has been between a 5% to 10% decrease.  ++ indicates a greater than 10% increase and -- indicates a greater than 10% decrease."]
[null,"4. Age bands are based on age as at time of data extraction."]
[null,"5. There are no nine character codes for the local commissioning groups in Northern Ireland."]

{"sheet":"Table E1.5","index":44,"n_rows":18,"n_cols":23,"rows_kept":18,"cut":false,"hidden":false,"merged":[[6,2,6,3],[15,1,15,25],[14,1,14,25],[7,17,7,22],[7,11,7,16],[7,5,7,10],[8,1,8,2],[13,1,13,21]]}
[null,"Annex E1 - Northern Ireland, by Local Commissioning Groups"]
[]
[null,"Table E1.5: UK Armed Forces personnel and entitled civilian personnel DMS registrations, registered to Local Commissioning Groups by gender, Numbers"]
[null,"1 April 2018"]
[null,"Defence Statistics Health"]
[]
[null,null,"Return to contents"]
[null,null,null,"NEW","OLD","All Persons",null,null,null,null,null,"UK Armed Forces",null,null,null,null,null,"Civilian"]
[null,"Area Name",null,"Area Code","Area Code","All","+/-","Male","+/-","Female","+/-","All","+/-","Male","+/-","Female","+/-","All","+/-","Male","+/-","Female","+/-"]
[null,"NORTHERN IRELAND",null,"N92000002 ",null,2480,"",2060,"",430,"",2090,"",1940,"",150,"",390,"-",120,"-",270,""]
[null,null,"South Eastern","ZC040","ZC4",2480,null,2060,null,430,null,2090,null,1940,null,150,null,390,null,120,null,270]
[]
[null,"Source:DMICP Data Warehouse"]
[null,"1. In line with Joint Service Publication 200, numbers 5 or fewer have been supressed and presented as '~'."]
[null,"2. Due to rounding, please note that totals may not equal the sum of their parts."]
[null,"3. The presence of  +/- indicates percentage changes in figures over the last six months.  + indicates there has been a 5% to 10% increase and - indicates there has been between a 5% to 10% decrease.  ++ indicates a greater than 10% increase and -- indicates a greater than 10% decrease."]
[null,"4. Age bands are based on age as at time of data extraction."]
[null,"5. There are no nine character codes for the local commissioning groups in Northern Ireland."]

{"sheet":"Table E1.6","index":45,"n_rows":18,"n_cols":32,"rows_kept":18,"cut":false,"hidden":false,"merged":[[8,1,8,2],[13,1,13,21],[15,1,15,28],[14,1,14,13],[6,2,6,3]]}
[null,"Annex E1 - Northern Ireland, by Local Commissioning Groups"]
[]
[null,"Table E1.6: UK Armed Forces males and entitled civilian males DMS registrations, registered to Local Commissioning Groups by age band, Numbers"]
[null,"1 April 2018"]
[null,"Defence Statistics Health"]
[]
[null,null,"Return to contents"]
[null,null,null,"NEW","OLD"]
[null,"Area Name",null,"Area Code","Area Code","All Males","0-4","+/-","5-9","+/-","10-14","+/-","15-19","+/-","20-24","+/-","25-29","+/-","30-34","+/-","35-39","+/-","40-44","+/-","45-49","+/-","50-54","+/-","55-59","+/-","60+","+/-"]
[null,"NORTHERN IRELAND",null,"N92000002 ",null,2060,50,"",40,"- -",20,"",50,"- -",430,"",490,"",410,"",290,"",170,"+",70,"- -",30,"",10,"","~",""]
[null,null,"South Eastern","ZC040","ZC4",2060,50,null,40,null,20,null,50,null,430,null,490,null,410,null,290,null,170,null,70,null,30,null,10,null,"~"]
[]
[null,"Source:DMICP Data Warehouse"]
[null,"1. In line with Joint Service Publication 200, numbers 5 or fewer have been supressed and presented as '~'."]
[null,"2. Due to rounding, please note that totals may not equal the sum of their parts."]
[null,"3. The presence of  +/- indicates percentage changes in figures over the last six months.  + indicates there has been a 5% to 10% increase and - indicates there has been between a 5% to 10% decrease.  ++ indicates a greater than 10% increase and -- indicates a greater than 10% decrease."]
[null,"4. Age bands are based on age as at time of data extraction."]
[null,"5. There are no nine character codes for the local commissioning groups in Northern Ireland."]

{"sheet":"Table E1.7","index":46,"n_rows":18,"n_cols":32,"rows_kept":18,"cut":false,"hidden":false,"merged":[[8,1,8,2],[13,1,13,21],[15,1,15,28],[14,1,14,26],[6,2,6,3]]}
[null,"Annex E1 - Northern Ireland, by Local Commissioning Groups"]
[]
[null,"Table E1.7: UK Armed Forces females and entitled civilian females DMS registrations, registered to Local Commissioning Groups by age band, Numbers"]
[null,"1 April 2018"]
[null,"Defence Statistics Health"]
[]
[null,null,"Return to contents"]
[null,null,null,"NEW","OLD"]
[null,"Area Name",null,"Area Code","Area Code","All Females","0-4","+/-","5-9","+/-","10-14","+/-","15-19","+/-","20-24","+/-","25-29","+/-","30-34","+/-","35-39","+/-","40-44","+/-","45-49","+/-","50-54","+/-","55-59","+/-","60+","+/-"]
[null,"NORTHERN IRELAND",null,"N92000002 ",null,430,60,"",40,"",30,"",10,"",30,"- -",80,"-",80,"- -",50,"+",40,"- -",10,"","~","",0,"","~",""]
[null,null,"South Eastern","ZC040","ZC4",430,60,null,40,null,30,null,10,null,30,null,80,null,80,null,50,null,40,null,10,null,"~",null,0,null,"~"]
[]
[null,"Source:DMICP Data Warehouse"]
[null,"1. In line with Joint Service Publication 200, numbers 5 or fewer have been supressed and presented as '~'."]
[null,"2. Due to rounding, please note that totals may not equal the sum of their parts."]
[null,"3. The presence of  +/- indicates percentage changes in figures over the last six months.  + indicates there has been a 5% to 10% increase and - indicates there has been between a 5% to 10% decrease.  ++ indicates a greater than 10% increase and -- indicates a greater than 10% decrease."]
[null,"4. Age bands are based on age as at time of data extraction."]
[null,"5. There are no nine character codes for the local commissioning groups in Northern Ireland."]

{"sheet":"Table E2.1","index":47,"n_rows":17,"n_cols":12,"rows_kept":17,"cut":false,"hidden":false,"merged":[[7,7,7,9],[14,1,14,21],[16,1,16,20],[15,1,15,20],[6,2,6,3]]}
[null,"Annex E2 - Northern Ireland, by District Council Areas"]
[]
[null,"Table E2.1: UK Armed Forces personnel and entitled civilian personnel DMS registrations, registered to District Council Areas by Service, Numbers"]
[null,"1 April 2018"]
[null,"Defence Statistics Health"]
[]
[null,null,"Return to contents"]
[null,null,null,null,null,null,null,"UK Armed Forces split by "]
[null,null,"Area Name","Area Code","All Persons","All UK Armed Forces","+/-","Naval Service","Army","RAF","Civilian","+/-"]
[null,"NORTHERN IRELAND",null,"N92000002 ",2480,2090,"",20,2000,70,390,"-"]
[null,null,"Lisburn and Castlereagh","N09000007",2110,1720,"",20,1630,60,390,"++"]
[null,null,"Ards and North Down","N09000011",380,380,"-","~",370,"~",0,""]
[]
[null,"Source: DMICP Data Warehouse"]
[null,"1. In line with Joint Service Publication 200, numbers 5 or fewer have been supressed and presented as '~'."]
[null,"2. Due to rounding, please note that totals may not equal the sum of their parts."]
[null,"3. The presence of  +/- indicates percentage changes in figures over the last six months.  + indicates there has been a 5% to 10% increase and - indicates there has been between a 5% to 10% decrease.  ++ indicates a greater than 10% increase and -- indicates a greater than 10% decrease."]

{"sheet":"Table E2.2","index":48,"n_rows":18,"n_cols":31,"rows_kept":18,"cut":false,"hidden":false,"merged":[[8,1,8,2],[15,1,15,24],[16,1,16,24],[14,1,14,21],[6,2,6,3]]}
[null,"Annex E2 - Northern Ireland, by District Council Areas"]
[]
[null,"Table E2.2: UK Armed Forces personnel and entitled civilian personnel DMS registrations, registered to District Council Areas by age band, Numbers"]
[null,"1 April 2018"]
[null,"Defence Statistics Health"]
[]
[null,null,"Return to contents"]
[]
[null,"Area Name",null,"Area Code","All Persons","0-4","+/-","5-9","+/-","10-14","+/-","15-19","+/-","20-24","+/-","25-29","+/-","30-34","+/-","35-39","+/-","40-44","+/-","45-49","+/-","50-54","+/-","55-59","+/-","60+","+/-"]
[null,"NORTHERN IRELAND",null,"N92000002 ",2480,100,"",80,"- -",50,"",60,"- -",460,"",570,"",480,"",340,"",210,"",80,"-",40,"+",10,"","~",""]
[null,null,"Lisburn and Castlereagh","N09000007",2110,100,null,80,null,50,null,60,null,420,null,460,null,380,null,270,null,180,null,70,null,30,null,10,null,"~"]
[null,null,"Ards and North Down","N09000011",380,0,null,0,null,0,null,"~",null,40,null,110,null,100,null,70,null,30,null,10,null,10,null,"~",null,0]
[]
[null,"Source:DMICP Data Warehouse"]
[null,"1. In line with Joint Service Publication 200, numbers 5 or fewer have been supressed and presented as '~'."]
[null,"2. Due to rounding, please note that totals may not equal the sum of their parts."]
[null,"3. The presence of  +/- indicates percentage changes in figures over the last six months.  + indicates there has been a 5% to 10% increase and - indicates there has been between a 5% to 10% decrease.  ++ indicates a greater than 10% increase and -- indicates a greater than 10% decrease."]
[null,"4. Age bands are based on age as at time of data extraction."]

{"sheet":"Table E2.3","index":49,"n_rows":18,"n_cols":25,"rows_kept":18,"cut":false,"hidden":false,"merged":[[8,1,8,2],[15,1,15,24],[16,1,16,24],[14,1,14,21],[6,2,6,3]]}
[null,"Annex E2 - Northern Ireland, by District Council Areas"]
[]
[null,"Table E2.3: UK Armed Forces personnel DMS registrations, registered to District Council Areas by age band, Numbers"]
[null,"1 April 2018"]
[null,"Defence Statistics Health"]
[]
[null,null,"Return to contents"]
[]
[null,"Area Name",null,"Area Code","UK Armed Forces","16-19","+/-","20-24","+/-","25-29","+/-","30-34","+/-","35-39","+/-","40-44","+/-","45-49","+/-","50-54","+/-","55-59","+/-","60+","+/-"]
[null,"NORTHERN IRELAND",null,"N92000002 ",2090,50,"- -",450,"",530,"",440,"",310,"",190,"+",70,"-",30,"",10,"","~",""]
[null,null,"Lisburn and Castlereagh","N09000007",1720,50,null,410,null,420,null,340,null,240,null,160,null,60,null,20,null,10,null,"~"]
[null,null,"Ards and North Down","N09000011",380,"~",null,40,null,110,null,100,null,70,null,30,null,10,null,10,null,"~",null,0]
[]
[null,"Source:DMICP Data Warehouse"]
[null,"1. In line with Joint Service Publication 200, numbers 5 or fewer have been supressed and presented as '~'."]
[null,"2. Due to rounding, please note that totals may not equal the sum of their parts."]
[null,"3. The presence of  +/- indicates percentage changes in figures over the last six months.  + indicates there has been a 5% to 10% increase and - indicates there has been between a 5% to 10% decrease.  ++ indicates a greater than 10% increase and -- indicates a greater than 10% decrease."]
[null,"4. Age bands are based on age as at time of data extraction."]

{"sheet":"Table E2.4","index":50,"n_rows":17,"n_cols":31,"rows_kept":17,"cut":false,"hidden":false,"merged":[[7,1,7,2],[13,1,13,21],[15,1,15,29],[14,1,14,29],[6,2,6,3]]}
[null,"Annex E2 - Northern Ireland, by District Council Areas"]
[]
[null,"Table E2.4: Entitled civilian personnel DMS registrations, registered to District Council Areas by age band, Numbers"]
[null,"1 April 2018"]
[null,"Defence Statistics Health"]
[]
[null,null,"Return to contents"]
[null,"Area Name",null,"Area Code","All Civilians","0-4","+/-","5-9","+/-","10-14","+/-","15-19","+/-","20-24","+/-","25-29","+/-","30-34","+/-","35-39","+/-","40-44","+/-","45-49","+/-","50-54","+/-","55-59","+/-","60+","+/-"]
[null,"NORTHERN IRELAND",null,"N92000002 ",390,100,"",80,"- -",50,"",20,"",10,"",40,"- -",40,"-",30,"++",20,"- -",10,"","~","",0,"","~",""]
[null,null,"Lisburn and Castlereagh","N09000007",390,100,null,80,null,50,null,20,null,10,null,40,null,40,null,30,null,20,null,10,null,"~",null,0,null,"~"]
[null,null,"Ards and North Down","N09000011",0,0,null,0,null,0,null,0,null,0,null,0,null,0,null,0,null,0,null,0,null,0,null,0,null,0]
[]
[null,"Source:DMICP Data Warehouse"]
[null,"1. In line with Joint Service Publication 200, numbers 5 or fewer have been supressed and presented as '~'."]
[null,"2. Due to rounding, please note that totals may not equal the sum of their parts."]
[null,"3. The presence of  +/- indicates percentage changes in figures over the last six months.  + indicates there has been a 5% to 10% increase and - indicates there has been between a 5% to 10% decrease.  ++ indicates a greater than 10% increase and -- indicates a greater than 10% decrease."]
[null,"4. Age bands are based on age as at time of data extraction."]

{"sheet":"Table E2.5","index":51,"n_rows":18,"n_cols":22,"rows_kept":18,"cut":false,"hidden":false,"merged":[[16,1,16,25],[15,1,15,25],[6,2,6,3],[7,10,7,15],[7,16,7,21],[7,4,7,9],[14,1,14,21]]}
[null,"Annex E2 - Northern Ireland, by District Council Areas"]
[]
[null,"Table E2.5: UK Armed Forces personnel and entitled civilian personnel DMS registrations, registered to District Council Areas by gender, Numbers"]
[null,"1 April 2018"]
[null,"Defence Statistics Health"]
[]
[null,null,"Return to contents"]
[null,null,null,null,"All Persons",null,null,null,null,null,"UK Armed Forces",null,null,null,null,null,"Civilian"]
[null,"Area Name",null,"Area Code","All","+/-","Male","+/-","Female","+/-","All","+/-","Male","+/-","Female","+/-","All","+/-","Male","+/-","Female","+/-"]
[null,"NORTHERN IRELAND",null,"N92000002 ",2480,"",2060,"",430,"",2090,"",1940,"",150,"",390,"",120,"-",270,"-"]
[null,null,"Lisburn and Castlereagh","N09000007",2110,null,1700,null,410,null,1720,null,1580,null,140,null,390,null,120,null,270]
[null,null,"Ards and North Down","N09000011",380,null,360,null,20,null,380,null,360,null,20,null,0,null,0,null,0]
[]
[null,"Source:DMICP Data Warehouse"]
[null,"1. In line with Joint Service Publication 200, numbers 5 or fewer have been supressed and presented as '~'."]
[null,"2. Due to rounding, please note that totals may not equal the sum of their parts."]
[null,"3. The presence of  +/- indicates percentage changes in figures over the last six months.  + indicates there has been a 5% to 10% increase and - indicates there has been between a 5% to 10% decrease.  ++ indicates a greater than 10% increase and -- indicates a greater than 10% decrease."]
[null,"4. Age bands are based on age as at time of data extraction."]

{"sheet":"Table E2.6","index":52,"n_rows":17,"n_cols":31,"rows_kept":17,"cut":false,"hidden":false,"merged":[[13,1,13,21],[15,1,15,30],[14,1,14,29],[6,2,6,3]]}
[null,"Annex E2 - Northern Ireland, by District Council Areas"]
[]
[null,"Table E2.6: UK Armed Forces males and entitled civilian males DMS registrations, registered to District Council Areas by age band, Numbers"]
[null,"1 April 2018"]
[null,"Defence Statistics Health"]
[]
[null,null,"Return to contents"]
[null,"Area Name",null,"Area Code","All Males","0-4","+/-","5-9","+/-","10-14","+/-","15-19","+/-","20-24","+/-","25-29","+/-","30-34","+/-","35-39","+/-","40-44","+/-","45-49","+/-","50-54","+/-","55-59","+/-","60+","+/-"]
[null,"NORTHERN IRELAND",null,"N92000002 ",2060,50,"",40,"- -",20,"",50,"- -",430,"",490,"",410,"",290,"",170,"+",70,"- -",30,"",10,"","~",""]
[null,null,"Lisburn and Castlereagh","N09000007",1700,50,null,40,null,20,null,50,null,390,null,390,null,310,null,220,null,140,null,60,null,20,null,10,null,"~"]
[null,null,"Ards and North Down","N09000011",360,0,null,0,null,0,null,"~",null,40,null,100,null,90,null,70,null,30,null,10,null,10,null,"~",null,0]
[]
[null,"Source:DMICP Data Warehouse"]
[null,"1. In line with Joint Service Publication 200, numbers 5 or fewer have been supressed and presented as '~'."]
[null,"2. Due to rounding, please note that totals may not equal the sum of their parts."]
[null,"3. The presence of  +/- indicates percentage changes in figures over the last six months.  + indicates there has been a 5% to 10% increase and - indicates there has been between a 5% to 10% decrease.  ++ indicates a greater than 10% increase and -- indicates a greater than 10% decrease."]
[null,"4. Age bands are based on age as at time of data extraction."]

{"sheet":"Table E2.7","index":53,"n_rows":17,"n_cols":31,"rows_kept":17,"cut":false,"hidden":false,"merged":[[7,1,7,2],[13,1,13,21],[15,1,15,29],[14,1,14,29],[6,2,6,3]]}
[null,"Annex E2 - Northern Ireland, by District Council Areas"]
[]
[null,"Table E2.7: UK Armed Forces females and entitled civilian females DMS registrations, registered to District Council Areas by age band, Numbers"]
[null,"1 April 2018"]
[null,"Defence Statistics Health"]
[null,null," "]
[null,null,"Return to contents"]
[null,"Area Name",null,"Area Code","All Females","0-4","+/-","5-9","+/-","10-14","+/-","15-19","+/-","20-24","+/-","25-29","+/-","30-34","+/-","35-39","+/-","40-44","+/-","45-49","+/-","50-54","+/-","55-59","+/-","60+","+/-"]
[null,"NORTHERN IRELAND",null,"N92000002 ",430,60,"",40,"",30,"",10,"",30,"- -",80,"-",80,"- -",50,"+",40,"- -",10,"","~","",0,"","~",""]
[null,null,"Lisburn and Castlereagh","N09000007",410,60,null,40,null,30,null,10,null,30,null,70,null,70,null,50,null,40,null,10,null,"~",null,0,null,"~"]
[null,null,"Ards and North Down","N09000011",20,0,null,0,null,0,null,"~",null,"~",null,"~",null,"~",null,"~",null,"~",null,0,null,"~",null,0,null,0]
[]
[null,"Source:DMICP Data Warehouse"]
[null,"1. In line with Joint Service Publication 200, numbers 5 or fewer have been supressed and presented as '~'."]
[null,"2. Due to rounding, please note that totals may not equal the sum of their parts."]
[null,"3. The presence of  +/- indicates percentage changes in figures over the last six months.  + indicates there has been a 5% to 10% increase and - indicates there has been between a 5% to 10% decrease.  ++ indicates a greater than 10% increase and -- indicates a greater than 10% decrease."]
[null,"4. Age bands are based on age as at time of data extraction."]

{"sheet":"Table F1.1","index":54,"n_rows":28,"n_cols":12,"rows_kept":28,"cut":false,"hidden":false,"merged":[[26,1,26,10],[7,7,7,9],[8,1,8,3],[6,2,6,3],[25,1,25,10]]}
[null,"Annex F - Defence Primary Healthcare Regions"]
[]
[null,"Table F1.1: UK Armed Forces personnel and entitled civilian personnel DMS registrations, registered to Defence Primary Healthcare regions by Service, Numbers"]
[null,"1 April 2018"]
[null,"Defence Statistics Health"]
[]
[null,null,"Return to contents"]
[null,null,null,null,null,null,null,"UK Armed Forces split by "]
[null,null,null,null,"All Persons","All UK Armed Forces","+/-","Naval Service","Army","RAF","Civilian","+/-"]
[null,"ALL",null,null,173660,145327,"",31908,80546,32873,28333,""]
[null,null,"UNITED KINGDOM",null,152333,137495,"",31247,74847,31401,14838,""]
[null,null,null,"Central & Wessex",37217,30359,"",956,20019,9384,6858,""]
[null,null,null,"East",24334,21509,"",397,9817,11295,2825,""]
[null,null,null,"London & South",28461,26726,"",7552,15979,3195,1735,""]
[null,null,null,"NI, Wales & West Midlands",14364,13056,"",517,9716,2823,1308,""]
[null,null,null,"Scotland & North",26920,24878,"",4988,15823,4067,2042,""]
[null,null,null,"South West",21037,20967,"",16837,3493,637,70,""]
[null,null,"OTHER",null,21327,7832,"++",661,5699,1472,13495,""]
[null,null,null,"Germany",9905,4215,"- -",202,3626,387,5690,""]
[null,null,null,"Cyprus",6506,2205,"",27,1334,844,4301,"++"]
[null,null,null,"Other overseas",3794,474,"++",18,374,82,3320,""]
[null,null,null,"Reserve Practices",143,138,"- -",42,94,2,5,""]
[null,null,null,"Unknown2",979,800,"",372,271,157,179,"++"]
[]
[null,"Source: DMICP Data Warehouse"]
[null,"1. The presence of  +/- indicates percentage changes in figures over the last six months.  + indicates there has been a 5% to 10% increase and - indicates there has been between a 5% to 10% decrease.  ++ indicates a greater than 10% increase and -- indicates a greater than 10% decrease."]
[null,"2. Unknown includes data quality issues and data management practice registrations."]
[null,"3. See Annex G which maps CCGs into DPHC regions."]

{"sheet":"Table F1.2","index":55,"n_rows":29,"n_cols":18,"rows_kept":29,"cut":false,"hidden":false,"merged":[[28,1,28,15],[6,2,6,3],[8,1,8,3],[26,1,26,21],[27,1,27,18]]}
[null,"Annex F - Defence Primary Healthcare Regions"]
[]
[null,"Table F1.2: UK Armed Forces personnel and entitled civilian personnel DMS registrations, registered to Defence Primary Healthcare regions by age band, Numbers"]
[null,"1 April 2018"]
[null," Defence Statistics Health"]
[]
[null,null,"Return to contents"]
[]
[null,null,null,null,"All Persons","0-4","5-9","10-14","15-19","20-24","25-29","30-34","35-39","40-44","45-49","50-54","55-59","60+"]
[null,"ALL",null,null,173660,6230,5160,2820,8980,27980,35240,29910,24940,14480,9940,5920,1600,450]
[null,null,"UNITED KINGDOM",null,152330,3850,2940,1560,8200,26290,32760,27280,22370,12910,8480,4670,940,100]
[null,null,null,"Central & Wessex",37220,1820,1380,770,1770,4940,6650,6520,5870,3460,2370,1390,250,20]
[null,null,null,"East",24330,730,560,290,660,3740,5390,4600,3820,2230,1440,710,140,20]
[null,null,null,"London & South",28460,440,290,160,1330,5360,6190,5040,4210,2430,1740,1040,210,20]
[null,null,null,"NI, Wales & West Midlands",14360,330,240,130,600,2850,3220,2560,2210,1180,640,320,80,10]
[null,null,null,"Scotland & North",26920,520,470,210,2580,5060,6130,4680,3510,1930,1130,550,130,10]
[null,null,null,"South West",21040,0,0,"~",1270,4340,5170,3880,2750,1680,1160,650,120,20]
[null,null,"OTHER",null,21330,2380,2210,1260,780,1690,2480,2630,2580,1570,1470,1250,670,350]
[null,null,null,"Germany",9900,1000,960,590,430,1010,1210,1180,1220,690,630,560,280,160]
[null,null,null,"Cyprus",6510,890,770,420,110,480,830,880,740,430,370,250,140,100]
[null,null,null,"Other overseas",3790,490,480,230,"~",110,360,470,500,330,260,240,130,80]
[null,null,null,"Reserve Practices",140,0,0,0,40,"~","~",10,10,10,40,40,20,"~"]
[null,null,null,"Unknown3",980,"~",10,20,0,80,80,100,100,100,170,160,100,20]
[]
[]
[null,"Source: DMICP Data Warehouse"]
[null,"1. In line with Joint Service Publication 200, numbers 5 or fewer have been supressed and presented as '~'."]
[null,"2. Due to rounding, please note that totals may not equal the sum of their parts."]
[null,"3. Unknown includes data quality issues and data management practice registrations."]

{"sheet":"Table F1.3","index":56,"n_rows":27,"n_cols":15,"rows_kept":27,"cut":false,"hidden":false,"merged":[[6,2,6,3],[7,1,7,3],[26,1,26,17],[25,1,25,17],[24,1,24,17]]}
[null,"Annex F - Defence Primary Healthcare Regions"]
[]
[null,"Table F1.3: UK Armed Forces personnel DMS registrations, registered to Defence Primary Healthcare regions by age band, Numbers"]
[null,"1 April 2018"]
[null,"Defence Statistics Health"]
[]
[null,null,"Return to contents"]
[null,null,null,null,"All UK Armed Forces","16-19","20-24","25-29","30-34","35-39","40-44","45-49","50-54","55-59","60+"]
[null,"ALL",null,null,145330,7720,27100,32950,27100,22600,13030,8710,4970,1060,80]
[null,null,"UNITED KINGDOM",null,137500,7500,25820,31490,25750,21220,12260,8060,4460,870,70]
[null,null,null,"Central & Wessex",30360,1430,4740,6130,5820,5320,3170,2190,1310,230,20]
[null,null,null,"East",21510,520,3650,5130,4310,3610,2120,1350,680,130,10]
[null,null,null,"London & South",26730,1250,5310,6020,4840,4080,2340,1670,1010,190,10]
[null,null,null,"NI, Wales & West Midlands",13060,550,2790,3080,2430,2110,1120,600,300,80,10]
[null,null,null,"Scotland & North",24880,2490,5000,5970,4490,3350,1840,1080,520,120,10]
[null,null,null,"South West",20970,1270,4330,5170,3860,2740,1670,1150,640,120,10]
[null,null,"OTHER",null,7830,220,1280,1460,1350,1380,780,650,510,180,10]
[null,null,null,"Germany",4220,150,810,820,680,750,400,300,250,60,0]
[null,null,null,"Cyprus",2200,60,380,520,480,400,200,120,50,10,0]
[null,null,null,"Other overseas",470,"~",20,70,100,130,80,40,30,"~",0]
[null,null,null,"Reserve Practices",140,"~","~","~",10,10,10,40,40,20,"~"]
[null,null,null,"Unknown3",800,10,70,60,80,90,90,160,150,80,10]
[]
[null,"Source: DMICP Data Warehouse"]
[null,"1. In line with Joint Service Publication 200, numbers 5 or fewer have been supressed and presented as '~'."]
[null,"2. Due to rounding, please note that totals may not equal the sum of their parts."]
[null,"3. Unknown includes data quality issues and data management practice registrations."]

{"sheet":"Table F1.4","index":57,"n_rows":28,"n_cols":18,"rows_kept":28,"cut":false,"hidden":false,"merged":[[6,2,6,3],[8,1,8,3],[27,1,27,17],[26,1,26,17],[25,1,25,16]]}
[null,"Annex F - Defence Primary Healthcare Regions"]
[]
[null,"Table F1.4: Entitled civilian personnel DMS registrations, registered to Defence Primary Healthcare regions by age band, Numbers"]
[null,"1 April 2018"]
[null,"Defence Statistics Health"]
[]
[null,null,"Return to contents"]
[]
[null,null,null,null,"All Civilians","0-4","5-9","10-14","15-19","20-24","25-29","30-34","35-39","40-44","45-49","50-54","55-59","60+"]
[null,"ALL",null,null,28330,6230,5160,2820,1260,880,2290,2810,2350,1450,1240,950,550,370]
[null,null,"UNITED KINGDOM",null,14840,3850,2940,1560,700,470,1270,1530,1150,660,420,210,60,30]
[null,null,null,"Central & Wessex",6860,1820,1380,770,340,200,530,700,550,290,170,80,20,"~"]
[null,null,null,"East",2820,730,560,290,130,90,260,290,210,120,90,40,10,"~"]
[null,null,null,"London & South",1740,440,290,160,80,50,170,200,120,90,60,40,20,10]
[null,null,null,"NI, Wales & West Midlands",1310,330,240,130,50,60,140,130,100,60,40,20,"~","~"]
[null,null,null,"Scotland & North",2040,520,470,210,90,60,170,190,160,80,50,30,10,"~"]
[null,null,null,"South West",70,0,0,"~","~","~","~",20,"~",10,"~",10,10,10]
[null,null,"OTHER",null,13500,2380,2210,1260,560,410,1020,1280,1190,790,820,740,480,340]
[null,null,null,"Germany",5690,1000,960,590,280,200,390,500,470,290,330,320,210,160]
[null,null,null,"Cyprus",4300,890,770,420,140,110,320,400,340,230,260,200,130,100]
[null,null,null,"Other overseas",3320,490,480,230,110,90,300,370,370,260,220,210,130,80]
[null,null,null,"Reserve Practices","~",0,0,0,0,0,"~","~",0,"~","~",0,0,0]
[null,null,null,"Unknown3",180,"~",10,20,20,10,20,20,10,10,10,20,10,10]
[]
[null,"Source: DMICP Data Warehouse"]
[null,"1. In line with Joint Service Publication 200, numbers 5 or fewer have been supressed and presented as '~'."]
[null,"2. Due to rounding, please note that totals may not equal the sum of their parts."]
[null,"3. Unknown includes data quality issues and data management practice registrations."]

{"sheet":"Table F1.5","index":58,"n_rows":29,"n_cols":13,"rows_kept":29,"cut":false,"hidden":false,"merged":[[27,1,27,20],[28,1,28,20],[6,2,6,3],[8,7,8,9],[8,10,8,12],[8,4,8,6],[26,1,26,21]]}
[null,"Annex F - Defence Primary Healthcare Regions"]
[]
[null,"Table F1.5: UK Armed Forces personnel and entitled civilian personnel DMS registrations, registered to Defence Primary Healthcare regions by gender, Numbers"]
[null,"1 April 2018"]
[null,"Defence Statistics Health"]
[]
[null,null,"Return to contents"]
[]
[null,null,null,null,"All Persons",null,null,"UK Armed Forces",null,null,"Civilian"]
[null,null,null,null,"All","Male","Female","All","Male","Female","All","Male","Female"]
[null,"ALL",null,null,173660,140660,33000,145330,130240,15090,28330,10420,17910]
[null,null,"UNITED KINGDOM",null,152330,128210,24120,137500,123060,14440,14840,5150,9690]
[null,null,null,"Central & Wessex",37220,29300,7910,30360,26980,3380,6860,2320,4540]
[null,null,null,"East",24330,20170,4160,21510,19200,2300,2820,970,1860]
[null,null,null,"London & South",28460,24300,4160,26730,23690,3040,1740,610,1120]
[null,null,null,"NI, Wales & West Midlands",14360,11840,2530,13060,11360,1700,1310,480,830]
[null,null,null,"Scotland & North",26920,23740,3180,24880,23030,1850,2040,720,1330]
[null,null,null,"South West",21040,18850,2180,20970,18800,2170,70,50,20]
[null,null,"OTHER",null,21330,12450,8880,7830,7180,650,13500,5270,8230]
[null,null,null,"Germany",9900,5880,4020,4220,3880,330,5690,2000,3690]
[null,null,null,"Cyprus",6510,3730,2780,2200,2010,200,4300,1720,2580]
[null,null,null,"Other overseas",3790,1880,1920,470,450,30,3320,1430,1890]
[null,null,null,"Reserve Practices",140,130,10,140,120,10,"~","~","~"]
[null,null,null,"Unknown3",980,830,150,800,720,80,180,110,70]
[]
[null,"Source: DMICP Data Warehouse"]
[null,"1. In line with Joint Service Publication 200, numbers 5 or fewer have been supressed and presented as '~'."]
[null,"2. Due to rounding, please note that totals may not equal the sum of their parts."]
[null,"3. Unknown includes data quality issues and data management practice registrations."]

{"sheet":"Table F1.6","index":59,"n_rows":27,"n_cols":18,"rows_kept":27,"cut":false,"hidden":false,"merged":[[6,2,6,3],[26,1,26,20],[25,1,25,20],[24,1,24,20]]}
[null,"Annex F - Defence Primary Healthcare Regions"]
[]
[null,"Table F1.6: UK Armed Forces males and entitled civilian males DMS registrations, registered to Defence Primary Healthcare regions by age band, Numbers"]
[null,"1 April 2018"]
[null,"Defence Statistics Health"]
[]
[null,null,"Return to contents"]
[null,null,null,null,"All Males","0-4","5-9","10-14","15-19","20-24","25-29","30-34","35-39","40-44","45-49","50-54","55-59","60+"]
[null,"ALL",null,null,140660,3180,2620,1390,7610,24650,29550,24250,20240,11990,8380,5150,1330,320]
[null,null,"UNITED KINGDOM",null,128210,1980,1520,800,7130,23370,28120,22820,18750,11040,7440,4280,870,90]
[null,null,null,"Central & Wessex",29300,940,710,390,1480,4270,5400,5120,4640,2840,2030,1250,230,20]
[null,null,null,"East",20170,390,300,150,540,3270,4570,3800,3200,1910,1250,650,130,20]
[null,null,null,"London & South",24300,220,150,80,1120,4770,5330,4220,3580,2080,1550,980,200,20]
[null,null,null,"NI, Wales & West Midlands",11840,150,120,70,480,2520,2720,2100,1820,960,530,270,70,10]
[null,null,null,"Scotland & North",23740,280,240,110,2380,4640,5510,4160,3070,1700,1010,510,120,10]
[null,null,null,"South West",18850,0,0,0,1140,3910,4580,3410,2420,1550,1070,620,120,20]
[null,null,"OTHER",null,12450,1210,1100,600,480,1270,1440,1440,1490,950,940,870,460,220]
[null,null,null,"Germany",5880,500,470,260,280,780,780,680,740,410,370,360,150,100]
[null,null,null,"Cyprus",3730,460,400,210,120,370,470,490,420,260,220,170,100,50]
[null,null,null,"Other overseas",1880,250,230,110,50,50,110,180,230,190,170,160,100,60]
[null,null,null,"Reserve Practices",130,0,0,0,"~","~","~",10,10,10,30,30,20,"~"]
[null,null,null,"Unknown3",830,0,10,10,30,70,70,80,90,80,150,140,90,20]
[]
[null,"Source: DMICP Data Warehouse"]
[null,"1. In line with Joint Service Publication 200, numbers 5 or fewer have been supressed and presented as '~'."]
[null,"2. Due to rounding, please note that totals may not equal the sum of their parts."]
[null,"3. Unknown includes data quality issues and data management practice registrations."]

{"sheet":"Table F1.7","index":60,"n_rows":27,"n_cols":18,"rows_kept":27,"cut":false,"hidden":false,"merged":[[6,2,6,3],[26,1,26,20],[25,1,25,20],[24,1,24,20]]}
[null,"Annex F - Defence Primary Healthcare Regions"]
[]
[null,"Table F1.7: UK Armed Forces females and entitled civilian females DMS registrations, registered to Defence Primary Healthcare regions by age band, Numbers"]
[null,"1 April 2018"]
[null,"Defence Statistics Health"]
[]
[null,null,"Return to contents"]
[null,null,null,null,"All Females","0-4","5-9","10-14","15-19","20-24","25-29","30-34","35-39","40-44","45-49","50-54","55-59","60+"]
[null,"ALL",null,null,33000,3050,2540,1420,1360,3340,5690,5660,4710,2500,1560,770,280,140]
[null,null,"UNITED KINGDOM",null,24120,1880,1420,760,1060,2920,4640,4460,3620,1870,1030,390,70,10]
[null,null,null,"Central & Wessex",7910,890,670,380,290,670,1250,1410,1220,620,340,140,20,"~"]
[null,null,null,"East",4160,340,260,140,110,470,820,800,620,320,190,70,10,"~"]
[null,null,null,"London & South",4160,220,140,80,210,590,860,820,630,350,180,60,20,"~"]
[null,null,null,"NI, Wales & West Midlands",2530,180,120,60,120,330,500,450,380,220,110,60,10,"~"]
[null,null,null,"Scotland & North",3180,250,230,100,210,430,620,510,440,230,120,40,10,"~"]
[null,null,null,"South West",2180,0,0,"~",130,420,590,470,320,140,80,30,"~","~"]
[null,null,"OTHER",null,8880,1170,1110,660,300,420,1050,1200,1090,620,530,380,210,130]
[null,null,null,"Germany",4020,500,480,330,160,230,430,500,480,280,260,200,120,60]
[null,null,null,"Cyprus",2780,430,370,200,70,120,360,390,330,180,160,80,50,40]
[null,null,null,"Other overseas",1920,240,250,120,60,60,250,290,270,150,90,80,30,20]
[null,null,null,"Reserve Practices",10,0,0,0,0,0,"~","~","~","~","~","~","~",0]
[null,null,null,"Unknown3",150,"~","~",10,10,10,20,20,20,20,20,20,10,"~"]
[]
[null,"Source: DMICP Data Warehouse"]
[null,"1. In line with Joint Service Publication 200, numbers 5 or fewer have been supressed and presented as '~'."]
[null,"2. Due to rounding, please note that totals may not equal the sum of their parts."]
[null,"3. Unknown includes data quality issues and data management practice registrations."]

{"sheet":"Figure G1","index":61,"n_rows":32,"n_cols":4,"rows_kept":32,"cut":false,"hidden":false,"merged":[[6,2,6,3],[31,3,31,22],[28,1,28,20],[29,1,29,20]]}
[null,"Annex G - Report figures"]
[]
[null,"Figure G1: UK Armed Forces and entitled civilian personnel DMS registrations, by registration location, Numbers and Percentages"]
[null,"1 April 2018"]
[null,"Defence Statistics Health"]
[]
[null,null,"Return to contents"]
[]
[]
[]
[]
[]
[]
[]
[]
[]
[]
[]
[]
[]
[]
[]
[]
[]
[]
[]
[]
[]
[]
[]
[null,null,null,"Source: DMICP Data Warehouse and JPA"]
[null,null,null,"1 Due to rounding, subtotals will not always add up to the total."]

{"sheet":"Figure G2","index":62,"n_rows":33,"n_cols":3,"rows_kept":33,"cut":false,"hidden":false,"merged":[[6,2,6,3],[29,1,29,20],[30,1,30,20],[31,1,31,20]]}
[null,"Annex G - Report figures"]
[]
[null,"Figure G2: UK Armed Forces DMS registrations, by country and quarter, Numbers"]
[null,"1 April 2018"]
[null,"Defence Statistics Health"]
[]
[null,null,"Return to contents"]
[]
[]
[]
[]
[]
[]
[]
[]
[]
[]
[]
[]
[]
[]
[]
[]
[]
[]
[]
[]
[]
[null,"Source: DMICP Data Warehouse and JPA"]
[null,"1 Rest of UK consists of Wales, Scotland and Northern Ireland.  \n"]
[null,"2 All Overseas consists of Germany, Cyprus and Other Overseas."]
[null,"3 Other consists of Reserve Practices and Unknown. "]
[null,4,"Data are presented quarterly between 1 July 2016 – 1 April 2017, thereafter, bi-annually."]

{"sheet":"Figure G3","index":63,"n_rows":27,"n_cols":3,"rows_kept":27,"cut":false,"hidden":false,"merged":[[6,2,6,3],[27,1,27,20],[28,1,28,20],[29,1,29,20]]}
[null,{"$f":"Contents!B92","v":"Annex G - Report figures"}]
[]
[null,{"$f":"Sheet1!B66","v":"Figure G3: UK Armed Forces DMS registrations, by gender and age band, Numbers"}]
[null,{"$f":"'Table A1.1'!B4","v":"1 April 2018"}]
[null,"Defence Statistics Health"]
[]
[null,null,"Return to contents"]
[]
[]
[]
[]
[]
[]
[]
[]
[]
[]
[]
[]
[]
[]
[]
[]
[]
[]
[]
[null,"Source: DMICP Data Warehouse and JPA"]

{"sheet":"Figure G4","index":64,"n_rows":31,"n_cols":3,"rows_kept":31,"cut":false,"hidden":false,"merged":[[6,2,6,3],[27,1,27,20],[28,1,28,20],[29,1,29,20]]}
[null,{"$f":"Contents!B92","v":"Annex G - Report figures"}]
[]
[null,{"$f":"Sheet1!B67","v":"Figure G4: Entitled civilian DMS registrations, by country and quarter, Numbers"}]
[null,{"$f":"'Table A1.1'!B4","v":"1 April 2018"}]
[null,"Defence Statistics Health"]
[]
[null,null,"Return to contents"]
[]
[]
[]
[]
[]
[]
[]
[]
[]
[]
[]
[]
[]
[]
[]
[]
[]
[]
[]
[null,"Source: DMICP Data Warehouse"]
[null,"1 Rest of UK consists of Wales, Scotland and Northern Ireland.  \n"]
[null,"2 All Overseas consists of Germany, Cyprus and Other Overseas."]
[null,"3 Other consists of Reserve Practices and Unknown. "]
[null,4,"Data are presented quarterly between 1 July 2016 – 1 April 2017, thereafter, bi-annually."]

{"sheet":"Figure G5","index":65,"n_rows":28,"n_cols":3,"rows_kept":28,"cut":false,"hidden":false,"merged":[[6,2,6,3],[27,1,27,20],[28,1,28,20],[29,1,29,20]]}
[null,{"$f":"Contents!B92","v":"Annex G - Report figures"}]
[]
[null,{"$f":"Sheet1!B68","v":"Figure G5: Entitled civilian DMS registrations, by gender and age band, Numbers"}]
[null,{"$f":"'Table A1.1'!B4","v":"1 April 2018"}]
[null,"Defence Statistics Health"]
[]
[null,null,"Return to contents"]
[]
[]
[]
[]
[]
[]
[]
[]
[]
[]
[]
[]
[]
[]
[]
[]
[]
[]
[]
[null,"Source: DMICP Data Warehouse"]
[null,"1 Please note there was 1 civilian whose gender was recorded as “unspecified” and therefore has been excluded from Figure 5."]

{"sheet":"Figure G6","index":66,"n_rows":25,"n_cols":3,"rows_kept":25,"cut":false,"hidden":false,"merged":[[6,2,6,3],[27,1,27,20],[28,1,28,20],[29,1,29,20]]}
[null,{"$f":"Contents!B92","v":"Annex G - Report figures"}]
[]
[null,{"$f":"Sheet1!B69","v":"Figure G6: UK Armed Forces and entitled civilian England DMS registrations, Numbers and Percentages"}]
[null,{"$f":"'Table A1.1'!B4","v":"1 April 2018"}]
[null,"Defence Statistics Health"]
[]
[null,null,"Return to contents"]
[]
[]
[]
[]
[]
[]
[]
[]
[]
[]
[]
[]
[]
[]
[]
[]
[]
[null,"Source: DMICP Data Warehouse and JPA"]

{"sheet":"Figure G7","index":67,"n_rows":25,"n_cols":3,"rows_kept":25,"cut":false,"hidden":false,"merged":[[6,2,6,3],[27,1,27,20],[28,1,28,20],[29,1,29,20]]}
[null,{"$f":"Contents!B92","v":"Annex G - Report figures"}]
[]
[null,{"$f":"Sheet1!B70","v":"Figure G7: UK Armed Forces and entitled civilian Wales DMS registrations, Numbers and Percentages"}]
[null,{"$f":"'Table A1.1'!B4","v":"1 April 2018"}]
[null,"Defence Statistics Health"]
[]
[null,null,"Return to contents"]
[]
[]
[]
[]
[]
[]
[]
[]
[]
[]
[]
[]
[]
[]
[]
[]
[]
[null,"Source: DMICP Data Warehouse and JPA"]

{"sheet":"Figure G8","index":68,"n_rows":27,"n_cols":3,"rows_kept":27,"cut":false,"hidden":false,"merged":[[6,2,6,3],[27,1,27,20],[28,1,28,20],[29,1,29,20]]}
[null,{"$f":"Contents!B92","v":"Annex G - Report figures"}]
[]
[null,{"$f":"Sheet1!B71","v":"Figure G8: UK Armed Forces and entitled civilian Scotland DMS registrations, Numbers and Percentages"}]
[null,{"$f":"'Table A1.1'!B4","v":"1 April 2018"}]
[null,"Defence Statistics Health"]
[]
[null,null,"Return to contents"]
[]
[]
[]
[]
[]
[]
[]
[]
[]
[]
[]
[]
[]
[]
[]
[]
[]
[]
[]
[null,"Source: DMICP Data Warehouse and JPA"]

{"sheet":"Annex H","index":69,"n_rows":69,"n_cols":3,"rows_kept":69,"cut":false,"hidden":false,"merged":[[69,1,71,1],[55,1,61,1],[0,1,0,2],[6,1,13,1],[14,1,25,1],[62,1,68,1],[26,1,44,1],[3,1,3,2],[45,1,54,1]]}
[null,{"$f":"Sheet1!B72","v":"ANNEX H: DPHC region mapping of CCGs"}]
[]
[null,"Defence Statistics Health"]
[null,"Return to contents"]
[]
[null,"DPHC Region","CCG"]
[null,"Central & Wessex","NHS Aylesbury Vale CCG"]
[null,null,"NHS Gloucestershire CCG"]
[null,null,"NHS Newbury and District CCG"]
[null,null,"NHS Oxfordshire CCG"]
[null,null,"NHS South Gloucestershire CCG"]
[null,null,"NHS Swindon CCG"]
[null,null,"NHS West Hampshire CCG"]
[null,null,"NHS Wiltshire CCG"]
[null,"East","NHS Bedfordshire CCG"]
[null,null,"NHS Cambridgeshire and Peterborough CCG"]
[null,null,"NHS East Leicestershire and Rutland CCG"]
[null,null,"NHS Ipswich and East Suffolk CCG"]
[null,null,"NHS Lincolnshire East CCG"]
[null,null,"NHS Lincolnshire West CCG"]
[null,null,"NHS North East Essex CCG"]
[null,null,"NHS Nottingham West CCG"]
[null,null,"NHS South Norfolk CCG"]
[null,null,"NHS South West Lincolnshire CCG "]
[null,null,"NHS West Essex CCG"]
[null,null,"NHS West Norfolk CCG"]
[null,"London & South","NHS Bracknell and Ascot CCG"]
[null,null,"NHS Central London (Westminster) CCG"]
[null,null,"NHS Coastal West Sussex CCG"]
[null,null,"NHS Greenwich CCG"]
[null,null,"NHS Herts Valleys CCG"]
[null,null,"NHS Hillingdon CCG"]
[null,null,"NHS Hounslow CCG"]
[null,null,"NHS Lambeth CCG"]
[null,null,"NHS Medway CCG"]
[null,null,"NHS North East Hampshire and Farnham CCG"]
[null,null,"NHS North Hampshire CCG"]
[null,null,"NHS North West Surrey CCG"]
[null,null,"NHS North, East, West Devon CCG"]
[null,null,"NHS Portsmouth CCG"]
[null,null,"NHS South Kent Coast CCG"]
[null,null,"NHS Surrey Downs CCG"]
[null,null,"NHS Surrey Heath CCG"]
[null,null,"NHS West Kent CCG"]
[null,null,"NHS Windsor, Ascot and Maidenhead CCG"]
[null,"NI, Wales & West Midlands","NHS Birmingham CrossCity CCG"]
[null,null,"NHS Coventry and Rugby CCG"]
[null,null,"NHS Fylde & Wyre CCG"]
[null,null,"NHS Gloucestershire CCG"]
[null,null,"NHS Greater Preston CCG"]
[null,null,"NHS Shropshire CCG"]
[null,null,"NHS South East Staffs and Seisdon and Peninsular CCG"]
[null,null,"NHS South Warwickshire CCG"]
[null,null,"NHS Stafford and Surrounds CCG"]
[null,null,"NHS West Cheshire CCG"]
[null,"Scotland & North","NHS Cumbria CCG"]
[null,null,"NHS East Riding of Yorkshire CCG"]
[null,null,"NHS Hambleton, Richmondshire and Whitby CCG"]
[null,null,"NHS Harrogate and Rural District CCG"]
[null,null,"NHS Northumberland CCG"]
[null,null,"NHS Scarborough and Ryedale CCG"]
[null,null,"NHS Vale of York CCG"]
[null,"South West","NHS Dorset CCG"]
[null,null,"NHS Fareham and Gosport CCG"]
[null,null,"NHS Kernow CCG"]
[null,null,"NHS North, East, West Devon CCG"]
[null,null,"NHS Somerset CCG"]
[null,null,"NHS South Devon and Torbay CCG"]
[null,null,"NHS West Hampshire CCG"]

{"sheet":"Annex I","index":70,"n_rows":55,"n_cols":3,"rows_kept":55,"cut":false,"hidden":false,"merged":[[54,1,55,1],[54,2,55,2],[50,1,51,1],[50,2,51,2],[52,1,53,1],[52,2,53,2],[46,1,47,1],[46,2,47,2],[48,1,49,1],[48,2,49,2],[42,1,43,1],[42,2,43,2],[44,1,45,1],[44,2,45,2],[38,1,39,1],[38,2,39,2],[40,1,41,1],[40,2,41,2],[34,1,35,1],[34,2,35,2],[36,1,37,1],[36,2,37,2],[30,1,31,1],[30,2,31,2],[32,1,33,1],[32,2,33,2],[26,1,27,1],[26,2,27,2],[28,1,29,1],[28,2,29,2],[22,1,23,1],[22,2,23,2],[24,1,25,1],[24,2,25,2],[18,1,19,1],[18,2,19,2],[20,1,21,1],[20,2,21,2],[16,1,17,1],[16,2,17,2],[10,1,11,1],[10,2,11,2],[12,1,13,1],[12,2,13,2],[14,1,15,1],[14,2,15,2],[0,1,0,2],[6,1,7,1],[6,2,7,2],[8,1,9,1],[8,2,9,2],[3,1,3,2]]}
[null,{"$f":"Sheet1!B73","v":"ANNEX I: MOD UK medical centres offering primary healthcare to entitled civilians"}]
[]
[null,"Defence Statistics Health"]
[null,"Return to contents"]
[]
[null,"Medical Centre","DPHC Region"]
[null,"Bovington","South West"]
[]
[null,"Bulford","Central"]
[]
[null,"Catterick","Scotland & North"]
[]
[null,"Cosford","NI, Wales & West Midlands"]
[]
[null,"Kendrew Bks (was Cottesmore)","East"]
[]
[null,"Larkhill","Central & Wessex"]
[]
[null,"MRS Aldergrove","NI, Wales & West Midlands"]
[]
[null,"Pirbright","London & South"]
[]
[null,"RAF Benson","Central & Wessex"]
[]
[null,"RAF Brize Norton","Central & Wessex"]
[]
[null,"RAF Coningsby","East"]
[]
[null,"RAF Cranwell","East"]
[]
[null,"RAF Halton","Central & Wessex"]
[]
[null,"RAF Leeming","Scotland & North"]
[]
[null,"RAF Leuchars","Scotland & North"]
[]
[null,"RAF Linton-on-Ouse","Scotland & North"]
[]
[null,"RAF Marham","East"]
[]
[null,"RAF Northolt","London and South East"]
[]
[null,"RAF Shawbury","NI, Wales & West Midlands"]
[]
[null,"RAF Valley","NI, Wales & West Midlands"]
[]
[null,"RAF Wittering","East"]
[]
[null,"RM CTC Lympstone","South West"]
[]
[null,"Sandhurst","London & South"]
[]
[null,"Tidworth","Central & Wessex"]
[]
[null,"Warminster","Central & Wessex"]